{"text_format":"1","workbook":"xlsx","n_sheets":7,"sheets":["Benutzerhinweise","Zielvereinbarung","Bewertung durch Anwender","Konformitätsprüfung","BNB-System","Gültigkeitsliste","hilfstabelle"],"not_rendered":{"charts":0,"images":0,"macros":1,"external_links":0,"defined_names":7,"comments":0,"pivot_tables":0},"unopened":[],"bounds":{"document_bytes":16777216,"sheet_cells":100000,"rows_first":2000,"rows_last":500,"rows_between":2000,"halvings":0,"cell_chars":16384,"cell_head_chars":4096},"cells_cut":0,"cells_raw":0,"read":"whole","date_system":"1900"}

{"sheet":"Benutzerhinweise","index":0,"n_rows":8,"n_cols":3,"rows_kept":8,"cut":false,"hidden":false,"merged":[[5,2,5,3],[7,2,7,3]]}
[]
[]
[]
[]
[null,null,"  Arbeitshilfe zum BNB_BK Version 2017"]
[]
[]
[null,null,"   EINFÜHRUNG"]

{"sheet":"Zielvereinbarung","index":1,"n_rows":263,"n_cols":15,"rows_kept":263,"cut":false,"hidden":false,"merged":[[0,2,0,3],[3,15,4,15],[3,13,4,13],[3,14,4,14],[6,1,6,2],[3,1,4,2],[3,3,4,3],[3,5,3,6],[3,7,4,7],[3,4,4,4],[3,12,4,12],[3,8,4,8],[3,9,4,9],[3,10,4,10],[3,11,4,11]]}
[null,{"$f":"'BNB-System'!B1","v":"Projekt:"},"Projektbezeichnung",null,"Datum:",null,"2015-12-17"]
[null,{"$f":"'BNB-System'!B2","v":"Bewertungssystem Nachhaltiges Bauen (BNB)"}]
[null,{"$f":"'BNB-System'!B3","v":"Systemvariante Büro- und Verwaltungsgebäude, Modul Komplettmodernisierung (BNB_BK) - Version 2017"}]
[null,"Nachhaltigkeitskriterien",null,"maximale Punktzahl","Gewichtung\nGesamt-bewertung","Zielwert \n der Ziel-vereinbarung",null,"Kommentar","erforderliche Leistungen, Maßnahmen, Methoden","erforderliche Dokumente/ Nachweise","Termin","Zuständigkeit",null,"Zielwert","Gesamt-bewertung gemäß \nEnd-bewertung"]
[null,null,null,null,null,"Soll","Punkt-\nzahl"]
[]
[null,"Gesamterfüllungsgrad",null,null,null,null,{"$f":"IF(SUM(O13:O221)>100%,100%,SUM(O13:O221))","v":0}]
[null,null,null,null,null,null,null,null,null,null,null,null,"qwertz"]
[]
[null,{"$f":"'BNB-System'!E6","v":"Ökologische Qualität"},null,null,{"$f":"'BNB-System'!J6","v":0.22500000000000001},null,{"$f":"G13*(E13/100)+G14*(E14/100)+G15*(E15/100)+G16*(E16/100)+G17*(E17/100)+G18*(E18/100)+G24*(E24/100)+G26*(E26/100)+G30*(E30/100)+G31*(E31/100)","v":0},null,null,null,null,null,null,{"$f":"'BNB-System'!K6","v":1800}]
[null,null,null,null,null,null,null,null,null,null,null,null,null,{"$f":"'BNB-System'!K7","v":0}]
[null,null,"Wirkungen auf die globale und lokale  Umwelt",null,null,null,null,null,null,null,null,null,null,{"$f":"'BNB-System'!K8","v":0}]
[null,{"$f":"'BNB-System'!E9","v":" 1.1.1"},{"$f":"'BNB-System'!F9","v":"Treibhauspotenzial (GWP)"},{"$f":"'BNB-System'!G9","v":100},{"$f":"'BNB-System'!J9","v":3.7499999999999999E-2},"o",null,null,null,null,null,null,null,{"$f":"'BNB-System'!K9","v":300},{"$f":"IF(ISNUMBER(E13*G13/100),E13*G13/100,0)","v":0}]
[null,{"$f":"'BNB-System'!E10","v":" 1.1.2"},{"$f":"'BNB-System'!F10","v":"Ozonschichtabbaupotenzial (ODP)"},{"$f":"'BNB-System'!G10","v":100},{"$f":"'BNB-System'!J10","v":1.2499999999999999E-2},"x",null,null,null,null,null,null,null,{"$f":"'BNB-System'!K10","v":100},{"$f":"IF(ISNUMBER(E14*G14/100),E14*G14/100,0)","v":0}]
[null,{"$f":"'BNB-System'!E11","v":" 1.1.3"},{"$f":"'BNB-System'!F11","v":"Ozonbildungspotenzial (POCP)"},{"$f":"'BNB-System'!G11","v":100},{"$f":"'BNB-System'!J11","v":1.2499999999999999E-2},null,null,null,null,null,null,null,null,{"$f":"'BNB-System'!K11","v":100},0]
[null,{"$f":"'BNB-System'!E12","v":" 1.1.4"},{"$f":"'BNB-System'!F12","v":"Versauerungspotenzial (AP)"},{"$f":"'BNB-System'!G12","v":100},{"$f":"'BNB-System'!J12","v":1.2499999999999999E-2},null,null,null,null,null,null,null,null,{"$f":"'BNB-System'!K12","v":100},0]
[null,{"$f":"'BNB-System'!E13","v":" 1.1.5"},{"$f":"'BNB-System'!F13","v":"Überdüngungspotenzial (EP)"},{"$f":"'BNB-System'!G13","v":100},{"$f":"'BNB-System'!J13","v":1.2499999999999999E-2},null,null,null,null,null,null,null,null,{"$f":"'BNB-System'!K13","v":100},0]
[null,{"$f":"'BNB-System'!E14","v":" 1.1.6"},{"$f":"'BNB-System'!F14","v":"Risiken für die lokale Umwelt"},{"$f":"'BNB-System'!G14","v":100},{"$f":"'BNB-System'!J14","v":3.7499999999999999E-2},null,{"$f":"IF(SUM(G19:G23)>100,100,SUM(G19:G23))","v":0},null,null,null,null,null,null,{"$f":"'BNB-System'!K14","v":300},0]
[null,null,{"$f":"'BNB-System'!F15","v":"Altsubstanz: Q4 ; Neusubstanz: Q5"},{"$f":"'BNB-System'!G15","v":100}]
[null,null,{"$f":"'BNB-System'!F16","v":"Altsubstanz: Q3 ; Neusubstanz: Q4"},{"$f":"'BNB-System'!G16","v":75}]
[null,null,{"$f":"'BNB-System'!F17","v":"Altsubstanz: Q2 ; Neusubstanz: Q3"},{"$f":"'BNB-System'!G17","v":50}]
[null,null,{"$f":"'BNB-System'!F18","v":"Altsubstanz: Q1 ; Neusubstanz: Q2"},{"$f":"'BNB-System'!G18","v":25}]
[null,null,{"$f":"'BNB-System'!F19","v":"Altsubstanz: Q1 ; Neusubstanz: Q1"},{"$f":"'BNB-System'!G19","v":10}]
[null,{"$f":"'BNB-System'!E20","v":" 1.1.7"},{"$f":"'BNB-System'!F20","v":"Nachhaltige Materialgewinnung / Biodiversität"},{"$f":"'BNB-System'!G20","v":100},{"$f":"'BNB-System'!J20","v":1.2499999999999999E-2},null,null,null,null,null,null,null,null,{"$f":"'BNB-System'!K20","v":100},0]
[null,null,{"$f":"'BNB-System'!F21","v":"Ressourceninanspruchnahme"},null,null,null,null,null,null,null,null,null,null,{"$f":"'BNB-System'!K21","v":0}]
[null,{"$f":"'BNB-System'!E22","v":" 1.2.1"},{"$f":"'BNB-System'!F22","v":"Primärenergiebedarf"},{"$f":"'BNB-System'!G22","v":100},{"$f":"'BNB-System'!J22","v":3.7499999999999999E-2},null,{"$f":"IF(SUM(G27:G29)>100,100,SUM(G27:G29))","v":0},null,null,null,null,null,null,{"$f":"'BNB-System'!K22","v":300},0]
[null,null,{"$f":"'BNB-System'!F23","v":"Primärenergiebedarf nicht erneuerbar (PEne)"},{"$f":"'BNB-System'!G23","v":60},null,null,null,null,null,null,null,null,null,{"$f":"'BNB-System'!K23","v":0}]
[null,null,{"$f":"'BNB-System'!F24","v":"Gesamtprimärenergiebedarf (PEges)"},{"$f":"'BNB-System'!G24","v":40}]
[null,null,{"$f":"'BNB-System'!F25","v":"Anteil der erneuerbaren Primärenergie (Pee)"},{"$f":"'BNB-System'!G25","v":20},null,null,null,null,null,null,null,null,null,{"$f":"'BNB-System'!K25","v":0}]
[null,{"$f":"'BNB-System'!E26","v":" 1.2.3"},{"$f":"'BNB-System'!F26","v":"Trinkwasserbedarf und Abwasseraufkommen"},{"$f":"'BNB-System'!G26","v":100},{"$f":"'BNB-System'!J26","v":2.4999999999999998E-2},null,null,null,null,null,null,null,null,{"$f":"'BNB-System'!K26","v":200},{"$f":"IF(ISNUMBER(E30*G30/100),E30*G30/100,0)","v":0}]
[null,{"$f":"'BNB-System'!E27","v":" 1.2.4"},{"$f":"'BNB-System'!F27","v":"Flächeninanspruchnahme"},{"$f":"'BNB-System'!G27","v":100},{"$f":"'BNB-System'!J27","v":2.4999999999999998E-2},null,{"$f":"IF(SUM(G32:G33)>100,100,SUM(G32:G33))","v":0},null,null,null,null,null,null,{"$f":"'BNB-System'!K27","v":200},0]
[null,null,{"$f":"'BNB-System'!F28","v":"Veränderung der Flächeninanspruchnahme"},{"$f":"'BNB-System'!G28","v":100}]
[null,null,{"$f":"'BNB-System'!F29","v":"Ausgleichsmaßnahmen und Flächenrecycling"},{"$f":"'BNB-System'!G29","v":40}]
[null,null,null,null,null,null,null,null,null,null,null,null,null,{"$f":"'BNB-System'!K30","v":0}]
[null,{"$f":"'BNB-System'!E31","v":"Ökonomische Qualität"},null,null,{"$f":"'BNB-System'!J31","v":0.22500000000000001},null,{"$f":"G38*(E38/100)+G40*(E40/100)+G41*(E41/100)","v":0},null,null,null,null,null,null,{"$f":"'BNB-System'!K31","v":600}]
[null,null,null,null,null,null,null,null,null,null,null,null,null,{"$f":"'BNB-System'!K32","v":0}]
[null,null,{"$f":"'BNB-System'!F33","v":"Lebenszykluskosten"},null,null,null,null,null,null,null,null,null,null,{"$f":"'BNB-System'!K33","v":0}]
[null,{"$f":"'BNB-System'!E34","v":" 2.1.1"},{"$f":"'BNB-System'!F34","v":"Gebäudebezogene Kosten im Lebenszyklus"},{"$f":"'BNB-System'!G34","v":100},{"$f":"'BNB-System'!J34","v":0.1125},null,null,null,null,null,null,null,null,{"$f":"'BNB-System'!K34","v":300},{"$f":"IF(ISNUMBER(E38*G38/100),E38*G38/100,0)","v":0}]
[null,null,{"$f":"'BNB-System'!F35","v":"Wirtschaftlichkeit und Wertstabilität"},null,null,null,null,null,null,null,null,null,null,{"$f":"'BNB-System'!K35","v":0}]
[null,{"$f":"'BNB-System'!E36","v":" 2.2.1"},{"$f":"'BNB-System'!F36","v":"Flächeneffizienz"},{"$f":"'BNB-System'!G36","v":100},{"$f":"'BNB-System'!J36","v":3.7499999999999999E-2},null,null,null,null,null,null,null,null,{"$f":"'BNB-System'!K36","v":100},{"$f":"IF(ISNUMBER(E40*G40/100),E40*G40/100,0)","v":0}]
[null,{"$f":"'BNB-System'!E37","v":" 2.2.2"},{"$f":"'BNB-System'!F37","v":"Anpassungsfähigkeit"},{"$f":"'BNB-System'!G37","v":100},{"$f":"'BNB-System'!J37","v":7.4999999999999997E-2},"o",{"$f":"IF(SUM(G42:G47)>100,100,SUM(G42:G47))","v":0},null,null,null,null,null,null,{"$f":"'BNB-System'!K37","v":200},0]
[null,null,{"$f":"'BNB-System'!F38","v":"Lichte Raumhöhe"},{"$f":"'BNB-System'!G38","v":15},null,null,null,null,null,null,null,null,null,{"$f":"'BNB-System'!K38","v":0}]
[null,null,{"$f":"'BNB-System'!F39","v":"Gebäudetiefe"},{"$f":"'BNB-System'!G39","v":15},null,null,null,null,null,null,null,null,null,{"$f":"'BNB-System'!K39","v":0}]
[null,null,{"$f":"'BNB-System'!F40","v":"Vertikale Erschließung"},{"$f":"'BNB-System'!G40","v":15},null,null,null,null,null,null,null,null,null,{"$f":"'BNB-System'!K40","v":0}]
[null,null,{"$f":"'BNB-System'!F41","v":"Grundrisse"},{"$f":"'BNB-System'!G41","v":25},null,null,null,null,null,null,null,null,null,{"$f":"'BNB-System'!K41","v":0}]
[null,null,{"$f":"'BNB-System'!F42","v":"Konstruktion"},{"$f":"'BNB-System'!G42","v":20},null,null,null,null,null,null,null,null,null,{"$f":"'BNB-System'!K42","v":0}]
[null,null,{"$f":"'BNB-System'!F43","v":"Technische Ausstattung"},{"$f":"'BNB-System'!G43","v":18},null,null,null,null,null,null,null,null,null,{"$f":"'BNB-System'!K43","v":0}]
[null,null,null,null,null,null,null,null,null,null,null,null,null,{"$f":"'BNB-System'!K44","v":0}]
[null,{"$f":"'BNB-System'!E45","v":"Soziokulturelle und funktionale Qualität"},null,null,{"$f":"'BNB-System'!J45","v":0.22500000000000001},null,{"$f":"G52*(E52/100)+G63*(E63/100)+G66*(E66/100)+G76*(E76/100)+G84*(E84/100)+G93*(E93/100)+G107*(E107/100)+G109*(E109/100)+G110*(E110/100)+G116*(E116/100)+G121*(E121/100)+G128*(E128/100)","v":0},null,null,null,null,null,null,{"$f":"'BNB-System'!K45","v":2300}]
[null,null,null,null,null,null,null,null,null,null,null,null,null,{"$f":"'BNB-System'!K46","v":0}]
[null,null,{"$f":"'BNB-System'!F47","v":"Gesundheit, Behaglichkeit und Nutzerzufriedenheit"},null,null,null,null,null,null,null,null,null,null,{"$f":"'BNB-System'!K47","v":0}]
[null,{"$f":"'BNB-System'!E48","v":" 3.1.1"},{"$f":"'BNB-System'!F48","v":"Thermischer Komfort"},{"$f":"'BNB-System'!G48","v":100},{"$f":"'BNB-System'!J48","v":2.9347826086956522E-2},null,{"$f":"IF(SUM(G54:G62)>100,100,SUM(G54:G62))","v":0},null,null,null,null,null,null,{"$f":"'BNB-System'!K48","v":300},{"$f":"IF(ISNUMBER(E52*G52/100),E52*G52/100,0)","v":0}]
[null,null,{"$f":"'BNB-System'!F49","v":"Winter"},null,null,null,null,null,null,null,null,null,null,{"$f":"'BNB-System'!K50","v":0}]
[null,null,{"$f":"'BNB-System'!F50","v":"Operative Temperatur"},{"$f":"'BNB-System'!G50","v":10}]
[null,null,{"$f":"'BNB-System'!F51","v":" Zugluft"},{"$f":"'BNB-System'!G51","v":10}]
[null,null,{"$f":"'BNB-System'!F52","v":"Stahlungstemperaturasymmetrie und Fußbodentemperatur"},{"$f":"'BNB-System'!G52","v":10}]
[null,null,{"$f":"'BNB-System'!F53","v":"Luftfeuchte"},{"$f":"'BNB-System'!G53","v":10}]
[null,null,{"$f":"'BNB-System'!F54","v":"Sommer"}]
[null,null,{"$f":"'BNB-System'!F55","v":"Operative Temperatur"},{"$f":"'BNB-System'!G55","v":30}]
[null,null,{"$f":"'BNB-System'!F56","v":" Zugluft"},{"$f":"'BNB-System'!G56","v":10}]
[null,null,{"$f":"'BNB-System'!F57","v":"Stahlungstemperaturasymmetrie und Fußbodentemperatur"},{"$f":"'BNB-System'!G57","v":10}]
[null,null,{"$f":"'BNB-System'!F58","v":"Luftfeuchte"},{"$f":"'BNB-System'!G58","v":10},null,null,null,null,null,null,null,null,null,{"$f":"'BNB-System'!#REF!","v":{"$error":"#REF!"}}]
[null,{"$f":"'BNB-System'!E59","v":" 3.1.3"},{"$f":"'BNB-System'!F59","v":"Innenraumlufthygiene"},{"$f":"'BNB-System'!G59","v":100},{"$f":"'BNB-System'!J59","v":2.9347826086956522E-2},null,{"$f":"IF(SUM(G64:G65)>100,100,SUM(G64:G65))","v":0},null,null,null,null,null,null,{"$f":"'BNB-System'!K59","v":300},{"$f":"IF(ISNUMBER(E63*G63/100),E63*G63/100,0)","v":0}]
[null,null,{"$f":"'BNB-System'!F60","v":"Flüchtige organische Stoffe (VOC) und Formaldehyd"},{"$f":"'BNB-System'!G60","v":50},null,null,null,null,null,null,null,null,null,{"$f":"'BNB-System'!K60","v":0}]
[null,null,{"$f":"'BNB-System'!F61","v":"Personenbezogene Lüftungsrate"},{"$f":"'BNB-System'!G61","v":50},null,null,null,null,null,null,null,null,null,{"$f":"'BNB-System'!K61","v":0}]
[null,{"$f":"'BNB-System'!E62","v":" 3.1.4"},{"$f":"'BNB-System'!F62","v":"Akustischer Komfort"},{"$f":"'BNB-System'!G62","v":100},{"$f":"'BNB-System'!J62","v":9.7826086956521747E-3},null,{"$f":"IF(SUM(G67:G75)>100,100,SUM(G67:G75))","v":0},null,null,null,null,null,null,{"$f":"'BNB-System'!K62","v":100},{"$f":"IF(ISNUMBER(E66*G66/100),E66*G66/100,0)","v":0}]
[null,null,{"$f":"'BNB-System'!F63","v":"Räume Gruppe A"},null,null,null,null,null,null,null,null,null,null,{"$f":"'BNB-System'!K63","v":0}]
[null,null,{"$f":"'BNB-System'!F64","v":"Musik "},{"$f":"'BNB-System'!G64","v":100}]
[null,null,{"$f":"'BNB-System'!F65","v":"Sprache/ Vortrag"},{"$f":"'BNB-System'!G65","v":100},null,null,null,null,null,null,null,null,null,{"$f":"'BNB-System'!K65","v":0}]
[null,null,{"$f":"'BNB-System'!F66","v":"Unterricht/ Kommunikation"},{"$f":"'BNB-System'!G66","v":100},null,null,null,null,null,null,null,null,null,{"$f":"'BNB-System'!K66","v":0}]
[null,null,{"$f":"'BNB-System'!F67","v":"Sport"},{"$f":"'BNB-System'!G67","v":100},null,null,null,null,null,null,null,null,null,{"$f":"'BNB-System'!K67","v":0}]
[null,null,{"$f":"'BNB-System'!F68","v":"Räume Gruppe B"}]
[null,null,{"$f":"'BNB-System'!F69","v":"Einzel- und Mehrpersonenbüros bis 100 m³"},{"$f":"'BNB-System'!G69","v":100},null,null,null,null,null,null,null,null,null,{"$f":"'BNB-System'!K69","v":0}]
[null,null,{"$f":"'BNB-System'!F70","v":"Mehrpersonenbüros über 100 m³"},{"$f":"'BNB-System'!G70","v":100},null,null,null,null,null,null,null,null,null,{"$f":"'BNB-System'!K70","v":0}]
[null,null,{"$f":"'BNB-System'!F71","v":"Weitere Räume"},{"$f":"'BNB-System'!G71","v":100},null,null,null,null,null,null,null,null,null,{"$f":"'BNB-System'!K71","v":0}]
[null,{"$f":"'BNB-System'!E72","v":" 3.1.5"},{"$f":"'BNB-System'!F72","v":"Visueller Komfort"},{"$f":"'BNB-System'!G72","v":100},{"$f":"'BNB-System'!J72","v":2.9347826086956522E-2},null,{"$f":"IF(SUM(G77:G83)>100,100,SUM(G77:G83))","v":0},null,null,null,null,null,null,{"$f":"'BNB-System'!K72","v":300},{"$f":"IF(ISNUMBER(E76*G76/100),E76*G76/100,0)","v":0}]
[null,null,{"$f":"'BNB-System'!F73","v":"Tageslichtverfügbarkeit Gesamtgebäude"},{"$f":"'BNB-System'!G73","v":15},null,null,null,null,null,null,null,null,null,{"$f":"'BNB-System'!K73","v":0}]
[null,null,{"$f":"'BNB-System'!F74","v":"Tageslichtverfügbarkeit ständige Arbeitsplätze"},{"$f":"'BNB-System'!G74","v":15},null,null,null,null,null,null,null,null,null,{"$f":"'BNB-System'!K74","v":0}]
[null,null,{"$f":"'BNB-System'!F75","v":"Nachweis de Sichtverbindung außen"},{"$f":"'BNB-System'!G75","v":15},null,null,null,null,null,null,null,null,null,{"$f":"'BNB-System'!K75","v":0}]
[null,null,{"$f":"'BNB-System'!F76","v":"Blendfreiheit Tageslicht"},{"$f":"'BNB-System'!G76","v":15},null,null,null,null,null,null,null,null,null,{"$f":"'BNB-System'!K76","v":0}]
[null,null,{"$f":"'BNB-System'!F77","v":"Blendfreiheit  Kunstlicht"},{"$f":"'BNB-System'!G77","v":10},null,null,null,null,null,null,null,null,null,{"$f":"'BNB-System'!K77","v":0}]
[null,null,{"$f":"'BNB-System'!F78","v":"Lichtverteilung"},{"$f":"'BNB-System'!G78","v":15},null,null,null,null,null,null,null,null,null,{"$f":"'BNB-System'!K78","v":0}]
[null,null,{"$f":"'BNB-System'!F79","v":"Farbwiedergabe"},{"$f":"'BNB-System'!G79","v":15},null,null,null,null,null,null,null,null,null,{"$f":"'BNB-System'!K79","v":0}]
[null,{"$f":"'BNB-System'!E80","v":" 3.1.6"},{"$f":"'BNB-System'!F80","v":"Einflussnahmemöglichkeiten durch Nutzer"},{"$f":"'BNB-System'!G80","v":100},{"$f":"'BNB-System'!J80","v":1.9565217391304349E-2},null,{"$f":"IF(SUM(G85:G92)>100,100,SUM(G85:G92))","v":0},null,null,null,null,null,null,{"$f":"'BNB-System'!K80","v":200},{"$f":"IF(ISNUMBER(E84*G84/100),E84*G84/100,0)","v":0}]
[null,null,{"$f":"'BNB-System'!F81","v":"Lüftung"},{"$f":"'BNB-System'!G81","v":10},null,null,null,null,null,null,null,null,null,{"$f":"'BNB-System'!K81","v":0}]
[null,null,{"$f":"'BNB-System'!F82","v":"Sonnenschutz"},{"$f":"'BNB-System'!G82","v":10},null,null,null,null,null,null,null,null,null,{"$f":"'BNB-System'!K82","v":0}]
[null,null,{"$f":"'BNB-System'!F83","v":"Blendschutz"},{"$f":"'BNB-System'!G83","v":10},null,null,null,null,null,null,null,null,null,{"$f":"'BNB-System'!K83","v":0}]
[null,null,{"$f":"'BNB-System'!F84","v":"Temperaturen während der Heizperiode"},{"$f":"'BNB-System'!G84","v":10},null,null,null,null,null,null,null,null,null,{"$f":"'BNB-System'!K84","v":0}]
[null,null,{"$f":"'BNB-System'!F85","v":"Temperaturen außerhalb der Heizperiode"},{"$f":"'BNB-System'!G85","v":15},null,null,null,null,null,null,null,null,null,{"$f":"'BNB-System'!K85","v":0}]
[null,null,{"$f":"'BNB-System'!F86","v":"Steuerung von Tageslicht"},{"$f":"'BNB-System'!G86","v":15},null,null,null,null,null,null,null,null,null,{"$f":"'BNB-System'!K86","v":0}]
[null,null,{"$f":"'BNB-System'!F87","v":"Steuerung von  Kunstlicht"},{"$f":"'BNB-System'!G87","v":15},null,null,null,null,null,null,null,null,null,{"$f":"'BNB-System'!K87","v":0}]
[null,null,{"$f":"'BNB-System'!F88","v":"Bedienfreundlichkeit"},{"$f":"'BNB-System'!G88","v":15},null,null,null,null,null,null,null,null,null,{"$f":"'BNB-System'!K88","v":0}]
[null,{"$f":"'BNB-System'!E89","v":" 3.1.7"},{"$f":"'BNB-System'!F89","v":"Aufenthaltsqualitäten"},{"$f":"'BNB-System'!G89","v":100},{"$f":"'BNB-System'!J89","v":9.7826086956521747E-3},null,{"$f":"IF(SUM(G94:G106)>100,100,SUM(G94:G106))","v":0},null,null,null,null,null,null,{"$f":"'BNB-System'!K89","v":100},{"$f":"IF(ISNUMBER(E93*G93/100),E93*G93/100,0)","v":0}]
[null,null,{"$f":"'BNB-System'!F90","v":"Anzahl der Aufenthaltsbereiche im Gebäude"},{"$f":"'BNB-System'!G90","v":10},null,null,null,null,null,null,null,null,null,{"$f":"'BNB-System'!K90","v":0}]
[null,null,{"$f":"'BNB-System'!F91","v":"Anzahl der Aufenthaltsbereiche im Außenraum"},{"$f":"'BNB-System'!G91","v":10},null,null,null,null,null,null,null,null,null,{"$f":"'BNB-System'!K91","v":0}]
[null,null,{"$f":"'BNB-System'!F92","v":"Anzahl der Sitzmöglichkeiten in diesen Bereichen"},{"$f":"'BNB-System'!G92","v":40},null,null,null,null,null,null,null,null,null,{"$f":"'BNB-System'!K92","v":0}]
[null,null,{"$f":"'BNB-System'!F93","v":"uneingeschränkte Nutzbarkeit der Erschließungsflächen als Aufenthaltsflächen"},{"$f":"'BNB-System'!G93","v":10},null,null,null,null,null,null,null,null,null,{"$f":"'BNB-System'!K93","v":0}]
[null,null,{"$f":"'BNB-System'!F94","v":"Sichtbeziehungen"},{"$f":"'BNB-System'!G94","v":10},null,null,null,null,null,null,null,null,null,{"$f":"'BNB-System'!K94","v":0}]
[null,null,{"$f":"'BNB-System'!F95","v":"Außenbezug"},{"$f":"'BNB-System'!G95","v":10},null,null,null,null,null,null,null,null,null,{"$f":"'BNB-System'!K95","v":0}]
[null,null,{"$f":"'BNB-System'!F96","v":"Ausstattungsqualität der Aufenthaltsbereiche im Außenraum"},null,null,null,null,null,null,null,null,null,null,{"$f":"'BNB-System'!K96","v":0}]
[null,null,{"$f":"'BNB-System'!F97","v":"Beleuchtung"},{"$f":"'BNB-System'!G97","v":2},null,null,null,null,null,null,null,null,null,{"$f":"'BNB-System'!K97","v":0}]
[null,null,{"$f":"'BNB-System'!F98","v":"Windschutz"},{"$f":"'BNB-System'!G98","v":2},null,null,null,null,null,null,null,null,null,{"$f":"'BNB-System'!K98","v":0}]
[null,null,{"$f":"'BNB-System'!F99","v":"Überdachung / Regenschutz"},{"$f":"'BNB-System'!G99","v":2},null,null,null,null,null,null,null,null,null,{"$f":"'BNB-System'!K99","v":0}]
[null,null,{"$f":"'BNB-System'!F100","v":"Sonnenschutz"},{"$f":"'BNB-System'!G100","v":2},null,null,null,null,null,null,null,null,null,{"$f":"'BNB-System'!K100","v":0}]
[null,null,{"$f":"'BNB-System'!F101","v":"Stromversorgung für Außenarbeitsplätze"},{"$f":"'BNB-System'!G101","v":1},null,null,null,null,null,null,null,null,null,{"$f":"'BNB-System'!K101","v":0}]
[null,null,{"$f":"'BNB-System'!F102","v":"Bepflanzung / Begrünung"},{"$f":"'BNB-System'!G102","v":1},null,null,null,null,null,null,null,null,null,{"$f":"'BNB-System'!K102","v":0}]
[null,{"$f":"'BNB-System'!E103","v":" 3.1.8"},{"$f":"'BNB-System'!F103","v":"Sicherheit"},{"$f":"'BNB-System'!G103","v":100},{"$f":"'BNB-System'!J103","v":9.7826086956521747E-3},null,null,null,null,null,null,null,null,{"$f":"'BNB-System'!K103","v":100},{"$f":"IF(ISNUMBER(E107*G107/100),E107*G107/100,0)","v":0}]
[null,null,{"$f":"'BNB-System'!F104","v":"Funktionalität"},null,null,null,null,null,null,null,null,null,null,{"$f":"'BNB-System'!K104","v":0}]
[null,{"$f":"'BNB-System'!E105","v":" 3.2.1"},{"$f":"'BNB-System'!F105","v":"Barrierefreiheit"},{"$f":"'BNB-System'!G105","v":100},{"$f":"'BNB-System'!J105","v":1.9565217391304349E-2},null,null,null,null,null,null,null,null,{"$f":"'BNB-System'!K105","v":200},{"$f":"IF(ISNUMBER(E109*G109/100),E109*G109/100,0)","v":0}]
[null,{"$f":"'BNB-System'!E106","v":" 3.2.4"},{"$f":"'BNB-System'!F106","v":"Zugänglichkeit"},{"$f":"'BNB-System'!G106","v":100},{"$f":"'BNB-System'!J106","v":1.9565217391304349E-2},null,{"$f":"IF(SUM(G111:G115)>100,100,SUM(G111:G115))","v":0},null,null,null,null,null,null,{"$f":"'BNB-System'!K106","v":200},0]
[null,null,{"$f":"'BNB-System'!F107","v":"Grundsätzliche Zugänglichkeit des Gebäudes"},{"$f":"'BNB-System'!G107","v":25},null,null,null,null,null,null,null,null,null,{"$f":"'BNB-System'!K107","v":0}]
[null,null,{"$f":"'BNB-System'!F108","v":"Öffnung der Außenanlagen für die Öffentlichkeit"},{"$f":"'BNB-System'!G108","v":25},null,null,null,null,null,null,null,null,null,{"$f":"'BNB-System'!K108","v":0}]
[null,null,{"$f":"'BNB-System'!F109","v":"Öffnung gebäudeinterner Einrichtungen für die Öffentlichkeit"},{"$f":"'BNB-System'!G109","v":25},null,null,null,null,null,null,null,null,null,{"$f":"'BNB-System'!K109","v":0}]
[null,null,{"$f":"'BNB-System'!F110","v":"Möglichkeit der Anmietung von Räumlichkeiten "},{"$f":"'BNB-System'!G110","v":15},null,null,null,null,null,null,null,null,null,{"$f":"'BNB-System'!K110","v":0}]
[null,null,{"$f":"'BNB-System'!F111","v":"Nutzungsvielfalt der öffentlich zugänglichen Bereiche"},{"$f":"'BNB-System'!G111","v":10},null,null,null,null,null,null,null,null,null,{"$f":"'BNB-System'!K111","v":0}]
[null,{"$f":"'BNB-System'!E112","v":" 3.2.5"},{"$f":"'BNB-System'!F112","v":"Mobilitätsinfrastruktur"},{"$f":"'BNB-System'!G112","v":100},{"$f":"'BNB-System'!J112","v":9.7826086956521747E-3},null,{"$f":"IF(SUM(G117:G119)>100,100,SUM(G117:G119))","v":0},null,null,null,null,null,null,{"$f":"'BNB-System'!K112","v":100},{"$f":"IF(ISNUMBER(E116*G116/100),E116*G116/100,0)","v":0}]
[null,null,{"$f":"'BNB-System'!F113","v":"Anzahl der Fahrradstellplätze"},{"$f":"'BNB-System'!G113","v":40},null,null,null,null,null,null,null,null,null,{"$f":"'BNB-System'!K113","v":0}]
[null,null,{"$f":"'BNB-System'!F114","v":"Anzahl der Lademöglichkeiten und Carsharing-Stellplätze"},{"$f":"'BNB-System'!G114","v":20},null,null,null,null,null,null,null,null,null,{"$f":"'BNB-System'!K114","v":0}]
[null,null,{"$f":"'BNB-System'!F115","v":"Qualitative Anforderungen an Fahrradstellplätze"},{"$f":"'BNB-System'!G115","v":60},null,null,null,null,null,null,null,null,null,{"$f":"'BNB-System'!K115","v":0}]
[null,null,{"$f":"'BNB-System'!F116","v":"Sicherung der Gestaltungsqualität"},null,null,null,null,null,null,null,null,null,null,{"$f":"'BNB-System'!K116","v":0}]
[null,{"$f":"'BNB-System'!E117","v":" 3.3.1"},{"$f":"'BNB-System'!F117","v":"Gestalterische und städtebauliche Qualität"},{"$f":"'BNB-System'!G117","v":100},{"$f":"'BNB-System'!J117","v":2.9347826086956522E-2},null,{"$f":"IF(AND(G122>0,G126<=G127),SUM(G122:G125),IF(AND(G122>0,G127<=G126),SUM(G122:G125),IF(G126>0,G126,IF(G127>0,G127,))))","v":0},null,null,null,null,null,null,{"$f":"'BNB-System'!K117","v":300},{"$f":"IF(ISNUMBER(E121*G121/100),E121*G121/100,0)","v":0}]
[null,null,{"$f":"'BNB-System'!F118","v":"Erfassung und Fortentwicklung der gestalterischen und städtebaulichen Qualität des Bestandsgebäudes"},{"$f":"'BNB-System'!G118","v":40},null,null,null,null,null,null,null,null,null,{"$f":"'BNB-System'!K118","v":0}]
[null,null,{"$f":"'BNB-System'!F119","v":"Wettbewerbsverfahren"},{"$f":"'BNB-System'!G119","v":35},null,null,null,null,null,null,null,null,null,{"$f":"'BNB-System'!K119","v":0}]
[null,null,{"$f":"'BNB-System'!F120","v":"Ausführung des Entwurfs eines der Preisträger"},{"$f":"'BNB-System'!G120","v":20},null,null,null,null,null,null,null,null,null,{"$f":"'BNB-System'!K120","v":0}]
[null,null,{"$f":"'BNB-System'!F121","v":"Beauftragung des Planungsteams"},{"$f":"'BNB-System'!G121","v":5},null,null,null,null,null,null,null,null,null,{"$f":"'BNB-System'!K121","v":0}]
[null,null,{"$f":"'BNB-System'!F122","v":"Auszeichnung mit einem Architekturpreis"},{"$f":"'BNB-System'!G122","v":40},null,null,null,null,null,null,null,null,null,{"$f":"'BNB-System'!K122","v":0}]
[null,null,{"$f":"'BNB-System'!F123","v":"Unabhängiges Expertengremium"},{"$f":"'BNB-System'!G123","v":30},null,null,null,null,null,null,null,null,null,{"$f":"'BNB-System'!K123","v":0}]
[null,{"$f":"'BNB-System'!E124","v":" 3.3.2"},{"$f":"'BNB-System'!F124","v":"Kunst am Bau "},{"$f":"'BNB-System'!G124","v":100},{"$f":"'BNB-System'!J124","v":9.7826086956521747E-3},null,{"$f":"IF(SUM(G129:G132)>100,100,SUM(G129:G132))","v":0},null,null,null,null,null,null,{"$f":"'BNB-System'!K124","v":100},{"$f":"IF(ISNUMBER(E128*G128/100),E128*G128/100,0)","v":0}]
[null,null,{"$f":"'BNB-System'!F125","v":"Mindestanforderung"},{"$f":"'BNB-System'!G125","v":10},null,null,null,null,null,null,null,null,null,{"$f":"'BNB-System'!K125","v":0}]
[null,null,{"$f":"'BNB-System'!F126","v":"Bereitstellung von Mitteln im Rahmen der Bauaufgabe"},{"$f":"'BNB-System'!G126","v":30},null,null,null,null,null,null,null,null,null,{"$f":"'BNB-System'!K126","v":0}]
[null,null,{"$f":"'BNB-System'!F127","v":"Umsetzung des Leitfadens Kunst am Bau"},{"$f":"'BNB-System'!G127","v":40},null,null,null,null,null,null,null,null,null,{"$f":"'BNB-System'!K127","v":0}]
[null,null,{"$f":"'BNB-System'!F128","v":"Öffentlichkeitsarbeit, Rezeption  der Kunst am Bau"},{"$f":"'BNB-System'!G128","v":20},null,null,null,null,null,null,null,null,null,{"$f":"'BNB-System'!K128","v":0}]
[null,null,null,null,null,null,null,null,null,null,null,null,null,{"$f":"'BNB-System'!K129","v":0}]
[null,{"$f":"'BNB-System'!E130","v":"Technische Qualität"},null,null,{"$f":"'BNB-System'!J130","v":0.22500000000000001},null,{"$f":"G137*(E137/100)+G142*(E142/100)+G149*(E149/100)+G159*(E159/100)+G160*(E160/100)+G161*(E161/100)","v":0},null,null,null,null,null,null,{"$f":"'BNB-System'!K130","v":1000}]
[null,null,null,null,null,null,null,null,null,null,null,null,null,{"$f":"'BNB-System'!K131","v":0}]
[null,null,{"$f":"'BNB-System'!F132","v":"technische Ausführung"},null,null,null,null,null,null,null,null,null,null,{"$f":"'BNB-System'!K132","v":0}]
[null,{"$f":"'BNB-System'!E133","v":" 4.1.1"},{"$f":"'BNB-System'!F133","v":"Schallschutz "},{"$f":"'BNB-System'!G133","v":100},{"$f":"'BNB-System'!J133","v":4.5000000000000005E-2},null,{"$f":"IF(SUM(G138:G141)>100,100,SUM(G138:G141))","v":0},null,null,null,null,null,null,{"$f":"'BNB-System'!K133","v":200},{"$f":"IF(ISNUMBER(E137*G137/100),E137*G137/100,0)","v":0}]
[null,null,{"$f":"'BNB-System'!F134","v":"Luftschallschutz gegen Außenlärm"},{"$f":"'BNB-System'!G134","v":20},null,null,null,null,null,null,null,null,null,{"$f":"'BNB-System'!K134","v":0}]
[null,null,{"$f":"'BNB-System'!F135","v":"Luftschallschutz gegenüber fremden und eigenen Arbeitsbereichen"},{"$f":"'BNB-System'!G135","v":30},null,null,null,null,null,null,null,null,null,{"$f":"'BNB-System'!K135","v":0}]
[null,null,{"$f":"'BNB-System'!F136","v":"Trittschallschutz gegenüber fremden und eigenen Arbeitsbereichen"},{"$f":"'BNB-System'!G136","v":30},null,null,null,null,null,null,null,null,null,{"$f":"'BNB-System'!K136","v":0}]
[null,null,{"$f":"'BNB-System'!F137","v":"Schallschutz gegenüber haustechnischen Anlagen"},{"$f":"'BNB-System'!G137","v":20},null,null,null,null,null,null,null,null,null,{"$f":"'BNB-System'!K137","v":0}]
[null,{"$f":"'BNB-System'!E138","v":" 4.1.2"},{"$f":"'BNB-System'!F138","v":"Wärme- und Tauwasserschutz "},{"$f":"'BNB-System'!G138","v":100},{"$f":"'BNB-System'!J138","v":4.5000000000000005E-2},null,{"$f":"IF(SUM(G143:G148)>100,100,SUM(G143:G148))","v":0},null,null,null,null,null,null,{"$f":"'BNB-System'!K138","v":200},{"$f":"IF(ISNUMBER(E142*G142/100),E142*G142/100,0)","v":0}]
[null,null,{"$f":"'BNB-System'!F139","v":"Mittlere Wärmeduchgangskoeffizienten"},{"$f":"'BNB-System'!G139","v":30},null,null,null,null,null,null,null,null,null,{"$f":"'BNB-System'!K139","v":0}]
[null,null,{"$f":"'BNB-System'!F140","v":"Wärmebrückenzuschlag"},{"$f":"'BNB-System'!G140","v":15},null,null,null,null,null,null,null,null,null,{"$f":"'BNB-System'!K140","v":0}]
[null,null,{"$f":"'BNB-System'!F141","v":"Klassen der Luftdurchlässigkeit (Fugendurchlässigkeit)"},{"$f":"'BNB-System'!G141","v":15},null,null,null,null,null,null,null,null,null,{"$f":"'BNB-System'!K141","v":0}]
[null,null,{"$f":"'BNB-System'!F142","v":"Tauwasserbildung"},{"$f":"'BNB-System'!G142","v":10},null,null,null,null,null,null,null,null,null,{"$f":"'BNB-System'!K142","v":0}]
[null,null,{"$f":"'BNB-System'!F143","v":"Luftwechsel"},{"$f":"'BNB-System'!G143","v":15},null,null,null,null,null,null,null,null,null,{"$f":"'BNB-System'!K143","v":0}]
[null,null,{"$f":"'BNB-System'!F144","v":"Sonneneintragswert"},{"$f":"'BNB-System'!G144","v":15},null,null,null,null,null,null,null,null,null,{"$f":"'BNB-System'!K144","v":0}]
[null,{"$f":"'BNB-System'!E145","v":" 4.1.3"},{"$f":"'BNB-System'!F145","v":"Reinigungs- und Instandhaltungsfreundlichkeit"},{"$f":"'BNB-System'!G145","v":100},{"$f":"'BNB-System'!J145","v":4.5000000000000005E-2},null,{"$f":"IF(SUM(G150:G158)>100,100,SUM(G150:G158))","v":0},null,null,null,null,null,null,{"$f":"'BNB-System'!K145","v":200},{"$f":"IF(ISNUMBER(E149*G149/100),E149*G149/100,0)","v":0}]
[null,null,{"$f":"'BNB-System'!F146","v":"Tragkonstruktion"},{"$f":"'BNB-System'!G146","v":15},null,null,null,null,null,null,null,null,null,{"$f":"'BNB-System'!K146","v":0}]
[null,null,{"$f":"'BNB-System'!F147","v":"Zugänglichkeit der Außenglasflächen"},{"$f":"'BNB-System'!G147","v":15},null,null,null,null,null,null,null,null,null,{"$f":"'BNB-System'!K147","v":0}]
[null,null,{"$f":"'BNB-System'!F148","v":"Außenbauteile"},{"$f":"'BNB-System'!G148","v":9},null,null,null,null,null,null,null,null,null,{"$f":"'BNB-System'!K148","v":0}]
[null,null,{"$f":"'BNB-System'!F149","v":"Bodenbelag"},{"$f":"'BNB-System'!G149","v":9},null,null,null,null,null,null,null,null,null,{"$f":"'BNB-System'!K149","v":0}]
[null,null,{"$f":"'BNB-System'!F150","v":"Schmutzfangzone"},{"$f":"'BNB-System'!G150","v":9},null,null,null,null,null,null,null,null,null,{"$f":"'BNB-System'!K150","v":0}]
[null,null,{"$f":"'BNB-System'!F151","v":"Fußbodenleisten"},{"$f":"'BNB-System'!G151","v":9},null,null,null,null,null,null,null,null,null,{"$f":"'BNB-System'!K151","v":0}]
[null,null,{"$f":"'BNB-System'!F152","v":"Hindernisfreie Grundrissgestaltung"},{"$f":"'BNB-System'!G152","v":9},null,null,null,null,null,null,null,null,null,{"$f":"'BNB-System'!K152","v":0}]
[null,null,{"$f":"'BNB-System'!F153","v":"Einbauten"},{"$f":"'BNB-System'!G153","v":10},null,null,null,null,null,null,null,null,null,{"$f":"'BNB-System'!K153","v":0}]
[null,null,{"$f":"'BNB-System'!F154","v":"Zugänglichkeit der Innenglasflächen "},{"$f":"'BNB-System'!G154","v":15},null,null,null,null,null,null,null,null,null,{"$f":"'BNB-System'!K154","v":0}]
[null,{"$f":"'BNB-System'!E155","v":" 4.1.4"},{"$f":"'BNB-System'!F155","v":"Rückbau, Trennung und Verwertung"},{"$f":"'BNB-System'!G155","v":100},{"$f":"'BNB-System'!J155","v":4.5000000000000005E-2},null,null,null,null,null,null,null,null,{"$f":"'BNB-System'!K155","v":200},{"$f":"IF(ISNUMBER(E159*G159/100),E159*G159/100,0)","v":0}]
[null,{"$f":"'BNB-System'!E156","v":" 4.1.5"},{"$f":"'BNB-System'!F156","v":"Widerstandsfähigkeit gegen Naturgefahren"},{"$f":"'BNB-System'!G156","v":100},{"$f":"'BNB-System'!J156","v":2.2500000000000003E-2},null,null,null,null,null,null,null,null,{"$f":"'BNB-System'!K156","v":100},0]
[null,{"$f":"'BNB-System'!E157","v":" 4.1.6"},{"$f":"'BNB-System'!F157","v":"Bedienungs- und Instandhaltungsfreundlichkeit der TGA"},{"$f":"'BNB-System'!G157","v":100},{"$f":"'BNB-System'!J157","v":2.2500000000000003E-2},null,null,null,null,null,null,null,null,{"$f":"'BNB-System'!K157","v":100},{"$f":"IF(ISNUMBER(E161*G161/100),E161*G161/100,0)","v":0}]
[null,null,null,null,null,null,null,null,null,null,null,null,null,{"$f":"'BNB-System'!K158","v":0}]
[null,{"$f":"'BNB-System'!E159","v":"Prozessqualität"},null,null,{"$f":"'BNB-System'!J159","v":0.1},null,{"$f":"G166*(E166/100)+G170*(E170/100)+G176*(E176/100)+G192*(E192/100)+G193*(E193/100)+G213*(E213/100)+G218*(E218/100)+G221*(E221/100)","v":0},null,null,null,null,null,null,{"$f":"'BNB-System'!K159","v":2500}]
[null,null,null,null,null,null,null,null,null,null,null,null,null,{"$f":"'BNB-System'!K160","v":0}]
[null,null,{"$f":"'BNB-System'!F161","v":"Planung"},null,null,null,null,null,null,null,null,null,null,{"$f":"'BNB-System'!K161","v":0}]
[null,{"$f":"'BNB-System'!E162","v":" 5.1.1"},{"$f":"'BNB-System'!F162","v":"Projektvorbereitung"},{"$f":"'BNB-System'!G162","v":100},{"$f":"'BNB-System'!J162","v":1.2E-2},null,{"$f":"IF(SUM(G167:G169)>100,100,SUM(G167:G169))","v":0},null,null,null,null,null,null,{"$f":"'BNB-System'!K162","v":300},{"$f":"IF(ISNUMBER(E166*G166/100),E166*G166/100,0)","v":0}]
[null,null,{"$f":"'BNB-System'!F163","v":"Bedarfsplanung oder vergleichbare Planung"},{"$f":"'BNB-System'!G163","v":35},null,null,null,null,null,null,null,null,null,{"$f":"'BNB-System'!K163","v":0}]
[null,null,{"$f":"'BNB-System'!F164","v":"Zielvereinbarung"},{"$f":"'BNB-System'!G164","v":35},null,null,null,null,null,null,null,null,null,{"$f":"'BNB-System'!K164","v":0}]
[null,null,{"$f":"'BNB-System'!F165","v":"Architektenwettbewerb"},{"$f":"'BNB-System'!G165","v":30},null,null,null,null,null,null,null,null,null,{"$f":"'BNB-System'!K165","v":0}]
[null,{"$f":"'BNB-System'!E166","v":" 5.1.2"},{"$f":"'BNB-System'!F166","v":"Integrale Planung"},{"$f":"'BNB-System'!G166","v":100},{"$f":"'BNB-System'!J166","v":1.2E-2},null,{"$f":"IF(SUM(G171:G175)>100,100,SUM(G171:G175))","v":0},null,null,null,null,null,null,{"$f":"'BNB-System'!K166","v":300},{"$f":"IF(ISNUMBER(E170*G170/100),E170*G170/100,0)","v":0}]
[null,null,{"$f":"'BNB-System'!F167","v":"Integrales Planungsteam"},{"$f":"'BNB-System'!G167","v":30},null,null,null,null,null,null,null,null,null,{"$f":"'BNB-System'!K167","v":0}]
[null,null,{"$f":"'BNB-System'!F168","v":"Qualifikation des Planungsteams"},{"$f":"'BNB-System'!G168","v":20},null,null,null,null,null,null,null,null,null,{"$f":"'BNB-System'!K168","v":0}]
[null,null,{"$f":"'BNB-System'!F169","v":"Integraler Planungsprozess"},{"$f":"'BNB-System'!G169","v":20},null,null,null,null,null,null,null,null,null,{"$f":"'BNB-System'!K169","v":0}]
[null,null,{"$f":"'BNB-System'!F170","v":"Nutzerbeteiligung"},{"$f":"'BNB-System'!G170","v":20},null,null,null,null,null,null,null,null,null,{"$f":"'BNB-System'!K170","v":0}]
[null,null,{"$f":"'BNB-System'!F171","v":"Öffentlichkeitsbeteiligung"},{"$f":"'BNB-System'!G171","v":10},null,null,null,null,null,null,null,null,null,{"$f":"'BNB-System'!K171","v":0}]
[null,{"$f":"'BNB-System'!E172","v":" 5.1.3"},{"$f":"'BNB-System'!F172","v":"Komplexität und Optimierung der Planung"},{"$f":"'BNB-System'!G172","v":100},{"$f":"'BNB-System'!J172","v":1.2E-2},null,{"$f":"IF(SUM(G177:G191)>100,100,SUM(G177:G191))","v":0},null,null,null,null,null,null,{"$f":"'BNB-System'!K172","v":300},{"$f":"IF(ISNUMBER(E176*G176/100),E176*G176/100,0)","v":0}]
[null,null,{"$f":"'BNB-System'!F173","v":"SiGe-Plan"},{"$f":"'BNB-System'!G173","v":10},null,null,null,null,null,null,null,null,null,{"$f":"'BNB-System'!K173","v":0}]
[null,null,{"$f":"'BNB-System'!F174","v":"Ver- und Entsiegelungskonzept"},{"$f":"'BNB-System'!G174","v":10},null,null,null,null,null,null,null,null,null,{"$f":"'BNB-System'!K174","v":0}]
[null,null,{"$f":"'BNB-System'!F175","v":"Energiekonzept"},{"$f":"'BNB-System'!G175","v":15},null,null,null,null,null,null,null,null,null,{"$f":"'BNB-System'!K175","v":0}]
[null,null,{"$f":"'BNB-System'!F176","v":"Mess- und Monitoringkonzept"},{"$f":"'BNB-System'!G176","v":15},null,null,null,null,null,null,null,null,null,{"$f":"'BNB-System'!K176","v":0}]
[null,null,{"$f":"'BNB-System'!F177","v":"Wasserkonzept"},{"$f":"'BNB-System'!G177","v":10},null,null,null,null,null,null,null,null,null,{"$f":"'BNB-System'!K177","v":0}]
[null,null,{"$f":"'BNB-System'!F178","v":"Konzept zur Vermeidung von Umwelt- und Gesundheitsrisiken aus Bauprodukten"},{"$f":"'BNB-System'!G178","v":10},null,null,null,null,null,null,null,null,null,{"$f":"'BNB-System'!K178","v":0}]
[null,null,{"$f":"'BNB-System'!F179","v":"Lüftungskonzept"},{"$f":"'BNB-System'!G179","v":10},null,null,null,null,null,null,null,null,null,{"$f":"'BNB-System'!K179","v":0}]
[null,null,{"$f":"'BNB-System'!F180","v":"Abfallkonzept / Wertstoffkonzept"},{"$f":"'BNB-System'!G180","v":5},null,null,null,null,null,null,null,null,null,{"$f":"'BNB-System'!K180","v":0}]
[null,null,{"$f":"'BNB-System'!F181","v":"Tages- / Kunstlichtoptimierung"},{"$f":"'BNB-System'!G181","v":10},null,null,null,null,null,null,null,null,null,{"$f":"'BNB-System'!K181","v":0}]
[null,null,{"$f":"'BNB-System'!F182","v":"Konzept zur Sicherung der Reinigungs- und Instandhaltungsfreundlichkeit"},{"$f":"'BNB-System'!G182","v":10},null,null,null,null,null,null,null,null,null,{"$f":"'BNB-System'!K182","v":0}]
[null,null,{"$f":"'BNB-System'!F183","v":"Anpassbarkeits-, Rückbau- und Recyclingkonzept"},{"$f":"'BNB-System'!G183","v":10},null,null,null,null,null,null,null,null,null,{"$f":"'BNB-System'!K183","v":0}]
[null,null,{"$f":"'BNB-System'!F184","v":"Konzept zur Vermeidung und Beherrschung von Risiken"},{"$f":"'BNB-System'!G184","v":10},null,null,null,null,null,null,null,null,null,{"$f":"'BNB-System'!K184","v":0}]
[null,null,{"$f":"'BNB-System'!F185","v":"Sonstige Konzepte zum Nachhaltigen Bauen"},{"$f":"'BNB-System'!G185","v":10},null,null,null,null,null,null,null,null,null,{"$f":"'BNB-System'!K185","v":0}]
[null,null,{"$f":"'BNB-System'!F186","v":"Prüfung der Planungsunterlagen durch unabhängige Dritte"},{"$f":"'BNB-System'!G186","v":5},null,null,null,null,null,null,null,null,null,{"$f":"'BNB-System'!K186","v":0}]
[null,null,{"$f":"'BNB-System'!F187","v":"Durchführung von Variantenvergleichen"},{"$f":"'BNB-System'!G187","v":10},null,null,null,null,null,null,null,null,null,{"$f":"'BNB-System'!K187","v":0}]
[null,{"$f":"'BNB-System'!E188","v":" 5.1.4"},{"$f":"'BNB-System'!F188","v":"Ausschreibung und Vergabe"},{"$f":"'BNB-System'!G188","v":100},{"$f":"'BNB-System'!J188","v":8.0000000000000002E-3},null,null,null,null,null,null,null,null,{"$f":"'BNB-System'!K188","v":200},{"$f":"IF(ISNUMBER(E192*G192/100),E192*G192/100,0)","v":0}]
[null,{"$f":"'BNB-System'!E189","v":" 5.1.5"},{"$f":"'BNB-System'!F189","v":"Voraussetzungen für eine optimale Bewirtschaftung"},{"$f":"'BNB-System'!G189","v":100},{"$f":"'BNB-System'!J189","v":8.0000000000000002E-3},null,{"$f":"IF(SUM(G194:G197)>100,100,SUM(G194:G197))","v":0},null,null,null,null,null,null,{"$f":"'BNB-System'!K189","v":200},0]
[null,null,{"$f":"'BNB-System'!F190","v":"Erstellung einer Gebäudeakte / Objektdokumentation"},{"$f":"'BNB-System'!G190","v":25},null,null,null,null,null,null,null,null,null,{"$f":"'BNB-System'!K190","v":0}]
[null,null,{"$f":"'BNB-System'!F191","v":"Erstellung von Wartungs-, Inspektions-, Betriebs-, und Pflegeanleitungen"},{"$f":"'BNB-System'!G191","v":25},null,null,null,null,null,null,null,null,null,{"$f":"'BNB-System'!K191","v":0}]
[null,null,{"$f":"'BNB-System'!F192","v":"Anpassung der Pläne und Berechnungen an das realisierte Gebäude"},{"$f":"'BNB-System'!G192","v":25},null,null,null,null,null,null,null,null,null,{"$f":"'BNB-System'!K192","v":0}]
[null,null,{"$f":"'BNB-System'!F193","v":"Erstellung eines Nutzerhandbuches"},{"$f":"'BNB-System'!G193","v":25},null,null,null,null,null,null,null,null,null,{"$f":"'BNB-System'!K193","v":0}]
[null,{"$f":"'BNB-System'!E194","v":" 5.1.6"},{"$f":"'BNB-System'!F194","v":"Bestandsanalyse"},{"$f":"'BNB-System'!G194","v":100},{"$f":"'BNB-System'!J194","v":1.2E-2},null,{"$f":"IF(SUM(G199:G207)>100,100,SUM(G199:G207))","v":0}]
[null,null,{"$f":"'BNB-System'!F195","v":"Bestandsaufnahme Geometrie"},{"$f":"'BNB-System'!G195","v":10}]
[null,null,{"$f":"'BNB-System'!F196","v":"Bestandsaufnahme Baukonstruktion und Baustoffe"},{"$f":"'BNB-System'!G196","v":20}]
[null,null,{"$f":"'BNB-System'!F197","v":"Bestandsaufnahme Haustechnik"},{"$f":"'BNB-System'!G197","v":10}]
[null,null,{"$f":"'BNB-System'!F198","v":"Bestandsaufnahme Bau- und Nutzungsgeschichte"},{"$f":"'BNB-System'!G198","v":5}]
[null,null,{"$f":"'BNB-System'!F199","v":"Bestandsaufnahme Exposition"},{"$f":"'BNB-System'!G199","v":5}]
[null,null,{"$f":"'BNB-System'!F200","v":"Baudiagnose Tragwerk"},{"$f":"'BNB-System'!G200","v":15}]
[null,null,{"$f":"'BNB-System'!F201","v":"Baudiagnose Energetische Qualität"},{"$f":"'BNB-System'!G201","v":15}]
[null,null,{"$f":"'BNB-System'!F202","v":"Baudiagnose Schadstoffe"},{"$f":"'BNB-System'!G202","v":10}]
[null,null,{"$f":"'BNB-System'!F203","v":"Baudiagnose Feuchte- und Salzbelastung"},{"$f":"'BNB-System'!G203","v":10}]
[null,{"$f":"'BNB-System'!E204","v":" 5.1.7"},{"$f":"'BNB-System'!F204","v":"Rückbaumaßnahmen"},{"$f":"'BNB-System'!G204","v":100},{"$f":"'BNB-System'!J204","v":4.0000000000000001E-3},null,{"$f":"IF(SUM(G209:G211)>100,100,SUM(G209:G211))","v":0}]
[null,null,{"$f":"'BNB-System'!F205","v":"Planung des Rückbaus"},{"$f":"'BNB-System'!G205","v":50}]
[null,null,{"$f":"'BNB-System'!F206","v":"Selektiver Rückbau"},{"$f":"'BNB-System'!G206","v":25}]
[null,null,{"$f":"'BNB-System'!F207","v":"Prüfen auf Abfalltrennung und Entsorgung"},{"$f":"'BNB-System'!G207","v":25}]
[null,null,{"$f":"'BNB-System'!F208","v":"Bauausführung"},null,null,null,null,null,null,null,null,null,null,{"$f":"'BNB-System'!K208","v":0}]
[null,{"$f":"'BNB-System'!E209","v":" 5.2.1"},{"$f":"'BNB-System'!F209","v":"Baustelle / Bauprozess"},{"$f":"'BNB-System'!G209","v":100},{"$f":"'BNB-System'!J209","v":8.0000000000000002E-3},null,{"$f":"IF(SUM(G214:G217)>100,100,SUM(G214:G217))","v":0},null,null,null,null,null,null,{"$f":"'BNB-System'!K209","v":200},{"$f":"IF(ISNUMBER(E213*G213/100),E213*G213/100,0)","v":0}]
[null,null,{"$f":"'BNB-System'!F210","v":"Wertstoffoptimierte Baustelle"},{"$f":"'BNB-System'!G210","v":25},null,null,null,null,null,null,null,null,null,{"$f":"'BNB-System'!K210","v":0}]
[null,null,{"$f":"'BNB-System'!F211","v":"Lärmarme Baustelle"},{"$f":"'BNB-System'!G211","v":25},null,null,null,null,null,null,null,null,null,{"$f":"'BNB-System'!K211","v":0}]
[null,null,{"$f":"'BNB-System'!F212","v":"Staubarme Baustelle"},{"$f":"'BNB-System'!G212","v":25},null,null,null,null,null,null,null,null,null,{"$f":"'BNB-System'!K212","v":0}]
[null,null,{"$f":"'BNB-System'!F213","v":"Bodenschutz auf der Baustelle"},{"$f":"'BNB-System'!G213","v":25},null,null,null,null,null,null,null,null,null,{"$f":"'BNB-System'!K213","v":0}]
[null,{"$f":"'BNB-System'!E214","v":" 5.2.2"},{"$f":"'BNB-System'!F214","v":"Qualitätssicherung der Bauausführung"},{"$f":"'BNB-System'!G214","v":100},{"$f":"'BNB-System'!J214","v":1.2E-2},null,{"$f":"IF(SUM(G219:G220)>100,100,SUM(G219:G220))","v":0},null,null,null,null,null,null,{"$f":"'BNB-System'!K214","v":300},{"$f":"IF(ISNUMBER(E218*G218/100),E218*G218/100,0)","v":0}]
[null,null,{"$f":"'BNB-System'!F215","v":"Dokumentation"},{"$f":"'BNB-System'!G215","v":50},null,null,null,null,null,null,null,null,null,{"$f":"'BNB-System'!K215","v":0}]
[null,null,{"$f":"'BNB-System'!F216","v":"Messungen zur Qualitätskontrolle"},{"$f":"'BNB-System'!G216","v":50},null,null,null,null,null,null,null,null,null,{"$f":"'BNB-System'!K216","v":0}]
[null,{"$f":"'BNB-System'!E217","v":" 5.2.3"},{"$f":"'BNB-System'!F217","v":"Systematische Inbetriebnahme"},{"$f":"'BNB-System'!G217","v":100},{"$f":"'BNB-System'!J217","v":1.2E-2},null,null,null,null,null,null,null,null,{"$f":"'BNB-System'!K217","v":300},{"$f":"IF(ISNUMBER(E221*G221/100),E221*G221/100,0)","v":0}]
[]
[null,null,null,null,null,null,null,null,null,null,null,null,null,{"$f":"'BNB-System'!K219","v":0}]
[null,{"$f":"'BNB-System'!E220","v":"Standortmerkmale"},null,null,{"$f":"'BNB-System'!J220","v":1},null,{"$f":"G227*(E227/100)+G233*(E233/100)+G240*(E240/100)+G245*(E245/100)+G249*(E249/100)+G259*(E259/100)","v":0},null,null,null,null,null,null,{"$f":"'BNB-System'!K220","v":1300}]
[null,null,null,null,null,null,null,null,null,null,null,null,null,{"$f":"'BNB-System'!K221","v":0}]
[null,null,{"$f":"'BNB-System'!F222","v":"Standortmerkmale"},null,null,null,null,null,null,null,null,null,null,{"$f":"'BNB-System'!K222","v":0}]
[null,{"$f":"'BNB-System'!E223","v":" 6.1.1"},{"$f":"'BNB-System'!F223","v":"Risiken am Mikrostandort"},{"$f":"'BNB-System'!G223","v":100},{"$f":"'BNB-System'!J223","v":0.15384615384615385},null,{"$f":"IF(SUM(G228:G232)>100,100,SUM(G228:G232))","v":0},null,null,null,null,null,null,{"$f":"'BNB-System'!K223","v":200},{"$f":"IF(ISNUMBER(E227*G227/100),E227*G227/100,0)","v":0}]
[null,null,{"$f":"'BNB-System'!F224","v":"Risiken aus Man-Made-Hazards (Unfälle)"},{"$f":"'BNB-System'!G224","v":20}]
[null,null,{"$f":"'BNB-System'!F225","v":"Risiken aus Erdbeben"},{"$f":"'BNB-System'!G225","v":20}]
[null,null,{"$f":"'BNB-System'!F226","v":"Risiken aus Lawinen"},{"$f":"'BNB-System'!G226","v":20}]
[null,null,{"$f":"'BNB-System'!F227","v":"Risiken aus Sturm"},{"$f":"'BNB-System'!G227","v":20}]
[null,null,{"$f":"'BNB-System'!F228","v":"Risiken aus Hochwasser"},{"$f":"'BNB-System'!G228","v":20}]
[null,{"$f":"'BNB-System'!E229","v":" 6.1.2"},{"$f":"'BNB-System'!F229","v":"Verhältnisse am Mikrostandort"},{"$f":"'BNB-System'!G229","v":100},{"$f":"'BNB-System'!J229","v":0.15384615384615385},null,{"$f":"IF(SUM(G234:G239)>100,100,SUM(G234:G239))","v":0},null,null,null,null,null,null,{"$f":"'BNB-System'!K229","v":200},0]
[null,null,{"$f":"'BNB-System'!F230","v":"Außenluftqualität"},{"$f":"'BNB-System'!G230","v":16}]
[null,null,{"$f":"'BNB-System'!F231","v":"Außenlärmpegel"},{"$f":"'BNB-System'!G231","v":20}]
[null,null,{"$f":"'BNB-System'!F232","v":"Baugrundverhältnisse, Bodenbelastungen"},{"$f":"'BNB-System'!G232","v":16}]
[null,null,{"$f":"'BNB-System'!F233","v":"Elektromagnetische Felder"},{"$f":"'BNB-System'!G233","v":16}]
[null,null,{"$f":"'BNB-System'!F234","v":"Vorkommen von Radon"},{"$f":"'BNB-System'!G234","v":16}]
[null,null,{"$f":"'BNB-System'!F235","v":"Stadt- und Landschaftsbild / Sichtbeziehungen"},{"$f":"'BNB-System'!G235","v":16}]
[null,{"$f":"'BNB-System'!E236","v":" 6.1.3"},{"$f":"'BNB-System'!F236","v":"Quartiersmerkmale"},{"$f":"'BNB-System'!G236","v":100},{"$f":"'BNB-System'!J236","v":0.15384615384615385},null,{"$f":"IF(SUM(G241:G244)>100,100,SUM(G241:G244))","v":0},null,null,null,null,null,null,{"$f":"'BNB-System'!K236","v":200},0]
[null,null,{"$f":"'BNB-System'!F237","v":"Image, Attraktivität"},{"$f":"'BNB-System'!G237","v":25}]
[null,null,{"$f":"'BNB-System'!F238","v":"Synergie- und Konfliktpotenziale"},{"$f":"'BNB-System'!G238","v":25}]
[null,null,{"$f":"'BNB-System'!F239","v":"Kriminalität"},{"$f":"'BNB-System'!G239","v":25}]
[null,null,{"$f":"'BNB-System'!F240","v":"Pflege und Erhaltungszustand"},{"$f":"'BNB-System'!G240","v":25}]
[null,{"$f":"'BNB-System'!E241","v":" 6.1.4"},{"$f":"'BNB-System'!F241","v":"Verkehrsanbindung"},{"$f":"'BNB-System'!G241","v":100},{"$f":"'BNB-System'!J241","v":0.23076923076923078},null,{"$f":"IF(SUM(G246:G248)>100,100,SUM(G246:G248))","v":0},null,null,null,null,null,null,{"$f":"'BNB-System'!K241","v":300},0]
[null,null,{"$f":"'BNB-System'!F242","v":"Erreichbarkeit Haupt-/ Fernbahnhof"},{"$f":"'BNB-System'!G242","v":30}]
[null,null,{"$f":"'BNB-System'!F243","v":"Erreichbarkeit ÖPNV"},{"$f":"'BNB-System'!G243","v":30}]
[null,null,{"$f":"'BNB-System'!F244","v":"Fuß- und Radwege"},{"$f":"'BNB-System'!G244","v":40}]
[null,{"$f":"'BNB-System'!E245","v":" 6.1.5"},{"$f":"'BNB-System'!F245","v":"Nähe zu nutzungsrelevanten Einrichtungen"},{"$f":"'BNB-System'!G245","v":100},{"$f":"'BNB-System'!J245","v":0.15384615384615385},null,{"$f":"IF(SUM(G250:G258)>100,100,SUM(G250:G258))","v":0},null,null,null,null,null,null,{"$f":"'BNB-System'!K245","v":200},0]
[null,null,{"$f":"'BNB-System'!F246","v":"Gastronomie"},{"$f":"'BNB-System'!G246","v":10}]
[null,null,{"$f":"'BNB-System'!F247","v":"Nahversorgung"},{"$f":"'BNB-System'!G247","v":10}]
[null,null,{"$f":"'BNB-System'!F248","v":"Parkanlagen und Freiräume"},{"$f":"'BNB-System'!G248","v":20}]
[null,null,{"$f":"'BNB-System'!F249","v":"Bildung"},{"$f":"'BNB-System'!G249","v":10}]
[null,null,{"$f":"'BNB-System'!F250","v":"Öffentliche Verwaltung"},{"$f":"'BNB-System'!G250","v":10}]
[null,null,{"$f":"'BNB-System'!F251","v":"Medizinische Versorgung"},{"$f":"'BNB-System'!G251","v":10}]
[null,null,{"$f":"'BNB-System'!F252","v":"Sportstätten"},{"$f":"'BNB-System'!G252","v":10}]
[null,null,{"$f":"'BNB-System'!F253","v":"Freizeit"},{"$f":"'BNB-System'!G253","v":10}]
[null,null,{"$f":"'BNB-System'!F254","v":"Dienstleister"},{"$f":"'BNB-System'!G254","v":10}]
[null,{"$f":"'BNB-System'!E255","v":" 6.1.6"},{"$f":"'BNB-System'!F255","v":"Anliegende Medien / Erschließung"},{"$f":"'BNB-System'!G255","v":100},{"$f":"'BNB-System'!J255","v":0.15384615384615385},null,{"$f":"IF(SUM(G260:G263)>100,100,SUM(G260:G263))","v":0},null,null,null,null,null,null,{"$f":"'BNB-System'!K255","v":200},0]
[null,null,{"$f":"'BNB-System'!F256","v":"Leitungsgebundene Energie"},{"$f":"'BNB-System'!G256","v":25}]
[null,null,{"$f":"'BNB-System'!F257","v":"Solarenergie"},{"$f":"'BNB-System'!G257","v":25}]
[null,null,{"$f":"'BNB-System'!F258","v":"Breitband-Anschluss"},{"$f":"'BNB-System'!G258","v":25}]
[null,null,{"$f":"'BNB-System'!F259","v":"Regenwasserversickerung"},{"$f":"'BNB-System'!G259","v":25}]

{"sheet":"Bewertung durch Anwender","index":2,"n_rows":263,"n_cols":17,"rows_kept":263,"cut":false,"hidden":false,"merged":[[0,2,0,6],[3,16,4,16],[3,4,4,4],[3,17,4,17],[6,1,6,2],[3,1,4,2],[3,15,4,15],[3,3,4,3],[3,14,4,14]]}
[null,{"$f":"'BNB-System'!B1","v":"Projekt:"},{"$f":"Zielvereinbarung!C1","v":"Projektbezeichnung"},null,null,null,null,null,null,null,null,null,null,{"$f":"Zielvereinbarung!$G$1","v":"2015-12-17"}]
[null,{"$f":"'BNB-System'!B2","v":"Bewertungssystem Nachhaltiges Bauen (BNB)"}]
[null,{"$f":"'BNB-System'!B3","v":"Systemvariante Büro- und Verwaltungsgebäude, Modul Komplettmodernisierung (BNB_BK) - Version 2017"}]
[null,"Nachhaltigkeitskriterien",null,"maximale Punktzahl","Gewichtung\nGesamt-bewertung","Zielwert aus der Ziel-vereinbarung","Zielwert  der Ziel-vereinbarung","Zielwert  der Ziel-vereinbarung","1. Korrektur \nZielwert","Kommentar","2. Korrektur \nZielwert","Kommentar"," Zwischen-bewertung","Endbewertung",null,"Zielwert","Gesamt-bewertung gemäß \nEnd-bewertung"]
[null,null,null,null,null,null,"Soll","aus Registerkarte \"Zielvereinbarung\"",{"$f":"TODAY()","v":"2017-11-23"},"Eintrag erforderlich\n für Zielwertkorrektur","2015-02-22","Eintrag erforderlich\n für Zielwertkorrektur",{"$f":"TODAY()","v":"2017-11-23"}]
[]
[null,"Gesamterfüllungsgrad",null,null,null,null,{"$f":"G10+G35+G49+G134+G163","v":0},{"$f":"Zielvereinbarung!G7","v":0},null,null,null,null,{"$f":"M10+M35+M49+M134+M163","v":0},{"$f":"N10+N35+N49+N134+N163","v":0}]
[null,null,null,null,null,null,null,null,null,null,null,null,"to_copy_zb","to_insert_zb","qwertz"]
[]
[null,{"$f":"'BNB-System'!E6","v":"Ökologische Qualität"},null,null,0.22500000000000001,null,{"$f":"G13*($E$13/100)+G14*($E$14/100)+G15*($E$15/100)+G16*($E$16/100)+G17*($E$17/100)+G18*($E$18/100)+G24*($E$24/100)+G26*($E$26/100)+G30*($E$30/100)+G31*($E$31/100)","v":0},{"$f":"Zielvereinbarung!G10","v":0},null,null,null,null,{"$f":"M13*($E$13/100)+M14*($E$14/100)+M15*($E$15/100)+M16*($E$16/100)+M17*($E$17/100)+M18*($E$18/100)+M24*($E$24/100)+M26*($E$26/100)+M30*($E$30/100)+M31*($E$31/100)","v":0},{"$f":"N13*($E$13/100)+N14*($E$14/100)+N15*($E$15/100)+N16*($E$16/100)+N17*($E$17/100)+N18*($E$18/100)+N24*($E$24/100)+N26*($E$26/100)+N30*($E$30/100)+N31*($E$31/100)","v":0},null,{"$f":"'BNB-System'!K6","v":1800}]
[null,null,null,null,null,null,null,null,null,null,null,null,null,null,null,{"$f":"'BNB-System'!K7","v":0}]
[null,null,"Wirkungen auf die globale und lokale  Umwelt",null,null,null,null,null,null,null,null,null,null,null,null,{"$f":"'BNB-System'!K8","v":0}]
[null,{"$f":"'BNB-System'!E9","v":" 1.1.1"},{"$f":"'BNB-System'!F9","v":"Treibhauspotenzial (GWP)"},{"$f":"'BNB-System'!G9","v":100},{"$f":"'BNB-System'!J9","v":3.7499999999999999E-2},"o",{"$f":"IF(AND(NOT(ISBLANK(K13)),NOT(ISBLANK(L13))),('Bewertung durch Anwender'!K13),IF(AND(NOT(ISBLANK(J13)),NOT(ISBLANK(I13))),('Bewertung durch Anwender'!I13),(Zielvereinbarung!G13)))","v":0},{"$f":"Zielvereinbarung!G13","v":0},null,null,null,null,null,null,null,{"$f":"'BNB-System'!K9","v":300},{"$f":"IF(ISNUMBER(E13*N13/100),E13*N13/100,0)","v":0}]
[null,{"$f":"'BNB-System'!E10","v":" 1.1.2"},{"$f":"'BNB-System'!F10","v":"Ozonschichtabbaupotenzial (ODP)"},{"$f":"'BNB-System'!G10","v":100},{"$f":"'BNB-System'!J10","v":1.2499999999999999E-2},"x",{"$f":"IF(AND(NOT(ISBLANK(K14)),NOT(ISBLANK(L14))),('Bewertung durch Anwender'!K14),IF(AND(NOT(ISBLANK(J14)),NOT(ISBLANK(I14))),('Bewertung durch Anwender'!I14),(Zielvereinbarung!G14)))","v":0},{"$f":"Zielvereinbarung!G14","v":0},null,null,null,null,null,null,null,{"$f":"'BNB-System'!K10","v":100},0]
[null,{"$f":"'BNB-System'!E11","v":" 1.1.3"},{"$f":"'BNB-System'!F11","v":"Ozonbildungspotenzial (POCP)"},{"$f":"'BNB-System'!G11","v":100},{"$f":"'BNB-System'!J11","v":1.2499999999999999E-2},null,{"$f":"IF(AND(NOT(ISBLANK(K15)),NOT(ISBLANK(L15))),('Bewertung durch Anwender'!K15),IF(AND(NOT(ISBLANK(J15)),NOT(ISBLANK(I15))),('Bewertung durch Anwender'!I15),(Zielvereinbarung!G15)))","v":0},{"$f":"Zielvereinbarung!G15","v":0},null,null,null,null,null,null,null,{"$f":"'BNB-System'!K11","v":100},0]
[null,{"$f":"'BNB-System'!E12","v":" 1.1.4"},{"$f":"'BNB-System'!F12","v":"Versauerungspotenzial (AP)"},{"$f":"'BNB-System'!G12","v":100},{"$f":"'BNB-System'!J12","v":1.2499999999999999E-2},null,{"$f":"IF(AND(NOT(ISBLANK(K16)),NOT(ISBLANK(L16))),('Bewertung durch Anwender'!K16),IF(AND(NOT(ISBLANK(J16)),NOT(ISBLANK(I16))),('Bewertung durch Anwender'!I16),(Zielvereinbarung!G16)))","v":0},{"$f":"Zielvereinbarung!G16","v":0},null,null,null,null,null,null,null,{"$f":"'BNB-System'!K12","v":100},0]
[null,{"$f":"'BNB-System'!E13","v":" 1.1.5"},{"$f":"'BNB-System'!F13","v":"Überdüngungspotenzial (EP)"},{"$f":"'BNB-System'!G13","v":100},{"$f":"'BNB-System'!J13","v":1.2499999999999999E-2},null,{"$f":"IF(AND(NOT(ISBLANK(K17)),NOT(ISBLANK(L17))),('Bewertung durch Anwender'!K17),IF(AND(NOT(ISBLANK(J17)),NOT(ISBLANK(I17))),('Bewertung durch Anwender'!I17),(Zielvereinbarung!G17)))","v":0},{"$f":"Zielvereinbarung!G17","v":0},null,null,null,null,null,null,null,{"$f":"'BNB-System'!K13","v":100},0]
[null,{"$f":"'BNB-System'!E14","v":" 1.1.6"},{"$f":"'BNB-System'!F14","v":"Risiken für die lokale Umwelt"},{"$f":"'BNB-System'!G14","v":100},{"$f":"'BNB-System'!J14","v":3.7499999999999999E-2},null,{"$f":"IF(AND(NOT(ISBLANK(K18)),NOT(ISBLANK(L18))),('Bewertung durch Anwender'!K18),IF(AND(NOT(ISBLANK(J18)),NOT(ISBLANK(I18))),('Bewertung durch Anwender'!I18),(Zielvereinbarung!G18)))","v":0},{"$f":"Zielvereinbarung!G18","v":0},null,null,null,null,{"$f":"IF(SUM(M19:M23)>100,100,SUM(M19:M23))","v":0},{"$f":"IF(SUM(N19:N23)>100,100,SUM(N19:N23))","v":0},null,{"$f":"'BNB-System'!K14","v":300},0]
[null,null,{"$f":"'BNB-System'!F15","v":"Altsubstanz: Q4 ; Neusubstanz: Q5"},{"$f":"'BNB-System'!G15","v":100},null,null,{"$f":"IF(AND(NOT(ISBLANK(K19)),NOT(ISBLANK(L19))),('Bewertung durch Anwender'!K19),IF(AND(NOT(ISBLANK(J19)),NOT(ISBLANK(I19))),('Bewertung durch Anwender'!I19),(Zielvereinbarung!G19)))","v":0},{"$f":"Zielvereinbarung!G19","v":0}]
[null,null,{"$f":"'BNB-System'!F16","v":"Altsubstanz: Q3 ; Neusubstanz: Q4"},{"$f":"'BNB-System'!G16","v":75},null,null,{"$f":"IF(AND(NOT(ISBLANK(K20)),NOT(ISBLANK(L20))),('Bewertung durch Anwender'!K20),IF(AND(NOT(ISBLANK(J20)),NOT(ISBLANK(I20))),('Bewertung durch Anwender'!I20),(Zielvereinbarung!G20)))","v":0},{"$f":"Zielvereinbarung!G20","v":0}]
[null,null,{"$f":"'BNB-System'!F17","v":"Altsubstanz: Q2 ; Neusubstanz: Q3"},{"$f":"'BNB-System'!G17","v":50},null,null,{"$f":"IF(AND(NOT(ISBLANK(K21)),NOT(ISBLANK(L21))),('Bewertung durch Anwender'!K21),IF(AND(NOT(ISBLANK(J21)),NOT(ISBLANK(I21))),('Bewertung durch Anwender'!I21),(Zielvereinbarung!G21)))","v":0},{"$f":"Zielvereinbarung!G21","v":0}]
[null,null,{"$f":"'BNB-System'!F18","v":"Altsubstanz: Q1 ; Neusubstanz: Q2"},{"$f":"'BNB-System'!G18","v":25},null,null,{"$f":"IF(AND(NOT(ISBLANK(K22)),NOT(ISBLANK(L22))),('Bewertung durch Anwender'!K22),IF(AND(NOT(ISBLANK(J22)),NOT(ISBLANK(I22))),('Bewertung durch Anwender'!I22),(Zielvereinbarung!G22)))","v":0},{"$f":"Zielvereinbarung!G22","v":0}]
[null,null,{"$f":"'BNB-System'!F19","v":"Altsubstanz: Q1 ; Neusubstanz: Q1"},{"$f":"'BNB-System'!G19","v":10},null,null,{"$f":"IF(AND(NOT(ISBLANK(K23)),NOT(ISBLANK(L23))),('Bewertung durch Anwender'!K23),IF(AND(NOT(ISBLANK(J23)),NOT(ISBLANK(I23))),('Bewertung durch Anwender'!I23),(Zielvereinbarung!G23)))","v":0},{"$f":"Zielvereinbarung!G23","v":0}]
[null,{"$f":"'BNB-System'!E20","v":" 1.1.7"},{"$f":"'BNB-System'!F20","v":"Nachhaltige Materialgewinnung / Biodiversität"},{"$f":"'BNB-System'!G20","v":100},{"$f":"'BNB-System'!J20","v":1.2499999999999999E-2},null,{"$f":"IF(AND(NOT(ISBLANK(K24)),NOT(ISBLANK(L24))),('Bewertung durch Anwender'!K24),IF(AND(NOT(ISBLANK(J24)),NOT(ISBLANK(I24))),('Bewertung durch Anwender'!I24),(Zielvereinbarung!G24)))","v":0},{"$f":"Zielvereinbarung!G24","v":0},null,null,null,null,null,null,null,{"$f":"'BNB-System'!K20","v":100},{"$f":"IF(ISNUMBER(E24*N24/100),E24*N24/100,0)","v":0}]
[null,null,{"$f":"'BNB-System'!F21","v":"Ressourceninanspruchnahme"},null,null,null,null,null,null,null,null,null,null,null,null,{"$f":"'BNB-System'!K21","v":0}]
[null,{"$f":"'BNB-System'!E22","v":" 1.2.1"},{"$f":"'BNB-System'!F22","v":"Primärenergiebedarf"},{"$f":"'BNB-System'!G22","v":100},{"$f":"'BNB-System'!J22","v":3.7499999999999999E-2},null,{"$f":"IF(AND(NOT(ISBLANK(K26)),NOT(ISBLANK(L26))),('Bewertung durch Anwender'!K26),IF(AND(NOT(ISBLANK(J26)),NOT(ISBLANK(I26))),('Bewertung durch Anwender'!I26),(Zielvereinbarung!G26)))","v":0},{"$f":"Zielvereinbarung!G26","v":0},null,null,null,null,{"$f":"SUM(M27:M29)","v":0},{"$f":"SUM(N27:N29)","v":0},null,{"$f":"'BNB-System'!K22","v":300},{"$f":"IF(ISNUMBER(E26*N26/100),E26*N26/100,0)","v":0}]
[null,null,{"$f":"'BNB-System'!F23","v":"Primärenergiebedarf nicht erneuerbar (PEne)"},{"$f":"'BNB-System'!G23","v":60},null,null,{"$f":"IF(AND(NOT(ISBLANK(K27)),NOT(ISBLANK(L27))),('Bewertung durch Anwender'!K27),IF(AND(NOT(ISBLANK(J27)),NOT(ISBLANK(I27))),('Bewertung durch Anwender'!I27),(Zielvereinbarung!G27)))","v":0},{"$f":"Zielvereinbarung!G27","v":0},null,null,null,null,null,null,null,{"$f":"'BNB-System'!K23","v":0}]
[null,null,{"$f":"'BNB-System'!F24","v":"Gesamtprimärenergiebedarf (PEges)"},{"$f":"'BNB-System'!G24","v":40},null,null,{"$f":"IF(AND(NOT(ISBLANK(K28)),NOT(ISBLANK(L28))),('Bewertung durch Anwender'!K28),IF(AND(NOT(ISBLANK(J28)),NOT(ISBLANK(I28))),('Bewertung durch Anwender'!I28),(Zielvereinbarung!G28)))","v":0},{"$f":"Zielvereinbarung!G28","v":0}]
[null,null,{"$f":"'BNB-System'!F25","v":"Anteil der erneuerbaren Primärenergie (Pee)"},{"$f":"'BNB-System'!G25","v":20},null,null,{"$f":"IF(AND(NOT(ISBLANK(K29)),NOT(ISBLANK(L29))),('Bewertung durch Anwender'!K29),IF(AND(NOT(ISBLANK(J29)),NOT(ISBLANK(I29))),('Bewertung durch Anwender'!I29),(Zielvereinbarung!G29)))","v":0},{"$f":"Zielvereinbarung!G29","v":0},null,null,null,null,null,null,null,{"$f":"'BNB-System'!K25","v":0}]
[null,{"$f":"'BNB-System'!E26","v":" 1.2.3"},{"$f":"'BNB-System'!F26","v":"Trinkwasserbedarf und Abwasseraufkommen"},{"$f":"'BNB-System'!G26","v":100},{"$f":"'BNB-System'!J26","v":2.4999999999999998E-2},null,{"$f":"IF(AND(NOT(ISBLANK(K30)),NOT(ISBLANK(L30))),('Bewertung durch Anwender'!K30),IF(AND(NOT(ISBLANK(J30)),NOT(ISBLANK(I30))),('Bewertung durch Anwender'!I30),(Zielvereinbarung!G30)))","v":0},{"$f":"Zielvereinbarung!G30","v":0},null,null,null,null,null,null,null,{"$f":"'BNB-System'!K26","v":200},{"$f":"IF(ISNUMBER(E30*N30/100),E30*N30/100,0)","v":0}]
[null,{"$f":"'BNB-System'!E27","v":" 1.2.4"},{"$f":"'BNB-System'!F27","v":"Flächeninanspruchnahme"},{"$f":"'BNB-System'!G27","v":100},{"$f":"'BNB-System'!J27","v":2.4999999999999998E-2},null,{"$f":"IF(AND(NOT(ISBLANK(K31)),NOT(ISBLANK(L31))),('Bewertung durch Anwender'!K31),IF(AND(NOT(ISBLANK(J31)),NOT(ISBLANK(I31))),('Bewertung durch Anwender'!I31),(Zielvereinbarung!G31)))","v":0},{"$f":"Zielvereinbarung!G31","v":0},null,null,null,null,{"$f":"SUM(M32:M33)","v":0},{"$f":"SUM(N32:N33)","v":0},null,{"$f":"'BNB-System'!K27","v":200},{"$f":"IF(ISNUMBER(E31*N31/100),E31*N31/100,0)","v":0}]
[null,null,{"$f":"'BNB-System'!F28","v":"Veränderung der Flächeninanspruchnahme"},{"$f":"'BNB-System'!G28","v":100},null,null,{"$f":"IF(AND(NOT(ISBLANK(K32)),NOT(ISBLANK(L32))),('Bewertung durch Anwender'!K32),IF(AND(NOT(ISBLANK(J32)),NOT(ISBLANK(I32))),('Bewertung durch Anwender'!I32),(Zielvereinbarung!G32)))","v":0},{"$f":"Zielvereinbarung!G32","v":0}]
[null,null,{"$f":"'BNB-System'!F29","v":"Ausgleichsmaßnahmen und Flächenrecycling"},{"$f":"'BNB-System'!G29","v":40},null,null,{"$f":"IF(AND(NOT(ISBLANK(K33)),NOT(ISBLANK(L33))),('Bewertung durch Anwender'!K33),IF(AND(NOT(ISBLANK(J33)),NOT(ISBLANK(I33))),('Bewertung durch Anwender'!I33),(Zielvereinbarung!G33)))","v":0},{"$f":"Zielvereinbarung!G33","v":0}]
[null,null,null,null,null,null,null,null,null,null,null,null,null,null,null,{"$f":"'BNB-System'!K30","v":0}]
[null,{"$f":"'BNB-System'!E31","v":"Ökonomische Qualität"},null,null,{"$f":"'BNB-System'!J31","v":0.22500000000000001},null,{"$f":"IF(AND(NOT(ISBLANK(K35)),NOT(ISBLANK(L35))),('Bewertung durch Anwender'!K35),IF(AND(NOT(ISBLANK(J35)),NOT(ISBLANK(I35))),('Bewertung durch Anwender'!I35),(Zielvereinbarung!G35)))","v":0},{"$f":"Zielvereinbarung!G35","v":0},null,null,null,null,{"$f":"M38*($E$38/100)+M40*($E$40/100)+M41*($E$41/100)","v":0},{"$f":"N38*($E$38/100)+N40*($E$40/100)+N41*($E$41/100)","v":0},null,{"$f":"'BNB-System'!K31","v":600}]
[null,null,null,null,null,null,null,null,null,null,null,null,null,null,null,{"$f":"'BNB-System'!K32","v":0}]
[null,null,{"$f":"'BNB-System'!F33","v":"Lebenszykluskosten"},null,null,null,null,null,null,null,null,null,null,null,null,{"$f":"'BNB-System'!K33","v":0}]
[null,{"$f":"'BNB-System'!E34","v":" 2.1.1"},{"$f":"'BNB-System'!F34","v":"Gebäudebezogene Kosten im Lebenszyklus"},{"$f":"'BNB-System'!G34","v":100},{"$f":"'BNB-System'!J34","v":0.1125},null,{"$f":"IF(AND(NOT(ISBLANK(K38)),NOT(ISBLANK(L38))),('Bewertung durch Anwender'!K38),IF(AND(NOT(ISBLANK(J38)),NOT(ISBLANK(I38))),('Bewertung durch Anwender'!I38),(Zielvereinbarung!G38)))","v":0},{"$f":"Zielvereinbarung!G38","v":0},null,null,null,null,null,null,null,{"$f":"'BNB-System'!K34","v":300},{"$f":"IF(ISNUMBER(E38*N38/100),E38*N38/100,0)","v":0}]
[null,null,{"$f":"'BNB-System'!F35","v":"Wirtschaftlichkeit und Wertstabilität"},null,null,null,null,null,null,null,null,null,null,null,null,{"$f":"'BNB-System'!K35","v":0}]
[null,{"$f":"'BNB-System'!E36","v":" 2.2.1"},{"$f":"'BNB-System'!F36","v":"Flächeneffizienz"},{"$f":"'BNB-System'!G36","v":100},{"$f":"'BNB-System'!J36","v":3.7499999999999999E-2},null,{"$f":"IF(AND(NOT(ISBLANK(K40)),NOT(ISBLANK(L40))),('Bewertung durch Anwender'!K40),IF(AND(NOT(ISBLANK(J40)),NOT(ISBLANK(I40))),('Bewertung durch Anwender'!I40),(Zielvereinbarung!G40)))","v":0},{"$f":"Zielvereinbarung!G40","v":0},null,null,null,null,null,null,null,{"$f":"'BNB-System'!K36","v":100},{"$f":"IF(ISNUMBER(E40*N40/100),E40*N40/100,0)","v":0}]
[null,{"$f":"'BNB-System'!E37","v":" 2.2.2"},{"$f":"'BNB-System'!F37","v":"Anpassungsfähigkeit"},{"$f":"'BNB-System'!G37","v":100},{"$f":"'BNB-System'!J37","v":7.4999999999999997E-2},"o",{"$f":"IF(AND(NOT(ISBLANK(K41)),NOT(ISBLANK(L41))),('Bewertung durch Anwender'!K41),IF(AND(NOT(ISBLANK(J41)),NOT(ISBLANK(I41))),('Bewertung durch Anwender'!I41),(Zielvereinbarung!G41)))","v":0},{"$f":"Zielvereinbarung!G41","v":0},null,null,null,null,{"$f":"SUM(M42:M47)","v":0},{"$f":"SUM(N42:N47)","v":0},null,{"$f":"'BNB-System'!K37","v":200},{"$f":"IF(ISNUMBER(E41*N41/100),E41*N41/100,0)","v":0}]
[null,null,{"$f":"'BNB-System'!F38","v":"Lichte Raumhöhe"},{"$f":"'BNB-System'!G38","v":15},null,null,{"$f":"IF(AND(NOT(ISBLANK(K42)),NOT(ISBLANK(L42))),('Bewertung durch Anwender'!K42),IF(AND(NOT(ISBLANK(J42)),NOT(ISBLANK(I42))),('Bewertung durch Anwender'!I42),(Zielvereinbarung!G42)))","v":0},{"$f":"Zielvereinbarung!G42","v":0},null,null,null,null,null,null,null,{"$f":"'BNB-System'!K38","v":0}]
[null,null,{"$f":"'BNB-System'!F39","v":"Gebäudetiefe"},{"$f":"'BNB-System'!G39","v":15},null,null,{"$f":"IF(AND(NOT(ISBLANK(K43)),NOT(ISBLANK(L43))),('Bewertung durch Anwender'!K43),IF(AND(NOT(ISBLANK(J43)),NOT(ISBLANK(I43))),('Bewertung durch Anwender'!I43),(Zielvereinbarung!G43)))","v":0},{"$f":"Zielvereinbarung!G43","v":0},null,null,null,null,null,null,null,{"$f":"'BNB-System'!K39","v":0}]
[null,null,{"$f":"'BNB-System'!F40","v":"Vertikale Erschließung"},{"$f":"'BNB-System'!G40","v":15},null,null,{"$f":"IF(AND(NOT(ISBLANK(K44)),NOT(ISBLANK(L44))),('Bewertung durch Anwender'!K44),IF(AND(NOT(ISBLANK(J44)),NOT(ISBLANK(I44))),('Bewertung durch Anwender'!I44),(Zielvereinbarung!G44)))","v":0},{"$f":"Zielvereinbarung!G44","v":0},null,null,null,null,null,null,null,{"$f":"'BNB-System'!K40","v":0}]
[null,null,{"$f":"'BNB-System'!F41","v":"Grundrisse"},{"$f":"'BNB-System'!G41","v":25},null,null,{"$f":"IF(AND(NOT(ISBLANK(K45)),NOT(ISBLANK(L45))),('Bewertung durch Anwender'!K45),IF(AND(NOT(ISBLANK(J45)),NOT(ISBLANK(I45))),('Bewertung durch Anwender'!I45),(Zielvereinbarung!G45)))","v":0},{"$f":"Zielvereinbarung!G45","v":0},null,null,null,null,null,null,null,{"$f":"'BNB-System'!K41","v":0}]
[null,null,{"$f":"'BNB-System'!F42","v":"Konstruktion"},{"$f":"'BNB-System'!G42","v":20},null,null,{"$f":"IF(AND(NOT(ISBLANK(K46)),NOT(ISBLANK(L46))),('Bewertung durch Anwender'!K46),IF(AND(NOT(ISBLANK(J46)),NOT(ISBLANK(I46))),('Bewertung durch Anwender'!I46),(Zielvereinbarung!G46)))","v":0},{"$f":"Zielvereinbarung!G46","v":0},null,null,null,null,null,null,null,{"$f":"'BNB-System'!K42","v":0}]
[null,null,{"$f":"'BNB-System'!F43","v":"Technische Ausstattung"},{"$f":"'BNB-System'!G43","v":18},null,null,{"$f":"IF(AND(NOT(ISBLANK(K47)),NOT(ISBLANK(L47))),('Bewertung durch Anwender'!K47),IF(AND(NOT(ISBLANK(J47)),NOT(ISBLANK(I47))),('Bewertung durch Anwender'!I47),(Zielvereinbarung!G47)))","v":0},{"$f":"Zielvereinbarung!G47","v":0},null,null,null,null,null,null,null,{"$f":"'BNB-System'!K43","v":0}]
[null,null,null,null,null,null,null,null,null,null,null,null,null,null,null,{"$f":"'BNB-System'!K44","v":0}]
[null,{"$f":"'BNB-System'!E45","v":"Soziokulturelle und funktionale Qualität"},null,null,{"$f":"'BNB-System'!J45","v":0.22500000000000001},null,{"$f":"IF(AND(NOT(ISBLANK(K49)),NOT(ISBLANK(L49))),('Bewertung durch Anwender'!K49),IF(AND(NOT(ISBLANK(J49)),NOT(ISBLANK(I49))),('Bewertung durch Anwender'!I49),(Zielvereinbarung!G49)))","v":0},{"$f":"Zielvereinbarung!G49","v":0},null,null,null,null,{"$f":"M52*($E$52/100)+M63*($E$63/100)+M66*($E$66/100)+M76*($E$76/100)+M84*($E$84/100)+M93*($E$93/100)+M107*($E$107/100)+M109*($E$109/100)+M110*($E$110/100)+M116*($E$116/100)+M121*($E$121/100)+M128*($E$128/100)","v":0},{"$f":"N52*($E$52/100)+N63*($E$63/100)+N66*($E$66/100)+N76*($E$76/100)+N84*($E$84/100)+N93*($E$93/100)+N107*($E$107/100)+N109*($E$109/100)+N110*($E$110/100)+N116*($E$116/100)+N121*($E$121/100)+N128*($E$128/100)","v":0},null,{"$f":"'BNB-System'!K45","v":2300}]
[null,null,null,null,null,null,null,null,null,null,null,null,null,null,null,{"$f":"'BNB-System'!K46","v":0}]
[null,null,{"$f":"'BNB-System'!F47","v":"Gesundheit, Behaglichkeit und Nutzerzufriedenheit"},null,null,null,null,null,null,null,null,null,null,null,null,{"$f":"'BNB-System'!K47","v":0}]
[null,{"$f":"'BNB-System'!E48","v":" 3.1.1"},{"$f":"'BNB-System'!F48","v":"Thermischer Komfort"},{"$f":"'BNB-System'!G48","v":100},{"$f":"'BNB-System'!J48","v":2.9347826086956522E-2},null,{"$f":"IF(AND(NOT(ISBLANK(K52)),NOT(ISBLANK(L52))),('Bewertung durch Anwender'!K52),IF(AND(NOT(ISBLANK(J52)),NOT(ISBLANK(I52))),('Bewertung durch Anwender'!I52),(Zielvereinbarung!G52)))","v":0},{"$f":"Zielvereinbarung!G52","v":0},null,null,null,null,{"$f":"SUM(M54:M57,M59:M62)","v":0},{"$f":"SUM(N54:N57,N59:N62)","v":0},null,{"$f":"'BNB-System'!K48","v":300},{"$f":"IF(ISNUMBER(E52*N52/100),E52*N52/100,0)","v":0}]
[null,null,{"$f":"'BNB-System'!F49","v":"Winter"},null,null,null,{"$f":"IF(Zielvereinbarung!E53=0,\"\",Zielvereinbarung!E53)","v":""},null,null,null,null,null,null,null,null,{"$f":"'BNB-System'!K50","v":0}]
[null,null,{"$f":"'BNB-System'!F50","v":"Operative Temperatur"},{"$f":"'BNB-System'!G50","v":10},null,null,{"$f":"IF(AND(NOT(ISBLANK(K54)),NOT(ISBLANK(L54))),('Bewertung durch Anwender'!K54),IF(AND(NOT(ISBLANK(J54)),NOT(ISBLANK(I54))),('Bewertung durch Anwender'!I54),(Zielvereinbarung!G54)))","v":0},{"$f":"Zielvereinbarung!G54","v":0},null,null,null,null,null,null,null,{"$f":"'BNB-System'!#REF!","v":{"$error":"#REF!"}}]
[null,null,{"$f":"'BNB-System'!F51","v":" Zugluft"},{"$f":"'BNB-System'!G51","v":10},null,null,{"$f":"IF(AND(NOT(ISBLANK(K55)),NOT(ISBLANK(L55))),('Bewertung durch Anwender'!K55),IF(AND(NOT(ISBLANK(J55)),NOT(ISBLANK(I55))),('Bewertung durch Anwender'!I55),(Zielvereinbarung!G55)))","v":0},{"$f":"Zielvereinbarung!G55","v":0}]
[null,null,{"$f":"'BNB-System'!F52","v":"Stahlungstemperaturasymmetrie und Fußbodentemperatur"},{"$f":"'BNB-System'!G52","v":10},null,null,{"$f":"IF(AND(NOT(ISBLANK(K56)),NOT(ISBLANK(L56))),('Bewertung durch Anwender'!K56),IF(AND(NOT(ISBLANK(J56)),NOT(ISBLANK(I56))),('Bewertung durch Anwender'!I56),(Zielvereinbarung!G56)))","v":0},{"$f":"Zielvereinbarung!G56","v":0}]
[null,null,{"$f":"'BNB-System'!F53","v":"Luftfeuchte"},{"$f":"'BNB-System'!G53","v":10},null,null,{"$f":"IF(AND(NOT(ISBLANK(K57)),NOT(ISBLANK(L57))),('Bewertung durch Anwender'!K57),IF(AND(NOT(ISBLANK(J57)),NOT(ISBLANK(I57))),('Bewertung durch Anwender'!I57),(Zielvereinbarung!G57)))","v":0},{"$f":"Zielvereinbarung!G57","v":0}]
[null,null,{"$f":"'BNB-System'!F54","v":"Sommer"},null,null,null,{"$f":"IF(Zielvereinbarung!E58=0,\"\",Zielvereinbarung!E58)","v":""}]
[null,null,{"$f":"'BNB-System'!F55","v":"Operative Temperatur"},{"$f":"'BNB-System'!G55","v":30},null,null,{"$f":"IF(AND(NOT(ISBLANK(K59)),NOT(ISBLANK(L59))),('Bewertung durch Anwender'!K59),IF(AND(NOT(ISBLANK(J59)),NOT(ISBLANK(I59))),('Bewertung durch Anwender'!I59),(Zielvereinbarung!G59)))","v":0},{"$f":"Zielvereinbarung!G59","v":0}]
[null,null,{"$f":"'BNB-System'!F56","v":" Zugluft"},{"$f":"'BNB-System'!G56","v":10},null,null,{"$f":"IF(AND(NOT(ISBLANK(K60)),NOT(ISBLANK(L60))),('Bewertung durch Anwender'!K60),IF(AND(NOT(ISBLANK(J60)),NOT(ISBLANK(I60))),('Bewertung durch Anwender'!I60),(Zielvereinbarung!G60)))","v":0},{"$f":"Zielvereinbarung!G60","v":0}]
[null,null,{"$f":"'BNB-System'!F57","v":"Stahlungstemperaturasymmetrie und Fußbodentemperatur"},{"$f":"'BNB-System'!G57","v":10},null,null,{"$f":"IF(AND(NOT(ISBLANK(K61)),NOT(ISBLANK(L61))),('Bewertung durch Anwender'!K61),IF(AND(NOT(ISBLANK(J61)),NOT(ISBLANK(I61))),('Bewertung durch Anwender'!I61),(Zielvereinbarung!G61)))","v":0},{"$f":"Zielvereinbarung!G61","v":0}]
[null,null,{"$f":"'BNB-System'!F58","v":"Luftfeuchte"},{"$f":"'BNB-System'!G58","v":10},null,null,{"$f":"IF(AND(NOT(ISBLANK(K62)),NOT(ISBLANK(L62))),('Bewertung durch Anwender'!K62),IF(AND(NOT(ISBLANK(J62)),NOT(ISBLANK(I62))),('Bewertung durch Anwender'!I62),(Zielvereinbarung!G62)))","v":0},{"$f":"Zielvereinbarung!G62","v":0}]
[null,{"$f":"'BNB-System'!E59","v":" 3.1.3"},{"$f":"'BNB-System'!F59","v":"Innenraumlufthygiene"},{"$f":"'BNB-System'!G59","v":100},{"$f":"'BNB-System'!J59","v":2.9347826086956522E-2},null,{"$f":"IF(AND(NOT(ISBLANK(K63)),NOT(ISBLANK(L63))),('Bewertung durch Anwender'!K63),IF(AND(NOT(ISBLANK(J63)),NOT(ISBLANK(I63))),('Bewertung durch Anwender'!I63),(Zielvereinbarung!G63)))","v":0},{"$f":"Zielvereinbarung!G63","v":0},null,null,null,null,{"$f":"SUM(M64:M65)","v":0},{"$f":"SUM(N64:N65)","v":0},null,{"$f":"'BNB-System'!K59","v":300},{"$f":"IF(ISNUMBER(E63*N63/100),E63*N63/100,0)","v":0}]
[null,null,{"$f":"'BNB-System'!F60","v":"Flüchtige organische Stoffe (VOC) und Formaldehyd"},{"$f":"'BNB-System'!G60","v":50},null,null,{"$f":"IF(AND(NOT(ISBLANK(K64)),NOT(ISBLANK(L64))),('Bewertung durch Anwender'!K64),IF(AND(NOT(ISBLANK(J64)),NOT(ISBLANK(I64))),('Bewertung durch Anwender'!I64),(Zielvereinbarung!G64)))","v":0},{"$f":"Zielvereinbarung!G64","v":0},null,null,null,null,null,null,null,{"$f":"'BNB-System'!K60","v":0}]
[null,null,{"$f":"'BNB-System'!F61","v":"Personenbezogene Lüftungsrate"},{"$f":"'BNB-System'!G61","v":50},null,null,{"$f":"IF(AND(NOT(ISBLANK(K65)),NOT(ISBLANK(L65))),('Bewertung durch Anwender'!K65),IF(AND(NOT(ISBLANK(J65)),NOT(ISBLANK(I65))),('Bewertung durch Anwender'!I65),(Zielvereinbarung!G65)))","v":0},{"$f":"Zielvereinbarung!G65","v":0},null,null,null,null,null,null,null,{"$f":"'BNB-System'!K61","v":0}]
[null,{"$f":"'BNB-System'!E62","v":" 3.1.4"},{"$f":"'BNB-System'!F62","v":"Akustischer Komfort"},{"$f":"'BNB-System'!G62","v":100},{"$f":"'BNB-System'!J62","v":9.7826086956521747E-3},null,{"$f":"IF(AND(NOT(ISBLANK(K66)),NOT(ISBLANK(L66))),('Bewertung durch Anwender'!K66),IF(AND(NOT(ISBLANK(J66)),NOT(ISBLANK(I66))),('Bewertung durch Anwender'!I66),(Zielvereinbarung!G66)))","v":0},{"$f":"Zielvereinbarung!G66","v":0},null,null,null,null,{"$f":"SUM(M68:M75)","v":0},{"$f":"SUM(N68:N75)","v":0},null,{"$f":"'BNB-System'!K62","v":100},{"$f":"IF(ISNUMBER(E66*N66/100),E66*N66/100,0)","v":0}]
[null,null,{"$f":"'BNB-System'!F63","v":"Räume Gruppe A"},null,null,null,null,{"$f":"Zielvereinbarung!G67","v":0},null,null,null,null,null,null,null,{"$f":"'BNB-System'!K63","v":0}]
[null,null,{"$f":"'BNB-System'!F64","v":"Musik "},{"$f":"'BNB-System'!G64","v":100},null,null,{"$f":"IF(AND(NOT(ISBLANK(K68)),NOT(ISBLANK(L68))),('Bewertung durch Anwender'!K68),IF(AND(NOT(ISBLANK(J68)),NOT(ISBLANK(I68))),('Bewertung durch Anwender'!I68),(Zielvereinbarung!G68)))","v":0}]
[null,null,{"$f":"'BNB-System'!F65","v":"Sprache/ Vortrag"},{"$f":"'BNB-System'!G65","v":100},null,null,{"$f":"IF(AND(NOT(ISBLANK(K69)),NOT(ISBLANK(L69))),('Bewertung durch Anwender'!K69),IF(AND(NOT(ISBLANK(J69)),NOT(ISBLANK(I69))),('Bewertung durch Anwender'!I69),(Zielvereinbarung!G69)))","v":0},{"$f":"Zielvereinbarung!G69","v":0},null,null,null,null,null,null,null,{"$f":"'BNB-System'!K65","v":0}]
[null,null,{"$f":"'BNB-System'!F66","v":"Unterricht/ Kommunikation"},{"$f":"'BNB-System'!G66","v":100},null,null,{"$f":"IF(AND(NOT(ISBLANK(K70)),NOT(ISBLANK(L70))),('Bewertung durch Anwender'!K70),IF(AND(NOT(ISBLANK(J70)),NOT(ISBLANK(I70))),('Bewertung durch Anwender'!I70),(Zielvereinbarung!G70)))","v":0},{"$f":"Zielvereinbarung!G70","v":0},null,null,null,null,null,null,null,{"$f":"'BNB-System'!K66","v":0}]
[null,null,{"$f":"'BNB-System'!F67","v":"Sport"},{"$f":"'BNB-System'!G67","v":100},null,null,{"$f":"IF(AND(NOT(ISBLANK(K71)),NOT(ISBLANK(L71))),('Bewertung durch Anwender'!K71),IF(AND(NOT(ISBLANK(J71)),NOT(ISBLANK(I71))),('Bewertung durch Anwender'!I71),(Zielvereinbarung!G71)))","v":0},{"$f":"Zielvereinbarung!G71","v":0},null,null,null,null,null,null,null,{"$f":"'BNB-System'!K67","v":0}]
[null,null,{"$f":"'BNB-System'!F68","v":"Räume Gruppe B"}]
[null,null,{"$f":"'BNB-System'!F69","v":"Einzel- und Mehrpersonenbüros bis 100 m³"},{"$f":"'BNB-System'!G69","v":100},null,null,{"$f":"IF(AND(NOT(ISBLANK(K73)),NOT(ISBLANK(L73))),('Bewertung durch Anwender'!K73),IF(AND(NOT(ISBLANK(J73)),NOT(ISBLANK(I73))),('Bewertung durch Anwender'!I73),(Zielvereinbarung!G73)))","v":0},{"$f":"Zielvereinbarung!G73","v":0},null,null,null,null,null,null,null,{"$f":"'BNB-System'!K69","v":0}]
[null,null,{"$f":"'BNB-System'!F70","v":"Mehrpersonenbüros über 100 m³"},{"$f":"'BNB-System'!G70","v":100},null,null,{"$f":"IF(AND(NOT(ISBLANK(K74)),NOT(ISBLANK(L74))),('Bewertung durch Anwender'!K74),IF(AND(NOT(ISBLANK(J74)),NOT(ISBLANK(I74))),('Bewertung durch Anwender'!I74),(Zielvereinbarung!G74)))","v":0},{"$f":"Zielvereinbarung!G74","v":0},null,null,null,null,null,null,null,{"$f":"'BNB-System'!K70","v":0}]
[null,null,{"$f":"'BNB-System'!F71","v":"Weitere Räume"},{"$f":"'BNB-System'!G71","v":100},null,null,{"$f":"IF(AND(NOT(ISBLANK(K75)),NOT(ISBLANK(L75))),('Bewertung durch Anwender'!K75),IF(AND(NOT(ISBLANK(J75)),NOT(ISBLANK(I75))),('Bewertung durch Anwender'!I75),(Zielvereinbarung!G75)))","v":0},{"$f":"Zielvereinbarung!G75","v":0},null,null,null,null,null,null,null,{"$f":"'BNB-System'!K71","v":0}]
[null,{"$f":"'BNB-System'!E72","v":" 3.1.5"},{"$f":"'BNB-System'!F72","v":"Visueller Komfort"},{"$f":"'BNB-System'!G72","v":100},{"$f":"'BNB-System'!J72","v":2.9347826086956522E-2},null,{"$f":"IF(AND(NOT(ISBLANK(K76)),NOT(ISBLANK(L76))),('Bewertung durch Anwender'!K76),IF(AND(NOT(ISBLANK(J76)),NOT(ISBLANK(I76))),('Bewertung durch Anwender'!I76),(Zielvereinbarung!G76)))","v":0},{"$f":"Zielvereinbarung!G76","v":0},null,null,null,null,{"$f":"SUM(M77:M83)","v":0},{"$f":"SUM(N77:N83)","v":0},null,{"$f":"'BNB-System'!K72","v":300},{"$f":"IF(ISNUMBER(E76*N76/100),E76*N76/100,0)","v":0}]
[null,null,{"$f":"'BNB-System'!F73","v":"Tageslichtverfügbarkeit Gesamtgebäude"},{"$f":"'BNB-System'!G73","v":15},null,null,{"$f":"IF(AND(NOT(ISBLANK(K77)),NOT(ISBLANK(L77))),('Bewertung durch Anwender'!K77),IF(AND(NOT(ISBLANK(J77)),NOT(ISBLANK(I77))),('Bewertung durch Anwender'!I77),(Zielvereinbarung!G77)))","v":0},{"$f":"Zielvereinbarung!G77","v":0},null,null,null,null,null,null,null,{"$f":"'BNB-System'!K73","v":0}]
[null,null,{"$f":"'BNB-System'!F74","v":"Tageslichtverfügbarkeit ständige Arbeitsplätze"},{"$f":"'BNB-System'!G74","v":15},null,null,{"$f":"IF(AND(NOT(ISBLANK(K78)),NOT(ISBLANK(L78))),('Bewertung durch Anwender'!K78),IF(AND(NOT(ISBLANK(J78)),NOT(ISBLANK(I78))),('Bewertung durch Anwender'!I78),(Zielvereinbarung!G78)))","v":0},{"$f":"Zielvereinbarung!G78","v":0},null,null,null,null,null,null,null,{"$f":"'BNB-System'!K74","v":0}]
[null,null,{"$f":"'BNB-System'!F75","v":"Nachweis de Sichtverbindung außen"},{"$f":"'BNB-System'!G75","v":15},null,null,{"$f":"IF(AND(NOT(ISBLANK(K79)),NOT(ISBLANK(L79))),('Bewertung durch Anwender'!K79),IF(AND(NOT(ISBLANK(J79)),NOT(ISBLANK(I79))),('Bewertung durch Anwender'!I79),(Zielvereinbarung!G79)))","v":0},{"$f":"Zielvereinbarung!G79","v":0},null,null,null,null,null,null,null,{"$f":"'BNB-System'!K75","v":0}]
[null,null,{"$f":"'BNB-System'!F76","v":"Blendfreiheit Tageslicht"},{"$f":"'BNB-System'!G76","v":15},null,null,{"$f":"IF(AND(NOT(ISBLANK(K80)),NOT(ISBLANK(L80))),('Bewertung durch Anwender'!K80),IF(AND(NOT(ISBLANK(J80)),NOT(ISBLANK(I80))),('Bewertung durch Anwender'!I80),(Zielvereinbarung!G80)))","v":0},{"$f":"Zielvereinbarung!G80","v":0},null,null,null,null,null,null,null,{"$f":"'BNB-System'!K76","v":0}]
[null,null,{"$f":"'BNB-System'!F77","v":"Blendfreiheit  Kunstlicht"},{"$f":"'BNB-System'!G77","v":10},null,null,{"$f":"IF(AND(NOT(ISBLANK(K81)),NOT(ISBLANK(L81))),('Bewertung durch Anwender'!K81),IF(AND(NOT(ISBLANK(J81)),NOT(ISBLANK(I81))),('Bewertung durch Anwender'!I81),(Zielvereinbarung!G81)))","v":0},{"$f":"Zielvereinbarung!G81","v":0},null,null,null,null,null,null,null,{"$f":"'BNB-System'!K77","v":0}]
[null,null,{"$f":"'BNB-System'!F78","v":"Lichtverteilung"},{"$f":"'BNB-System'!G78","v":15},null,null,{"$f":"IF(AND(NOT(ISBLANK(K82)),NOT(ISBLANK(L82))),('Bewertung durch Anwender'!K82),IF(AND(NOT(ISBLANK(J82)),NOT(ISBLANK(I82))),('Bewertung durch Anwender'!I82),(Zielvereinbarung!G82)))","v":0},{"$f":"Zielvereinbarung!G82","v":0},null,null,null,null,null,null,null,{"$f":"'BNB-System'!K78","v":0}]
[null,null,{"$f":"'BNB-System'!F79","v":"Farbwiedergabe"},{"$f":"'BNB-System'!G79","v":15},null,null,{"$f":"IF(AND(NOT(ISBLANK(K83)),NOT(ISBLANK(L83))),('Bewertung durch Anwender'!K83),IF(AND(NOT(ISBLANK(J83)),NOT(ISBLANK(I83))),('Bewertung durch Anwender'!I83),(Zielvereinbarung!G83)))","v":0},{"$f":"Zielvereinbarung!G83","v":0},null,null,null,null,null,null,null,{"$f":"'BNB-System'!K79","v":0}]
[null,{"$f":"'BNB-System'!E80","v":" 3.1.6"},{"$f":"'BNB-System'!F80","v":"Einflussnahmemöglichkeiten durch Nutzer"},{"$f":"'BNB-System'!G80","v":100},{"$f":"'BNB-System'!J80","v":1.9565217391304349E-2},null,{"$f":"IF(AND(NOT(ISBLANK(K84)),NOT(ISBLANK(L84))),('Bewertung durch Anwender'!K84),IF(AND(NOT(ISBLANK(J84)),NOT(ISBLANK(I84))),('Bewertung durch Anwender'!I84),(Zielvereinbarung!G84)))","v":0},{"$f":"Zielvereinbarung!G84","v":0},null,null,null,null,{"$f":"SUM(M85:M92)","v":0},{"$f":"SUM(N85:N92)","v":0},null,{"$f":"'BNB-System'!K80","v":200},{"$f":"IF(ISNUMBER(E84*N84/100),E84*N84/100,0)","v":0}]
[null,null,{"$f":"'BNB-System'!F81","v":"Lüftung"},{"$f":"'BNB-System'!G81","v":10},null,null,{"$f":"IF(AND(NOT(ISBLANK(K85)),NOT(ISBLANK(L85))),('Bewertung durch Anwender'!K85),IF(AND(NOT(ISBLANK(J85)),NOT(ISBLANK(I85))),('Bewertung durch Anwender'!I85),(Zielvereinbarung!G85)))","v":0},{"$f":"Zielvereinbarung!G85","v":0},null,null,null,null,null,null,null,{"$f":"'BNB-System'!K81","v":0}]
[null,null,{"$f":"'BNB-System'!F82","v":"Sonnenschutz"},{"$f":"'BNB-System'!G82","v":10},null,null,{"$f":"IF(AND(NOT(ISBLANK(K86)),NOT(ISBLANK(L86))),('Bewertung durch Anwender'!K86),IF(AND(NOT(ISBLANK(J86)),NOT(ISBLANK(I86))),('Bewertung durch Anwender'!I86),(Zielvereinbarung!G86)))","v":0},{"$f":"Zielvereinbarung!G86","v":0},null,null,null,null,null,null,null,{"$f":"'BNB-System'!K82","v":0}]
[null,null,{"$f":"'BNB-System'!F83","v":"Blendschutz"},{"$f":"'BNB-System'!G83","v":10},null,null,{"$f":"IF(AND(NOT(ISBLANK(K87)),NOT(ISBLANK(L87))),('Bewertung durch Anwender'!K87),IF(AND(NOT(ISBLANK(J87)),NOT(ISBLANK(I87))),('Bewertung durch Anwender'!I87),(Zielvereinbarung!G87)))","v":0},{"$f":"Zielvereinbarung!G87","v":0},null,null,null,null,null,null,null,{"$f":"'BNB-System'!K83","v":0}]
[null,null,{"$f":"'BNB-System'!F84","v":"Temperaturen während der Heizperiode"},{"$f":"'BNB-System'!G84","v":10},null,null,{"$f":"IF(AND(NOT(ISBLANK(K88)),NOT(ISBLANK(L88))),('Bewertung durch Anwender'!K88),IF(AND(NOT(ISBLANK(J88)),NOT(ISBLANK(I88))),('Bewertung durch Anwender'!I88),(Zielvereinbarung!G88)))","v":0},{"$f":"Zielvereinbarung!G88","v":0},null,null,null,null,null,null,null,{"$f":"'BNB-System'!K84","v":0}]
[null,null,{"$f":"'BNB-System'!F85","v":"Temperaturen außerhalb der Heizperiode"},{"$f":"'BNB-System'!G85","v":15},null,null,{"$f":"IF(AND(NOT(ISBLANK(K89)),NOT(ISBLANK(L89))),('Bewertung durch Anwender'!K89),IF(AND(NOT(ISBLANK(J89)),NOT(ISBLANK(I89))),('Bewertung durch Anwender'!I89),(Zielvereinbarung!G89)))","v":0},{"$f":"Zielvereinbarung!G89","v":0},null,null,null,null,null,null,null,{"$f":"'BNB-System'!K85","v":0}]
[null,null,{"$f":"'BNB-System'!F86","v":"Steuerung von Tageslicht"},{"$f":"'BNB-System'!G86","v":15},null,null,{"$f":"IF(AND(NOT(ISBLANK(K90)),NOT(ISBLANK(L90))),('Bewertung durch Anwender'!K90),IF(AND(NOT(ISBLANK(J90)),NOT(ISBLANK(I90))),('Bewertung durch Anwender'!I90),(Zielvereinbarung!G90)))","v":0},{"$f":"Zielvereinbarung!G90","v":0},null,null,null,null,null,null,null,{"$f":"'BNB-System'!K86","v":0}]
[null,null,{"$f":"'BNB-System'!F87","v":"Steuerung von  Kunstlicht"},{"$f":"'BNB-System'!G87","v":15},null,null,{"$f":"IF(AND(NOT(ISBLANK(K91)),NOT(ISBLANK(L91))),('Bewertung durch Anwender'!K91),IF(AND(NOT(ISBLANK(J91)),NOT(ISBLANK(I91))),('Bewertung durch Anwender'!I91),(Zielvereinbarung!G91)))","v":0},{"$f":"Zielvereinbarung!G91","v":0},null,null,null,null,null,null,null,{"$f":"'BNB-System'!K87","v":0}]
[null,null,{"$f":"'BNB-System'!F88","v":"Bedienfreundlichkeit"},{"$f":"'BNB-System'!G88","v":15},null,null,{"$f":"IF(AND(NOT(ISBLANK(K92)),NOT(ISBLANK(L92))),('Bewertung durch Anwender'!K92),IF(AND(NOT(ISBLANK(J92)),NOT(ISBLANK(I92))),('Bewertung durch Anwender'!I92),(Zielvereinbarung!G92)))","v":0},{"$f":"Zielvereinbarung!G92","v":0},null,null,null,null,null,null,null,{"$f":"'BNB-System'!K88","v":0}]
[null,{"$f":"'BNB-System'!E89","v":" 3.1.7"},{"$f":"'BNB-System'!F89","v":"Aufenthaltsqualitäten"},{"$f":"'BNB-System'!G89","v":100},{"$f":"'BNB-System'!J89","v":9.7826086956521747E-3},null,{"$f":"IF(AND(NOT(ISBLANK(K93)),NOT(ISBLANK(L93))),('Bewertung durch Anwender'!K93),IF(AND(NOT(ISBLANK(J93)),NOT(ISBLANK(I93))),('Bewertung durch Anwender'!I93),(Zielvereinbarung!G93)))","v":0},{"$f":"Zielvereinbarung!G93","v":0},null,null,null,null,{"$f":"SUM(M94:M106)","v":0},{"$f":"SUM(N94:N106)","v":0},null,{"$f":"'BNB-System'!K89","v":100},{"$f":"IF(ISNUMBER(E93*N93/100),E93*N93/100,0)","v":0}]
[null,null,{"$f":"'BNB-System'!F90","v":"Anzahl der Aufenthaltsbereiche im Gebäude"},{"$f":"'BNB-System'!G90","v":10},null,null,{"$f":"IF(AND(NOT(ISBLANK(K94)),NOT(ISBLANK(L94))),('Bewertung durch Anwender'!K94),IF(AND(NOT(ISBLANK(J94)),NOT(ISBLANK(I94))),('Bewertung durch Anwender'!I94),(Zielvereinbarung!G94)))","v":0},{"$f":"Zielvereinbarung!G94","v":0},null,null,null,null,null,null,null,{"$f":"'BNB-System'!K90","v":0}]
[null,null,{"$f":"'BNB-System'!F91","v":"Anzahl der Aufenthaltsbereiche im Außenraum"},{"$f":"'BNB-System'!G91","v":10},null,null,{"$f":"IF(AND(NOT(ISBLANK(K95)),NOT(ISBLANK(L95))),('Bewertung durch Anwender'!K95),IF(AND(NOT(ISBLANK(J95)),NOT(ISBLANK(I95))),('Bewertung durch Anwender'!I95),(Zielvereinbarung!G95)))","v":0},{"$f":"Zielvereinbarung!G95","v":0},null,null,null,null,null,null,null,{"$f":"'BNB-System'!K91","v":0}]
[null,null,{"$f":"'BNB-System'!F92","v":"Anzahl der Sitzmöglichkeiten in diesen Bereichen"},{"$f":"'BNB-System'!G92","v":40},null,null,{"$f":"IF(AND(NOT(ISBLANK(K96)),NOT(ISBLANK(L96))),('Bewertung durch Anwender'!K96),IF(AND(NOT(ISBLANK(J96)),NOT(ISBLANK(I96))),('Bewertung durch Anwender'!I96),(Zielvereinbarung!G96)))","v":0},{"$f":"Zielvereinbarung!G96","v":0},null,null,null,null,null,null,null,{"$f":"'BNB-System'!K92","v":0}]
[null,null,{"$f":"'BNB-System'!F93","v":"uneingeschränkte Nutzbarkeit der Erschließungsflächen als Aufenthaltsflächen"},{"$f":"'BNB-System'!G93","v":10},null,null,{"$f":"IF(AND(NOT(ISBLANK(K97)),NOT(ISBLANK(L97))),('Bewertung durch Anwender'!K97),IF(AND(NOT(ISBLANK(J97)),NOT(ISBLANK(I97))),('Bewertung durch Anwender'!I97),(Zielvereinbarung!G97)))","v":0},{"$f":"Zielvereinbarung!G97","v":0},null,null,null,null,null,null,null,{"$f":"'BNB-System'!K93","v":0}]
[null,null,{"$f":"'BNB-System'!F94","v":"Sichtbeziehungen"},{"$f":"'BNB-System'!G94","v":10},null,null,{"$f":"IF(AND(NOT(ISBLANK(K98)),NOT(ISBLANK(L98))),('Bewertung durch Anwender'!K98),IF(AND(NOT(ISBLANK(J98)),NOT(ISBLANK(I98))),('Bewertung durch Anwender'!I98),(Zielvereinbarung!G98)))","v":0},{"$f":"Zielvereinbarung!G98","v":0},null,null,null,null,null,null,null,{"$f":"'BNB-System'!K94","v":0}]
[null,null,{"$f":"'BNB-System'!F95","v":"Außenbezug"},{"$f":"'BNB-System'!G95","v":10},null,null,{"$f":"IF(AND(NOT(ISBLANK(K99)),NOT(ISBLANK(L99))),('Bewertung durch Anwender'!K99),IF(AND(NOT(ISBLANK(J99)),NOT(ISBLANK(I99))),('Bewertung durch Anwender'!I99),(Zielvereinbarung!G99)))","v":0},{"$f":"Zielvereinbarung!G99","v":0},null,null,null,null,null,null,null,{"$f":"'BNB-System'!K95","v":0}]
[null,null,{"$f":"'BNB-System'!F96","v":"Ausstattungsqualität der Aufenthaltsbereiche im Außenraum"},null,null,null,null,null,null,null,null,null,null,null,null,{"$f":"'BNB-System'!K96","v":0}]
[null,null,{"$f":"'BNB-System'!F97","v":"Beleuchtung"},{"$f":"'BNB-System'!G97","v":2},null,null,{"$f":"IF(AND(NOT(ISBLANK(K101)),NOT(ISBLANK(L101))),('Bewertung durch Anwender'!K101),IF(AND(NOT(ISBLANK(J101)),NOT(ISBLANK(I101))),('Bewertung durch Anwender'!I101),(Zielvereinbarung!G101)))","v":0},{"$f":"Zielvereinbarung!G101","v":0},null,null,null,null,null,null,null,{"$f":"'BNB-System'!K97","v":0}]
[null,null,{"$f":"'BNB-System'!F98","v":"Windschutz"},{"$f":"'BNB-System'!G98","v":2},null,null,{"$f":"IF(AND(NOT(ISBLANK(K102)),NOT(ISBLANK(L102))),('Bewertung durch Anwender'!K102),IF(AND(NOT(ISBLANK(J102)),NOT(ISBLANK(I102))),('Bewertung durch Anwender'!I102),(Zielvereinbarung!G102)))","v":0},{"$f":"Zielvereinbarung!G102","v":0},null,null,null,null,null,null,null,{"$f":"'BNB-System'!K98","v":0}]
[null,null,{"$f":"'BNB-System'!F99","v":"Überdachung / Regenschutz"},{"$f":"'BNB-System'!G99","v":2},null,null,{"$f":"IF(AND(NOT(ISBLANK(K103)),NOT(ISBLANK(L103))),('Bewertung durch Anwender'!K103),IF(AND(NOT(ISBLANK(J103)),NOT(ISBLANK(I103))),('Bewertung durch Anwender'!I103),(Zielvereinbarung!G103)))","v":0},{"$f":"Zielvereinbarung!G103","v":0},null,null,null,null,null,null,null,{"$f":"'BNB-System'!K99","v":0}]
[null,null,{"$f":"'BNB-System'!F100","v":"Sonnenschutz"},{"$f":"'BNB-System'!G100","v":2},null,null,{"$f":"IF(AND(NOT(ISBLANK(K104)),NOT(ISBLANK(L104))),('Bewertung durch Anwender'!K104),IF(AND(NOT(ISBLANK(J104)),NOT(ISBLANK(I104))),('Bewertung durch Anwender'!I104),(Zielvereinbarung!G104)))","v":0},{"$f":"Zielvereinbarung!G104","v":0},null,null,null,null,null,null,null,{"$f":"'BNB-System'!K100","v":0}]
[null,null,{"$f":"'BNB-System'!F101","v":"Stromversorgung für Außenarbeitsplätze"},{"$f":"'BNB-System'!G101","v":1},null,null,{"$f":"IF(AND(NOT(ISBLANK(K105)),NOT(ISBLANK(L105))),('Bewertung durch Anwender'!K105),IF(AND(NOT(ISBLANK(J105)),NOT(ISBLANK(I105))),('Bewertung durch Anwender'!I105),(Zielvereinbarung!G105)))","v":0},{"$f":"Zielvereinbarung!G105","v":0},null,null,null,null,null,null,null,{"$f":"'BNB-System'!K101","v":0}]
[null,null,{"$f":"'BNB-System'!F102","v":"Bepflanzung / Begrünung"},{"$f":"'BNB-System'!G102","v":1},null,null,{"$f":"IF(AND(NOT(ISBLANK(K106)),NOT(ISBLANK(L106))),('Bewertung durch Anwender'!K106),IF(AND(NOT(ISBLANK(J106)),NOT(ISBLANK(I106))),('Bewertung durch Anwender'!I106),(Zielvereinbarung!G106)))","v":0},{"$f":"Zielvereinbarung!G106","v":0},null,null,null,null,null,null,null,{"$f":"'BNB-System'!K102","v":0}]
[null,{"$f":"'BNB-System'!E103","v":" 3.1.8"},{"$f":"'BNB-System'!F103","v":"Sicherheit"},{"$f":"'BNB-System'!G103","v":100},{"$f":"'BNB-System'!J103","v":9.7826086956521747E-3},null,{"$f":"IF(AND(NOT(ISBLANK(K107)),NOT(ISBLANK(L107))),('Bewertung durch Anwender'!K107),IF(AND(NOT(ISBLANK(J107)),NOT(ISBLANK(I107))),('Bewertung durch Anwender'!I107),(Zielvereinbarung!G107)))","v":0},{"$f":"Zielvereinbarung!G107","v":0},null,null,null,null,null,null,null,{"$f":"'BNB-System'!K103","v":100},{"$f":"IF(ISNUMBER(E107*N107/100),E107*N107/100,0)","v":0}]
[null,null,{"$f":"'BNB-System'!F104","v":"Funktionalität"},null,null,null,null,null,null,null,null,null,null,null,null,{"$f":"'BNB-System'!K104","v":0}]
[null,{"$f":"'BNB-System'!E105","v":" 3.2.1"},{"$f":"'BNB-System'!F105","v":"Barrierefreiheit"},{"$f":"'BNB-System'!G105","v":100},{"$f":"'BNB-System'!J105","v":1.9565217391304349E-2},null,{"$f":"IF(AND(NOT(ISBLANK(K109)),NOT(ISBLANK(L109))),('Bewertung durch Anwender'!K109),IF(AND(NOT(ISBLANK(J109)),NOT(ISBLANK(I109))),('Bewertung durch Anwender'!I109),(Zielvereinbarung!G109)))","v":0},{"$f":"Zielvereinbarung!G109","v":0},null,null,null,null,null,null,null,{"$f":"'BNB-System'!K105","v":200},{"$f":"IF(ISNUMBER(E109*N109/100),E109*N109/100,0)","v":0}]
[null,{"$f":"'BNB-System'!E106","v":" 3.2.4"},{"$f":"'BNB-System'!F106","v":"Zugänglichkeit"},{"$f":"'BNB-System'!G106","v":100},{"$f":"'BNB-System'!J106","v":1.9565217391304349E-2},null,{"$f":"IF(AND(NOT(ISBLANK(K110)),NOT(ISBLANK(L110))),('Bewertung durch Anwender'!K110),IF(AND(NOT(ISBLANK(J110)),NOT(ISBLANK(I110))),('Bewertung durch Anwender'!I110),(Zielvereinbarung!G110)))","v":0},{"$f":"Zielvereinbarung!G110","v":0},null,null,null,null,{"$f":"SUM(M111:M115)","v":0},{"$f":"SUM(N111:N115)","v":0},null,{"$f":"'BNB-System'!K106","v":200},{"$f":"IF(ISNUMBER(E110*N110/100),E110*N110/100,0)","v":0}]
[null,null,{"$f":"'BNB-System'!F107","v":"Grundsätzliche Zugänglichkeit des Gebäudes"},{"$f":"'BNB-System'!G107","v":25},null,null,{"$f":"IF(AND(NOT(ISBLANK(K111)),NOT(ISBLANK(L111))),('Bewertung durch Anwender'!K111),IF(AND(NOT(ISBLANK(J111)),NOT(ISBLANK(I111))),('Bewertung durch Anwender'!I111),(Zielvereinbarung!G111)))","v":0},{"$f":"Zielvereinbarung!G111","v":0},null,null,null,null,null,null,null,{"$f":"'BNB-System'!K107","v":0}]
[null,null,{"$f":"'BNB-System'!F108","v":"Öffnung der Außenanlagen für die Öffentlichkeit"},{"$f":"'BNB-System'!G108","v":25},null,null,{"$f":"IF(AND(NOT(ISBLANK(K112)),NOT(ISBLANK(L112))),('Bewertung durch Anwender'!K112),IF(AND(NOT(ISBLANK(J112)),NOT(ISBLANK(I112))),('Bewertung durch Anwender'!I112),(Zielvereinbarung!G112)))","v":0},{"$f":"Zielvereinbarung!G112","v":0},null,null,null,null,null,null,null,{"$f":"'BNB-System'!K108","v":0}]
[null,null,{"$f":"'BNB-System'!F109","v":"Öffnung gebäudeinterner Einrichtungen für die Öffentlichkeit"},{"$f":"'BNB-System'!G109","v":25},null,null,{"$f":"IF(AND(NOT(ISBLANK(K113)),NOT(ISBLANK(L113))),('Bewertung durch Anwender'!K113),IF(AND(NOT(ISBLANK(J113)),NOT(ISBLANK(I113))),('Bewertung durch Anwender'!I113),(Zielvereinbarung!G113)))","v":0},{"$f":"Zielvereinbarung!G113","v":0},null,null,null,null,null,null,null,{"$f":"'BNB-System'!K109","v":0}]
[null,null,{"$f":"'BNB-System'!F110","v":"Möglichkeit der Anmietung von Räumlichkeiten "},{"$f":"'BNB-System'!G110","v":15},null,null,{"$f":"IF(AND(NOT(ISBLANK(K114)),NOT(ISBLANK(L114))),('Bewertung durch Anwender'!K114),IF(AND(NOT(ISBLANK(J114)),NOT(ISBLANK(I114))),('Bewertung durch Anwender'!I114),(Zielvereinbarung!G114)))","v":0},{"$f":"Zielvereinbarung!G114","v":0},null,null,null,null,null,null,null,{"$f":"'BNB-System'!K110","v":0}]
[null,null,{"$f":"'BNB-System'!F111","v":"Nutzungsvielfalt der öffentlich zugänglichen Bereiche"},{"$f":"'BNB-System'!G111","v":10},null,null,{"$f":"IF(AND(NOT(ISBLANK(K115)),NOT(ISBLANK(L115))),('Bewertung durch Anwender'!K115),IF(AND(NOT(ISBLANK(J115)),NOT(ISBLANK(I115))),('Bewertung durch Anwender'!I115),(Zielvereinbarung!G115)))","v":0},{"$f":"Zielvereinbarung!G115","v":0},null,null,null,null,null,null,null,{"$f":"'BNB-System'!K111","v":0}]
[null,{"$f":"'BNB-System'!E112","v":" 3.2.5"},{"$f":"'BNB-System'!F112","v":"Mobilitätsinfrastruktur"},{"$f":"'BNB-System'!G112","v":100},{"$f":"'BNB-System'!J112","v":9.7826086956521747E-3},null,{"$f":"IF(AND(NOT(ISBLANK(K116)),NOT(ISBLANK(L116))),('Bewertung durch Anwender'!K116),IF(AND(NOT(ISBLANK(J116)),NOT(ISBLANK(I116))),('Bewertung durch Anwender'!I116),(Zielvereinbarung!G116)))","v":0},{"$f":"Zielvereinbarung!G116","v":0},null,null,null,null,{"$f":"IF(SUM(M117:M119)>100,100,SUM(M117:M119))","v":0},{"$f":"IF(SUM(N117:N119)>100,100,SUM(N117:N119))","v":0},null,{"$f":"'BNB-System'!K112","v":100},{"$f":"IF(ISNUMBER(E116*N116/100),E116*N116/100,0)","v":0}]
[null,null,{"$f":"'BNB-System'!F113","v":"Anzahl der Fahrradstellplätze"},null,null,null,{"$f":"IF(AND(NOT(ISBLANK(K117)),NOT(ISBLANK(L117))),('Bewertung durch Anwender'!K117),IF(AND(NOT(ISBLANK(J117)),NOT(ISBLANK(I117))),('Bewertung durch Anwender'!I117),(Zielvereinbarung!G117)))","v":0},null,null,null,null,null,null,null,null,{"$f":"'BNB-System'!K113","v":0}]
[null,null,{"$f":"'BNB-System'!F114","v":"Anzahl der Lademöglichkeiten und Carsharing-Stellplätze"},null,null,null,{"$f":"IF(AND(NOT(ISBLANK(K118)),NOT(ISBLANK(L118))),('Bewertung durch Anwender'!K118),IF(AND(NOT(ISBLANK(J118)),NOT(ISBLANK(I118))),('Bewertung durch Anwender'!I118),(Zielvereinbarung!G118)))","v":0},null,null,null,null,null,null,null,null,{"$f":"'BNB-System'!K114","v":0}]
[null,null,{"$f":"'BNB-System'!F115","v":"Qualitative Anforderungen an Fahrradstellplätze"},null,null,null,{"$f":"IF(AND(NOT(ISBLANK(K119)),NOT(ISBLANK(L119))),('Bewertung durch Anwender'!K119),IF(AND(NOT(ISBLANK(J119)),NOT(ISBLANK(I119))),('Bewertung durch Anwender'!I119),(Zielvereinbarung!G119)))","v":0},null,null,null,null,null,null,null,null,{"$f":"'BNB-System'!K115","v":0}]
[null,null,{"$f":"'BNB-System'!F116","v":"Sicherung der Gestaltungsqualität"},null,null,null,null,null,null,null,null,null,null,null,null,{"$f":"'BNB-System'!K116","v":0}]
[null,{"$f":"'BNB-System'!E117","v":" 3.3.1"},{"$f":"'BNB-System'!F117","v":"Gestalterische und städtebauliche Qualität"},{"$f":"'BNB-System'!G117","v":100},{"$f":"'BNB-System'!J117","v":2.9347826086956522E-2},null,{"$f":"IF(AND(NOT(ISBLANK(K121)),NOT(ISBLANK(L121))),('Bewertung durch Anwender'!K121),IF(AND(NOT(ISBLANK(J121)),NOT(ISBLANK(I121))),('Bewertung durch Anwender'!I121),(Zielvereinbarung!G121)))","v":0},{"$f":"Zielvereinbarung!G121","v":0},null,null,null,null,{"$f":"IF(AND(M122>0,M126<=M127),SUM(M122:M125),IF(AND(M122>0,M127<=M126),SUM(M122:M125),IF(M126>0,M126,IF(M127>0,M127,))))","v":0},{"$f":"IF(AND(N122>0,N126<=N127),SUM(N122:N125),IF(AND(N122>0,N127<=N126),SUM(N122:N125),IF(N126>0,N126,IF(N127>0,N127,))))","v":0},null,{"$f":"'BNB-System'!K117","v":300},{"$f":"IF(ISNUMBER(E121*N121/100),E121*N121/100,0)","v":0}]
[null,null,{"$f":"'BNB-System'!F118","v":"Erfassung und Fortentwicklung der gestalterischen und städtebaulichen Qualität des Bestandsgebäudes"},{"$f":"'BNB-System'!G118","v":40},null,null,{"$f":"IF(AND(NOT(ISBLANK(K122)),NOT(ISBLANK(L122))),('Bewertung durch Anwender'!K122),IF(AND(NOT(ISBLANK(J122)),NOT(ISBLANK(I122))),('Bewertung durch Anwender'!I122),(Zielvereinbarung!G122)))","v":0},{"$f":"Zielvereinbarung!G122","v":0},null,null,null,null,null,null,null,{"$f":"'BNB-System'!K118","v":0}]
[null,null,{"$f":"'BNB-System'!F119","v":"Wettbewerbsverfahren"},{"$f":"'BNB-System'!G119","v":35},null,null,{"$f":"IF(AND(NOT(ISBLANK(K123)),NOT(ISBLANK(L123))),('Bewertung durch Anwender'!K123),IF(AND(NOT(ISBLANK(J123)),NOT(ISBLANK(I123))),('Bewertung durch Anwender'!I123),(Zielvereinbarung!G123)))","v":0},{"$f":"Zielvereinbarung!G123","v":0},null,null,null,null,null,null,null,{"$f":"'BNB-System'!K119","v":0}]
[null,null,{"$f":"'BNB-System'!F120","v":"Ausführung des Entwurfs eines der Preisträger"},{"$f":"'BNB-System'!G120","v":20},null,null,{"$f":"IF(AND(NOT(ISBLANK(K124)),NOT(ISBLANK(L124))),('Bewertung durch Anwender'!K124),IF(AND(NOT(ISBLANK(J124)),NOT(ISBLANK(I124))),('Bewertung durch Anwender'!I124),(Zielvereinbarung!G124)))","v":0},{"$f":"Zielvereinbarung!G124","v":0},null,null,null,null,null,null,null,{"$f":"'BNB-System'!K120","v":0}]
[null,null,{"$f":"'BNB-System'!F121","v":"Beauftragung des Planungsteams"},{"$f":"'BNB-System'!G121","v":5},null,null,{"$f":"IF(AND(NOT(ISBLANK(K125)),NOT(ISBLANK(L125))),('Bewertung durch Anwender'!K125),IF(AND(NOT(ISBLANK(J125)),NOT(ISBLANK(I125))),('Bewertung durch Anwender'!I125),(Zielvereinbarung!G125)))","v":0},{"$f":"Zielvereinbarung!G125","v":0},null,null,null,null,null,null,null,{"$f":"'BNB-System'!K121","v":0}]
[null,null,{"$f":"'BNB-System'!F122","v":"Auszeichnung mit einem Architekturpreis"},{"$f":"'BNB-System'!G122","v":40},null,null,{"$f":"IF(AND(NOT(ISBLANK(K126)),NOT(ISBLANK(L126))),('Bewertung durch Anwender'!K126),IF(AND(NOT(ISBLANK(J126)),NOT(ISBLANK(I126))),('Bewertung durch Anwender'!I126),(Zielvereinbarung!G126)))","v":0},{"$f":"Zielvereinbarung!G126","v":0},null,null,null,null,null,null,null,{"$f":"'BNB-System'!K122","v":0}]
[null,null,{"$f":"'BNB-System'!F123","v":"Unabhängiges Expertengremium"},{"$f":"'BNB-System'!G123","v":30},null,null,{"$f":"IF(AND(NOT(ISBLANK(K127)),NOT(ISBLANK(L127))),('Bewertung durch Anwender'!K127),IF(AND(NOT(ISBLANK(J127)),NOT(ISBLANK(I127))),('Bewertung durch Anwender'!I127),(Zielvereinbarung!G127)))","v":0},{"$f":"Zielvereinbarung!G127","v":0},null,null,null,null,null,null,null,{"$f":"'BNB-System'!K123","v":0}]
[null,{"$f":"'BNB-System'!E124","v":" 3.3.2"},{"$f":"'BNB-System'!F124","v":"Kunst am Bau "},{"$f":"'BNB-System'!G124","v":100},{"$f":"'BNB-System'!J124","v":9.7826086956521747E-3},null,{"$f":"IF(AND(NOT(ISBLANK(K128)),NOT(ISBLANK(L128))),('Bewertung durch Anwender'!K128),IF(AND(NOT(ISBLANK(J128)),NOT(ISBLANK(I128))),('Bewertung durch Anwender'!I128),(Zielvereinbarung!G128)))","v":0},{"$f":"Zielvereinbarung!G128","v":0},null,null,null,null,{"$f":"SUM(M129:M132)","v":0},{"$f":"SUM(N129:N132)","v":0},null,{"$f":"'BNB-System'!K124","v":100},{"$f":"IF(ISNUMBER(E128*N128/100),E128*N128/100,0)","v":0}]
[null,null,{"$f":"'BNB-System'!F125","v":"Mindestanforderung"},{"$f":"'BNB-System'!G125","v":10},null,null,{"$f":"IF(AND(NOT(ISBLANK(K129)),NOT(ISBLANK(L129))),('Bewertung durch Anwender'!K129),IF(AND(NOT(ISBLANK(J129)),NOT(ISBLANK(I129))),('Bewertung durch Anwender'!I129),(Zielvereinbarung!G129)))","v":0},{"$f":"Zielvereinbarung!G129","v":0},null,null,null,null,null,null,null,{"$f":"'BNB-System'!K125","v":0}]
[null,null,{"$f":"'BNB-System'!F126","v":"Bereitstellung von Mitteln im Rahmen der Bauaufgabe"},{"$f":"'BNB-System'!G126","v":30},null,null,{"$f":"IF(AND(NOT(ISBLANK(K130)),NOT(ISBLANK(L130))),('Bewertung durch Anwender'!K130),IF(AND(NOT(ISBLANK(J130)),NOT(ISBLANK(I130))),('Bewertung durch Anwender'!I130),(Zielvereinbarung!G130)))","v":0},{"$f":"Zielvereinbarung!G130","v":0},null,null,null,null,null,null,null,{"$f":"'BNB-System'!K126","v":0}]
[null,null,{"$f":"'BNB-System'!F127","v":"Umsetzung des Leitfadens Kunst am Bau"},{"$f":"'BNB-System'!G127","v":40},null,null,{"$f":"IF(AND(NOT(ISBLANK(K131)),NOT(ISBLANK(L131))),('Bewertung durch Anwender'!K131),IF(AND(NOT(ISBLANK(J131)),NOT(ISBLANK(I131))),('Bewertung durch Anwender'!I131),(Zielvereinbarung!G131)))","v":0},{"$f":"Zielvereinbarung!G131","v":0},null,null,null,null,null,null,null,{"$f":"'BNB-System'!K127","v":0}]
[null,null,{"$f":"'BNB-System'!F128","v":"Öffentlichkeitsarbeit, Rezeption  der Kunst am Bau"},{"$f":"'BNB-System'!G128","v":20},null,null,{"$f":"IF(AND(NOT(ISBLANK(K132)),NOT(ISBLANK(L132))),('Bewertung durch Anwender'!K132),IF(AND(NOT(ISBLANK(J132)),NOT(ISBLANK(I132))),('Bewertung durch Anwender'!I132),(Zielvereinbarung!G132)))","v":0},{"$f":"Zielvereinbarung!G132","v":0},null,null,null,null,null,null,null,{"$f":"'BNB-System'!K128","v":0}]
[null,null,null,null,null,null,null,null,null,null,null,null,null,null,null,{"$f":"'BNB-System'!K129","v":0}]
[null,{"$f":"'BNB-System'!E130","v":"Technische Qualität"},null,null,{"$f":"'BNB-System'!J130","v":0.22500000000000001},null,{"$f":"IF(AND(NOT(ISBLANK(K134)),NOT(ISBLANK(L134))),('Bewertung durch Anwender'!K134),IF(AND(NOT(ISBLANK(J134)),NOT(ISBLANK(I134))),('Bewertung durch Anwender'!I134),(Zielvereinbarung!G134)))","v":0},{"$f":"Zielvereinbarung!G134","v":0},null,null,null,null,{"$f":"M137*($E$137/100)+M142*($E$142/100)+M149*($E$149/100)+M159*($E$159/100)+M160*($E$160/100)+M161*($E$161/100)","v":0},{"$f":"N137*($E$137/100)+N142*($E$142/100)+N149*($E$149/100)+N159*($E$159/100)+N160*($E$160/100)+N161*($E$161/100)","v":0},null,{"$f":"'BNB-System'!K130","v":1000}]
[null,null,null,null,null,null,null,null,null,null,null,null,null,null,null,{"$f":"'BNB-System'!K131","v":0}]
[null,null,{"$f":"'BNB-System'!F132","v":"technische Ausführung"},null,null,null,null,null,null,null,null,null,null,null,null,{"$f":"'BNB-System'!K132","v":0}]
[null,{"$f":"'BNB-System'!E133","v":" 4.1.1"},{"$f":"'BNB-System'!F133","v":"Schallschutz "},{"$f":"'BNB-System'!G133","v":100},{"$f":"'BNB-System'!J133","v":4.5000000000000005E-2},null,{"$f":"IF(AND(NOT(ISBLANK(K137)),NOT(ISBLANK(L137))),('Bewertung durch Anwender'!K137),IF(AND(NOT(ISBLANK(J137)),NOT(ISBLANK(I137))),('Bewertung durch Anwender'!I137),(Zielvereinbarung!G137)))","v":0},{"$f":"Zielvereinbarung!G137","v":0},null,null,null,null,{"$f":"SUM(M138:M141)","v":0},{"$f":"SUM(N138:N141)","v":0},null,{"$f":"'BNB-System'!K133","v":200},{"$f":"IF(ISNUMBER(E137*N137/100),E137*N137/100,0)","v":0}]
[null,null,{"$f":"'BNB-System'!F134","v":"Luftschallschutz gegen Außenlärm"},{"$f":"'BNB-System'!G134","v":20},null,null,{"$f":"IF(AND(NOT(ISBLANK(K138)),NOT(ISBLANK(L138))),('Bewertung durch Anwender'!K138),IF(AND(NOT(ISBLANK(J138)),NOT(ISBLANK(I138))),('Bewertung durch Anwender'!I138),(Zielvereinbarung!G138)))","v":0},{"$f":"Zielvereinbarung!G138","v":0},null,null,null,null,null,null,null,{"$f":"'BNB-System'!K134","v":0}]
[null,null,{"$f":"'BNB-System'!F135","v":"Luftschallschutz gegenüber fremden und eigenen Arbeitsbereichen"},{"$f":"'BNB-System'!G135","v":30},null,null,{"$f":"IF(AND(NOT(ISBLANK(K139)),NOT(ISBLANK(L139))),('Bewertung durch Anwender'!K139),IF(AND(NOT(ISBLANK(J139)),NOT(ISBLANK(I139))),('Bewertung durch Anwender'!I139),(Zielvereinbarung!G139)))","v":0},{"$f":"Zielvereinbarung!G139","v":0},null,null,null,null,null,null,null,{"$f":"'BNB-System'!K135","v":0}]
[null,null,{"$f":"'BNB-System'!F136","v":"Trittschallschutz gegenüber fremden und eigenen Arbeitsbereichen"},{"$f":"'BNB-System'!G136","v":30},null,null,{"$f":"IF(AND(NOT(ISBLANK(K140)),NOT(ISBLANK(L140))),('Bewertung durch Anwender'!K140),IF(AND(NOT(ISBLANK(J140)),NOT(ISBLANK(I140))),('Bewertung durch Anwender'!I140),(Zielvereinbarung!G140)))","v":0},{"$f":"Zielvereinbarung!G140","v":0},null,null,null,null,null,null,null,{"$f":"'BNB-System'!K136","v":0}]
[null,null,{"$f":"'BNB-System'!F137","v":"Schallschutz gegenüber haustechnischen Anlagen"},{"$f":"'BNB-System'!G137","v":20},null,null,{"$f":"IF(AND(NOT(ISBLANK(K141)),NOT(ISBLANK(L141))),('Bewertung durch Anwender'!K141),IF(AND(NOT(ISBLANK(J141)),NOT(ISBLANK(I141))),('Bewertung durch Anwender'!I141),(Zielvereinbarung!G141)))","v":0},{"$f":"Zielvereinbarung!G141","v":0},null,null,null,null,null,null,null,{"$f":"'BNB-System'!K137","v":0}]
[null,{"$f":"'BNB-System'!E138","v":" 4.1.2"},{"$f":"'BNB-System'!F138","v":"Wärme- und Tauwasserschutz "},{"$f":"'BNB-System'!G138","v":100},{"$f":"'BNB-System'!J138","v":4.5000000000000005E-2},null,{"$f":"IF(AND(NOT(ISBLANK(K142)),NOT(ISBLANK(L142))),('Bewertung durch Anwender'!K142),IF(AND(NOT(ISBLANK(J142)),NOT(ISBLANK(I142))),('Bewertung durch Anwender'!I142),(Zielvereinbarung!G142)))","v":0},{"$f":"Zielvereinbarung!G142","v":0},null,null,null,null,{"$f":"SUM(M143:M148)","v":0},{"$f":"SUM(N143:N148)","v":0},null,{"$f":"'BNB-System'!K138","v":200},{"$f":"IF(ISNUMBER(E142*N142/100),E142*N142/100,0)","v":0}]
[null,null,{"$f":"'BNB-System'!F139","v":"Mittlere Wärmeduchgangskoeffizienten"},{"$f":"'BNB-System'!G139","v":30},null,null,{"$f":"IF(AND(NOT(ISBLANK(K143)),NOT(ISBLANK(L143))),('Bewertung durch Anwender'!K143),IF(AND(NOT(ISBLANK(J143)),NOT(ISBLANK(I143))),('Bewertung durch Anwender'!I143),(Zielvereinbarung!G143)))","v":0},{"$f":"Zielvereinbarung!G143","v":0},null,null,null,null,null,null,null,{"$f":"'BNB-System'!K139","v":0}]
[null,null,{"$f":"'BNB-System'!F140","v":"Wärmebrückenzuschlag"},{"$f":"'BNB-System'!G140","v":15},null,null,{"$f":"IF(AND(NOT(ISBLANK(K144)),NOT(ISBLANK(L144))),('Bewertung durch Anwender'!K144),IF(AND(NOT(ISBLANK(J144)),NOT(ISBLANK(I144))),('Bewertung durch Anwender'!I144),(Zielvereinbarung!G144)))","v":0},{"$f":"Zielvereinbarung!G144","v":0},null,null,null,null,null,null,null,{"$f":"'BNB-System'!K140","v":0}]
[null,null,{"$f":"'BNB-System'!F141","v":"Klassen der Luftdurchlässigkeit (Fugendurchlässigkeit)"},{"$f":"'BNB-System'!G141","v":15},null,null,{"$f":"IF(AND(NOT(ISBLANK(K145)),NOT(ISBLANK(L145))),('Bewertung durch Anwender'!K145),IF(AND(NOT(ISBLANK(J145)),NOT(ISBLANK(I145))),('Bewertung durch Anwender'!I145),(Zielvereinbarung!G145)))","v":0},{"$f":"Zielvereinbarung!G145","v":0},null,null,null,null,null,null,null,{"$f":"'BNB-System'!K141","v":0}]
[null,null,{"$f":"'BNB-System'!F142","v":"Tauwasserbildung"},{"$f":"'BNB-System'!G142","v":10},null,null,{"$f":"IF(AND(NOT(ISBLANK(K146)),NOT(ISBLANK(L146))),('Bewertung durch Anwender'!K146),IF(AND(NOT(ISBLANK(J146)),NOT(ISBLANK(I146))),('Bewertung durch Anwender'!I146),(Zielvereinbarung!G146)))","v":0},{"$f":"Zielvereinbarung!G146","v":0},null,null,null,null,null,null,null,{"$f":"'BNB-System'!K142","v":0}]
[null,null,{"$f":"'BNB-System'!F143","v":"Luftwechsel"},{"$f":"'BNB-System'!G143","v":15},null,null,{"$f":"IF(AND(NOT(ISBLANK(K147)),NOT(ISBLANK(L147))),('Bewertung durch Anwender'!K147),IF(AND(NOT(ISBLANK(J147)),NOT(ISBLANK(I147))),('Bewertung durch Anwender'!I147),(Zielvereinbarung!G147)))","v":0},{"$f":"Zielvereinbarung!G147","v":0},null,null,null,null,null,null,null,{"$f":"'BNB-System'!K143","v":0}]
[null,null,{"$f":"'BNB-System'!F144","v":"Sonneneintragswert"},{"$f":"'BNB-System'!G144","v":15},null,null,{"$f":"IF(AND(NOT(ISBLANK(K148)),NOT(ISBLANK(L148))),('Bewertung durch Anwender'!K148),IF(AND(NOT(ISBLANK(J148)),NOT(ISBLANK(I148))),('Bewertung durch Anwender'!I148),(Zielvereinbarung!G148)))","v":0},{"$f":"Zielvereinbarung!G148","v":0},null,null,null,null,null,null,null,{"$f":"'BNB-System'!K144","v":0}]
[null,{"$f":"'BNB-System'!E145","v":" 4.1.3"},{"$f":"'BNB-System'!F145","v":"Reinigungs- und Instandhaltungsfreundlichkeit"},{"$f":"'BNB-System'!G145","v":100},{"$f":"'BNB-System'!J145","v":4.5000000000000005E-2},null,{"$f":"IF(AND(NOT(ISBLANK(K149)),NOT(ISBLANK(L149))),('Bewertung durch Anwender'!K149),IF(AND(NOT(ISBLANK(J149)),NOT(ISBLANK(I149))),('Bewertung durch Anwender'!I149),(Zielvereinbarung!G149)))","v":0},{"$f":"Zielvereinbarung!G149","v":0},null,null,null,null,{"$f":"SUM(M150:M158)","v":0},{"$f":"SUM(N150:N158)","v":0},null,{"$f":"'BNB-System'!K145","v":200},{"$f":"IF(ISNUMBER(E149*N149/100),E149*N149/100,0)","v":0}]
[null,null,{"$f":"'BNB-System'!F146","v":"Tragkonstruktion"},{"$f":"'BNB-System'!G146","v":15},null,null,{"$f":"IF(AND(NOT(ISBLANK(K150)),NOT(ISBLANK(L150))),('Bewertung durch Anwender'!K150),IF(AND(NOT(ISBLANK(J150)),NOT(ISBLANK(I150))),('Bewertung durch Anwender'!I150),(Zielvereinbarung!G150)))","v":0},{"$f":"Zielvereinbarung!G150","v":0},null,null,null,null,null,null,null,{"$f":"'BNB-System'!K146","v":0}]
[null,null,{"$f":"'BNB-System'!F147","v":"Zugänglichkeit der Außenglasflächen"},{"$f":"'BNB-System'!G147","v":15},null,null,{"$f":"IF(AND(NOT(ISBLANK(K151)),NOT(ISBLANK(L151))),('Bewertung durch Anwender'!K151),IF(AND(NOT(ISBLANK(J151)),NOT(ISBLANK(I151))),('Bewertung durch Anwender'!I151),(Zielvereinbarung!G151)))","v":0},{"$f":"Zielvereinbarung!G151","v":0},null,null,null,null,null,null,null,{"$f":"'BNB-System'!K147","v":0}]
[null,null,{"$f":"'BNB-System'!F148","v":"Außenbauteile"},{"$f":"'BNB-System'!G148","v":9},null,null,{"$f":"IF(AND(NOT(ISBLANK(K152)),NOT(ISBLANK(L152))),('Bewertung durch Anwender'!K152),IF(AND(NOT(ISBLANK(J152)),NOT(ISBLANK(I152))),('Bewertung durch Anwender'!I152),(Zielvereinbarung!G152)))","v":0},{"$f":"Zielvereinbarung!G152","v":0},null,null,null,null,null,null,null,{"$f":"'BNB-System'!K148","v":0}]
[null,null,{"$f":"'BNB-System'!F149","v":"Bodenbelag"},{"$f":"'BNB-System'!G149","v":9},null,null,{"$f":"IF(AND(NOT(ISBLANK(K153)),NOT(ISBLANK(L153))),('Bewertung durch Anwender'!K153),IF(AND(NOT(ISBLANK(J153)),NOT(ISBLANK(I153))),('Bewertung durch Anwender'!I153),(Zielvereinbarung!G153)))","v":0},{"$f":"Zielvereinbarung!G153","v":0},null,null,null,null,null,null,null,{"$f":"'BNB-System'!K149","v":0}]
[null,null,{"$f":"'BNB-System'!F150","v":"Schmutzfangzone"},{"$f":"'BNB-System'!G150","v":9},null,null,{"$f":"IF(AND(NOT(ISBLANK(K154)),NOT(ISBLANK(L154))),('Bewertung durch Anwender'!K154),IF(AND(NOT(ISBLANK(J154)),NOT(ISBLANK(I154))),('Bewertung durch Anwender'!I154),(Zielvereinbarung!G154)))","v":0},{"$f":"Zielvereinbarung!G154","v":0},null,null,null,null,null,null,null,{"$f":"'BNB-System'!K150","v":0}]
[null,null,{"$f":"'BNB-System'!F151","v":"Fußbodenleisten"},{"$f":"'BNB-System'!G151","v":9},null,null,{"$f":"IF(AND(NOT(ISBLANK(K155)),NOT(ISBLANK(L155))),('Bewertung durch Anwender'!K155),IF(AND(NOT(ISBLANK(J155)),NOT(ISBLANK(I155))),('Bewertung durch Anwender'!I155),(Zielvereinbarung!G155)))","v":0},{"$f":"Zielvereinbarung!G155","v":0},null,null,null,null,null,null,null,{"$f":"'BNB-System'!K151","v":0}]
[null,null,{"$f":"'BNB-System'!F152","v":"Hindernisfreie Grundrissgestaltung"},{"$f":"'BNB-System'!G152","v":9},null,null,{"$f":"IF(AND(NOT(ISBLANK(K156)),NOT(ISBLANK(L156))),('Bewertung durch Anwender'!K156),IF(AND(NOT(ISBLANK(J156)),NOT(ISBLANK(I156))),('Bewertung durch Anwender'!I156),(Zielvereinbarung!G156)))","v":0},{"$f":"Zielvereinbarung!G156","v":0},null,null,null,null,null,null,null,{"$f":"'BNB-System'!K152","v":0}]
[null,null,{"$f":"'BNB-System'!F153","v":"Einbauten"},{"$f":"'BNB-System'!G153","v":10},null,null,{"$f":"IF(AND(NOT(ISBLANK(K157)),NOT(ISBLANK(L157))),('Bewertung durch Anwender'!K157),IF(AND(NOT(ISBLANK(J157)),NOT(ISBLANK(I157))),('Bewertung durch Anwender'!I157),(Zielvereinbarung!G157)))","v":0},{"$f":"Zielvereinbarung!G157","v":0},null,null,null,null,null,null,null,{"$f":"'BNB-System'!K153","v":0}]
[null,null,{"$f":"'BNB-System'!F154","v":"Zugänglichkeit der Innenglasflächen "},{"$f":"'BNB-System'!G154","v":15},null,null,{"$f":"IF(AND(NOT(ISBLANK(K158)),NOT(ISBLANK(L158))),('Bewertung durch Anwender'!K158),IF(AND(NOT(ISBLANK(J158)),NOT(ISBLANK(I158))),('Bewertung durch Anwender'!I158),(Zielvereinbarung!G158)))","v":0},{"$f":"Zielvereinbarung!G158","v":0},null,null,null,null,null,null,null,{"$f":"'BNB-System'!K154","v":0}]
[null,{"$f":"'BNB-System'!E155","v":" 4.1.4"},{"$f":"'BNB-System'!F155","v":"Rückbau, Trennung und Verwertung"},{"$f":"'BNB-System'!G155","v":100},{"$f":"'BNB-System'!J155","v":4.5000000000000005E-2},null,{"$f":"IF(AND(NOT(ISBLANK(K159)),NOT(ISBLANK(L159))),('Bewertung durch Anwender'!K159),IF(AND(NOT(ISBLANK(J159)),NOT(ISBLANK(I159))),('Bewertung durch Anwender'!I159),(Zielvereinbarung!G159)))","v":0},{"$f":"Zielvereinbarung!G159","v":0},null,null,null,null,null,null,null,{"$f":"'BNB-System'!K155","v":200},{"$f":"IF(ISNUMBER(E159*N159/100),E159*N159/100,0)","v":0}]
[null,{"$f":"'BNB-System'!E156","v":" 4.1.5"},{"$f":"'BNB-System'!F156","v":"Widerstandsfähigkeit gegen Naturgefahren"},{"$f":"'BNB-System'!G156","v":100},{"$f":"'BNB-System'!J156","v":2.2500000000000003E-2},null,{"$f":"IF(AND(NOT(ISBLANK(K160)),NOT(ISBLANK(L160))),('Bewertung durch Anwender'!K160),IF(AND(NOT(ISBLANK(J160)),NOT(ISBLANK(I160))),('Bewertung durch Anwender'!I160),(Zielvereinbarung!G160)))","v":0},{"$f":"Zielvereinbarung!G160","v":0},null,null,null,null,null,null,null,{"$f":"'BNB-System'!K156","v":100},{"$f":"IF(ISNUMBER(E160*N160/100),E160*N160/100,0)","v":0}]
[null,{"$f":"'BNB-System'!E157","v":" 4.1.6"},{"$f":"'BNB-System'!F157","v":"Bedienungs- und Instandhaltungsfreundlichkeit der TGA"},{"$f":"'BNB-System'!G157","v":100},{"$f":"'BNB-System'!J157","v":2.2500000000000003E-2},null,{"$f":"IF(AND(NOT(ISBLANK(K161)),NOT(ISBLANK(L161))),('Bewertung durch Anwender'!K161),IF(AND(NOT(ISBLANK(J161)),NOT(ISBLANK(I161))),('Bewertung durch Anwender'!I161),(Zielvereinbarung!G161)))","v":0},{"$f":"Zielvereinbarung!G161","v":0},null,null,null,null,null,null,null,{"$f":"'BNB-System'!K157","v":100},{"$f":"IF(ISNUMBER(E161*N161/100),E161*N161/100,0)","v":0}]
[null,null,null,null,null,null,null,null,null,null,null,null,null,null,null,{"$f":"'BNB-System'!K158","v":0}]
[null,{"$f":"'BNB-System'!E159","v":"Prozessqualität"},null,null,{"$f":"'BNB-System'!J159","v":0.1},null,{"$f":"IF(AND(NOT(ISBLANK(K163)),NOT(ISBLANK(L163))),('Bewertung durch Anwender'!K163),IF(AND(NOT(ISBLANK(J163)),NOT(ISBLANK(I163))),('Bewertung durch Anwender'!I163),(Zielvereinbarung!G163)))","v":0},{"$f":"Zielvereinbarung!G163","v":0},null,null,null,null,{"$f":"M166*($E$166/100)+M170*($E$170/100)+M176*($E$176/100)+M192*($E$192/100)+M193*($E$193/100)+M213*($E$213/100)+M218*($E$218/100)+M221*($E$221/100)","v":0},{"$f":"N166*($E$166/100)+N170*($E$170/100)+N176*($E$176/100)+N192*($E$192/100)+N193*($E$193/100)+N213*($E$213/100)+N218*($E$218/100)+N221*($E$221/100)","v":0},null,{"$f":"'BNB-System'!K159","v":2500}]
[null,null,null,null,null,null,null,null,null,null,null,null,null,null,null,{"$f":"'BNB-System'!K160","v":0}]
[null,null,{"$f":"'BNB-System'!F161","v":"Planung"},null,null,null,null,null,null,null,null,null,null,null,null,{"$f":"'BNB-System'!K161","v":0}]
[null,{"$f":"'BNB-System'!E162","v":" 5.1.1"},{"$f":"'BNB-System'!F162","v":"Projektvorbereitung"},{"$f":"'BNB-System'!G162","v":100},{"$f":"'BNB-System'!J162","v":1.2E-2},null,{"$f":"IF(AND(NOT(ISBLANK(K166)),NOT(ISBLANK(L166))),('Bewertung durch Anwender'!K166),IF(AND(NOT(ISBLANK(J166)),NOT(ISBLANK(I166))),('Bewertung durch Anwender'!I166),(Zielvereinbarung!G166)))","v":0},{"$f":"Zielvereinbarung!G166","v":0},null,null,null,null,null,null,null,{"$f":"'BNB-System'!K162","v":300},{"$f":"IF(ISNUMBER(E166*N166/100),E166*N166/100,0)","v":0}]
[null,null,{"$f":"'BNB-System'!F163","v":"Bedarfsplanung oder vergleichbare Planung"},{"$f":"'BNB-System'!G163","v":35},{"$f":"'BNB-System'!J163","v":0},null,{"$f":"IF(AND(NOT(ISBLANK(K167)),NOT(ISBLANK(L167))),('Bewertung durch Anwender'!K167),IF(AND(NOT(ISBLANK(J167)),NOT(ISBLANK(I167))),('Bewertung durch Anwender'!I167),(Zielvereinbarung!G167)))","v":0},{"$f":"Zielvereinbarung!G167","v":0},null,null,null,null,null,null,null,{"$f":"'BNB-System'!K163","v":0}]
[null,null,{"$f":"'BNB-System'!F164","v":"Zielvereinbarung"},{"$f":"'BNB-System'!G164","v":35},{"$f":"'BNB-System'!J164","v":0},null,{"$f":"IF(AND(NOT(ISBLANK(K168)),NOT(ISBLANK(L168))),('Bewertung durch Anwender'!K168),IF(AND(NOT(ISBLANK(J168)),NOT(ISBLANK(I168))),('Bewertung durch Anwender'!I168),(Zielvereinbarung!G168)))","v":0},{"$f":"Zielvereinbarung!G168","v":0},null,null,null,null,null,null,null,{"$f":"'BNB-System'!K164","v":0}]
[null,null,{"$f":"'BNB-System'!F165","v":"Architektenwettbewerb"},{"$f":"'BNB-System'!G165","v":30},{"$f":"'BNB-System'!J165","v":0},null,{"$f":"IF(AND(NOT(ISBLANK(K169)),NOT(ISBLANK(L169))),('Bewertung durch Anwender'!K169),IF(AND(NOT(ISBLANK(J169)),NOT(ISBLANK(I169))),('Bewertung durch Anwender'!I169),(Zielvereinbarung!G169)))","v":0},{"$f":"Zielvereinbarung!G169","v":0},null,null,null,null,null,null,null,{"$f":"'BNB-System'!K165","v":0}]
[null,{"$f":"'BNB-System'!E166","v":" 5.1.2"},{"$f":"'BNB-System'!F166","v":"Integrale Planung"},{"$f":"'BNB-System'!G166","v":100},{"$f":"'BNB-System'!J166","v":1.2E-2},null,{"$f":"IF(AND(NOT(ISBLANK(K170)),NOT(ISBLANK(L170))),('Bewertung durch Anwender'!K170),IF(AND(NOT(ISBLANK(J170)),NOT(ISBLANK(I170))),('Bewertung durch Anwender'!I170),(Zielvereinbarung!G170)))","v":0},{"$f":"Zielvereinbarung!G170","v":0},null,null,null,null,{"$f":"SUM(M171:M175)","v":0},{"$f":"SUM(N171:N175)","v":0},null,{"$f":"'BNB-System'!K166","v":300},{"$f":"IF(ISNUMBER(E170*N170/100),E170*N170/100,0)","v":0}]
[null,null,{"$f":"'BNB-System'!F167","v":"Integrales Planungsteam"},{"$f":"'BNB-System'!G167","v":30},null,null,{"$f":"IF(AND(NOT(ISBLANK(K171)),NOT(ISBLANK(L171))),('Bewertung durch Anwender'!K171),IF(AND(NOT(ISBLANK(J171)),NOT(ISBLANK(I171))),('Bewertung durch Anwender'!I171),(Zielvereinbarung!G171)))","v":0},{"$f":"Zielvereinbarung!G171","v":0},null,null,null,null,null,null,null,{"$f":"'BNB-System'!K167","v":0}]
[null,null,{"$f":"'BNB-System'!F168","v":"Qualifikation des Planungsteams"},{"$f":"'BNB-System'!G168","v":20},null,null,{"$f":"IF(AND(NOT(ISBLANK(K172)),NOT(ISBLANK(L172))),('Bewertung durch Anwender'!K172),IF(AND(NOT(ISBLANK(J172)),NOT(ISBLANK(I172))),('Bewertung durch Anwender'!I172),(Zielvereinbarung!G172)))","v":0},{"$f":"Zielvereinbarung!G172","v":0},null,null,null,null,null,null,null,{"$f":"'BNB-System'!K168","v":0}]
[null,null,{"$f":"'BNB-System'!F169","v":"Integraler Planungsprozess"},{"$f":"'BNB-System'!G169","v":20},null,null,{"$f":"IF(AND(NOT(ISBLANK(K173)),NOT(ISBLANK(L173))),('Bewertung durch Anwender'!K173),IF(AND(NOT(ISBLANK(J173)),NOT(ISBLANK(I173))),('Bewertung durch Anwender'!I173),(Zielvereinbarung!G173)))","v":0},{"$f":"Zielvereinbarung!G173","v":0},null,null,null,null,null,null,null,{"$f":"'BNB-System'!K169","v":0}]
[null,null,{"$f":"'BNB-System'!F170","v":"Nutzerbeteiligung"},{"$f":"'BNB-System'!G170","v":20},null,null,{"$f":"IF(AND(NOT(ISBLANK(K174)),NOT(ISBLANK(L174))),('Bewertung durch Anwender'!K174),IF(AND(NOT(ISBLANK(J174)),NOT(ISBLANK(I174))),('Bewertung durch Anwender'!I174),(Zielvereinbarung!G174)))","v":0},{"$f":"Zielvereinbarung!G174","v":0},null,null,null,null,null,null,null,{"$f":"'BNB-System'!K170","v":0}]
[null,null,{"$f":"'BNB-System'!F171","v":"Öffentlichkeitsbeteiligung"},{"$f":"'BNB-System'!G171","v":10},null,null,{"$f":"IF(AND(NOT(ISBLANK(K175)),NOT(ISBLANK(L175))),('Bewertung durch Anwender'!K175),IF(AND(NOT(ISBLANK(J175)),NOT(ISBLANK(I175))),('Bewertung durch Anwender'!I175),(Zielvereinbarung!G175)))","v":0},{"$f":"Zielvereinbarung!G175","v":0},null,null,null,null,null,null,null,{"$f":"'BNB-System'!K171","v":0}]
[null,{"$f":"'BNB-System'!E172","v":" 5.1.3"},{"$f":"'BNB-System'!F172","v":"Komplexität und Optimierung der Planung"},{"$f":"'BNB-System'!G172","v":100},{"$f":"'BNB-System'!J172","v":1.2E-2},null,{"$f":"IF(AND(NOT(ISBLANK(K176)),NOT(ISBLANK(L176))),('Bewertung durch Anwender'!K176),IF(AND(NOT(ISBLANK(J176)),NOT(ISBLANK(I176))),('Bewertung durch Anwender'!I176),(Zielvereinbarung!G176)))","v":0},{"$f":"Zielvereinbarung!G176","v":0},null,null,null,null,{"$f":"IF(SUM(M177:M191)>100,100,SUM(M177:M191))","v":0},{"$f":"IF(SUM(N177:N191)>100,100,SUM(N177:N191))","v":0},null,{"$f":"'BNB-System'!K172","v":300},{"$f":"IF(ISNUMBER(E176*N176/100),E176*N176/100,0)","v":0}]
[null,null,{"$f":"'BNB-System'!F173","v":"SiGe-Plan"},{"$f":"'BNB-System'!G173","v":10},null,null,{"$f":"IF(AND(NOT(ISBLANK(K177)),NOT(ISBLANK(L177))),('Bewertung durch Anwender'!K177),IF(AND(NOT(ISBLANK(J177)),NOT(ISBLANK(I177))),('Bewertung durch Anwender'!I177),(Zielvereinbarung!G177)))","v":0},{"$f":"Zielvereinbarung!G177","v":0},null,null,null,null,null,null,null,{"$f":"'BNB-System'!K173","v":0}]
[null,null,{"$f":"'BNB-System'!F174","v":"Ver- und Entsiegelungskonzept"},{"$f":"'BNB-System'!G174","v":10},null,null,{"$f":"IF(AND(NOT(ISBLANK(K178)),NOT(ISBLANK(L178))),('Bewertung durch Anwender'!K178),IF(AND(NOT(ISBLANK(J178)),NOT(ISBLANK(I178))),('Bewertung durch Anwender'!I178),(Zielvereinbarung!G178)))","v":0},{"$f":"Zielvereinbarung!G178","v":0},null,null,null,null,null,null,null,{"$f":"'BNB-System'!K174","v":0}]
[null,null,{"$f":"'BNB-System'!F175","v":"Energiekonzept"},{"$f":"'BNB-System'!G175","v":15},null,null,{"$f":"IF(AND(NOT(ISBLANK(K179)),NOT(ISBLANK(L179))),('Bewertung durch Anwender'!K179),IF(AND(NOT(ISBLANK(J179)),NOT(ISBLANK(I179))),('Bewertung durch Anwender'!I179),(Zielvereinbarung!G179)))","v":0},{"$f":"Zielvereinbarung!G179","v":0},null,null,null,null,null,null,null,{"$f":"'BNB-System'!K175","v":0}]
[null,null,{"$f":"'BNB-System'!F176","v":"Mess- und Monitoringkonzept"},{"$f":"'BNB-System'!G176","v":15},null,null,{"$f":"IF(AND(NOT(ISBLANK(K180)),NOT(ISBLANK(L180))),('Bewertung durch Anwender'!K180),IF(AND(NOT(ISBLANK(J180)),NOT(ISBLANK(I180))),('Bewertung durch Anwender'!I180),(Zielvereinbarung!G180)))","v":0},{"$f":"Zielvereinbarung!G180","v":0},null,null,null,null,null,null,null,{"$f":"'BNB-System'!K176","v":0}]
[null,null,{"$f":"'BNB-System'!F177","v":"Wasserkonzept"},{"$f":"'BNB-System'!G177","v":10},null,null,{"$f":"IF(AND(NOT(ISBLANK(K181)),NOT(ISBLANK(L181))),('Bewertung durch Anwender'!K181),IF(AND(NOT(ISBLANK(J181)),NOT(ISBLANK(I181))),('Bewertung durch Anwender'!I181),(Zielvereinbarung!G181)))","v":0},{"$f":"Zielvereinbarung!G181","v":0},null,null,null,null,null,null,null,{"$f":"'BNB-System'!K177","v":0}]
[null,null,{"$f":"'BNB-System'!F178","v":"Konzept zur Vermeidung von Umwelt- und Gesundheitsrisiken aus Bauprodukten"},{"$f":"'BNB-System'!G178","v":10},null,null,{"$f":"IF(AND(NOT(ISBLANK(K182)),NOT(ISBLANK(L182))),('Bewertung durch Anwender'!K182),IF(AND(NOT(ISBLANK(J182)),NOT(ISBLANK(I182))),('Bewertung durch Anwender'!I182),(Zielvereinbarung!G182)))","v":0},{"$f":"Zielvereinbarung!G182","v":0},null,null,null,null,null,null,null,{"$f":"'BNB-System'!K178","v":0}]
[null,null,{"$f":"'BNB-System'!F179","v":"Lüftungskonzept"},{"$f":"'BNB-System'!G179","v":10},null,null,{"$f":"IF(AND(NOT(ISBLANK(K183)),NOT(ISBLANK(L183))),('Bewertung durch Anwender'!K183),IF(AND(NOT(ISBLANK(J183)),NOT(ISBLANK(I183))),('Bewertung durch Anwender'!I183),(Zielvereinbarung!G183)))","v":0},{"$f":"Zielvereinbarung!G183","v":0},null,null,null,null,null,null,null,{"$f":"'BNB-System'!K179","v":0}]
[null,null,{"$f":"'BNB-System'!F180","v":"Abfallkonzept / Wertstoffkonzept"},{"$f":"'BNB-System'!G180","v":5},null,null,{"$f":"IF(AND(NOT(ISBLANK(K184)),NOT(ISBLANK(L184))),('Bewertung durch Anwender'!K184),IF(AND(NOT(ISBLANK(J184)),NOT(ISBLANK(I184))),('Bewertung durch Anwender'!I184),(Zielvereinbarung!G184)))","v":0},{"$f":"Zielvereinbarung!G184","v":0},null,null,null,null,null,null,null,{"$f":"'BNB-System'!K180","v":0}]
[null,null,{"$f":"'BNB-System'!F181","v":"Tages- / Kunstlichtoptimierung"},{"$f":"'BNB-System'!G181","v":10},null,null,{"$f":"IF(AND(NOT(ISBLANK(K185)),NOT(ISBLANK(L185))),('Bewertung durch Anwender'!K185),IF(AND(NOT(ISBLANK(J185)),NOT(ISBLANK(I185))),('Bewertung durch Anwender'!I185),(Zielvereinbarung!G185)))","v":0},{"$f":"Zielvereinbarung!G185","v":0},null,null,null,null,null,null,null,{"$f":"'BNB-System'!K181","v":0}]
[null,null,{"$f":"'BNB-System'!F182","v":"Konzept zur Sicherung der Reinigungs- und Instandhaltungsfreundlichkeit"},{"$f":"'BNB-System'!G182","v":10},null,null,{"$f":"IF(AND(NOT(ISBLANK(K186)),NOT(ISBLANK(L186))),('Bewertung durch Anwender'!K186),IF(AND(NOT(ISBLANK(J186)),NOT(ISBLANK(I186))),('Bewertung durch Anwender'!I186),(Zielvereinbarung!G186)))","v":0},{"$f":"Zielvereinbarung!G186","v":0},null,null,null,null,null,null,null,{"$f":"'BNB-System'!K182","v":0}]
[null,null,{"$f":"'BNB-System'!F183","v":"Anpassbarkeits-, Rückbau- und Recyclingkonzept"},{"$f":"'BNB-System'!G183","v":10},null,null,{"$f":"IF(AND(NOT(ISBLANK(K187)),NOT(ISBLANK(L187))),('Bewertung durch Anwender'!K187),IF(AND(NOT(ISBLANK(J187)),NOT(ISBLANK(I187))),('Bewertung durch Anwender'!I187),(Zielvereinbarung!G187)))","v":0},{"$f":"Zielvereinbarung!G187","v":0},null,null,null,null,null,null,null,{"$f":"'BNB-System'!K183","v":0}]
[null,null,{"$f":"'BNB-System'!F184","v":"Konzept zur Vermeidung und Beherrschung von Risiken"},{"$f":"'BNB-System'!G184","v":10},null,null,{"$f":"IF(AND(NOT(ISBLANK(K188)),NOT(ISBLANK(L188))),('Bewertung durch Anwender'!K188),IF(AND(NOT(ISBLANK(J188)),NOT(ISBLANK(I188))),('Bewertung durch Anwender'!I188),(Zielvereinbarung!G188)))","v":0},{"$f":"Zielvereinbarung!G188","v":0},null,null,null,null,null,null,null,{"$f":"'BNB-System'!K184","v":0}]
[null,null,{"$f":"'BNB-System'!F185","v":"Sonstige Konzepte zum Nachhaltigen Bauen"},{"$f":"'BNB-System'!G185","v":10},null,null,{"$f":"IF(AND(NOT(ISBLANK(K189)),NOT(ISBLANK(L189))),('Bewertung durch Anwender'!K189),IF(AND(NOT(ISBLANK(J189)),NOT(ISBLANK(I189))),('Bewertung durch Anwender'!I189),(Zielvereinbarung!G189)))","v":0},{"$f":"Zielvereinbarung!G189","v":0},null,null,null,null,null,null,null,{"$f":"'BNB-System'!K185","v":0}]
[null,null,{"$f":"'BNB-System'!F186","v":"Prüfung der Planungsunterlagen durch unabhängige Dritte"},{"$f":"'BNB-System'!G186","v":5},null,null,{"$f":"IF(AND(NOT(ISBLANK(K190)),NOT(ISBLANK(L190))),('Bewertung durch Anwender'!K190),IF(AND(NOT(ISBLANK(J190)),NOT(ISBLANK(I190))),('Bewertung durch Anwender'!I190),(Zielvereinbarung!G190)))","v":0},{"$f":"Zielvereinbarung!G190","v":0},null,null,null,null,null,null,null,{"$f":"'BNB-System'!K186","v":0}]
[null,null,{"$f":"'BNB-System'!F187","v":"Durchführung von Variantenvergleichen"},{"$f":"'BNB-System'!G187","v":10},null,null,{"$f":"IF(AND(NOT(ISBLANK(K191)),NOT(ISBLANK(L191))),('Bewertung durch Anwender'!K191),IF(AND(NOT(ISBLANK(J191)),NOT(ISBLANK(I191))),('Bewertung durch Anwender'!I191),(Zielvereinbarung!G191)))","v":0},{"$f":"Zielvereinbarung!G191","v":0},null,null,null,null,null,null,null,{"$f":"'BNB-System'!K187","v":0}]
[null,{"$f":"'BNB-System'!E188","v":" 5.1.4"},{"$f":"'BNB-System'!F188","v":"Ausschreibung und Vergabe"},{"$f":"'BNB-System'!G188","v":100},{"$f":"'BNB-System'!J188","v":8.0000000000000002E-3},null,{"$f":"IF(AND(NOT(ISBLANK(K192)),NOT(ISBLANK(L192))),('Bewertung durch Anwender'!K192),IF(AND(NOT(ISBLANK(J192)),NOT(ISBLANK(I192))),('Bewertung durch Anwender'!I192),(Zielvereinbarung!G192)))","v":0},{"$f":"Zielvereinbarung!G192","v":0},null,null,null,null,null,null,null,{"$f":"'BNB-System'!K188","v":200},{"$f":"IF(ISNUMBER(E192*N192/100),E192*N192/100,0)","v":0}]
[null,{"$f":"'BNB-System'!E189","v":" 5.1.5"},{"$f":"'BNB-System'!F189","v":"Voraussetzungen für eine optimale Bewirtschaftung"},{"$f":"'BNB-System'!G189","v":100},{"$f":"'BNB-System'!J189","v":8.0000000000000002E-3},null,{"$f":"IF(AND(NOT(ISBLANK(K193)),NOT(ISBLANK(L193))),('Bewertung durch Anwender'!K193),IF(AND(NOT(ISBLANK(J193)),NOT(ISBLANK(I193))),('Bewertung durch Anwender'!I193),(Zielvereinbarung!G193)))","v":0},{"$f":"Zielvereinbarung!G193","v":0},null,null,null,null,{"$f":"SUM(M194:M197)","v":0},{"$f":"SUM(N194:N197)","v":0},null,{"$f":"'BNB-System'!K189","v":200},{"$f":"IF(ISNUMBER(E193*N193/100),E193*N193/100,0)","v":0}]
[null,null,{"$f":"'BNB-System'!F190","v":"Erstellung einer Gebäudeakte / Objektdokumentation"},{"$f":"'BNB-System'!G190","v":25},null,null,{"$f":"IF(AND(NOT(ISBLANK(K194)),NOT(ISBLANK(L194))),('Bewertung durch Anwender'!K194),IF(AND(NOT(ISBLANK(J194)),NOT(ISBLANK(I194))),('Bewertung durch Anwender'!I194),(Zielvereinbarung!G194)))","v":0},{"$f":"Zielvereinbarung!G194","v":0},null,null,null,null,null,null,null,{"$f":"'BNB-System'!K190","v":0}]
[null,null,{"$f":"'BNB-System'!F191","v":"Erstellung von Wartungs-, Inspektions-, Betriebs-, und Pflegeanleitungen"},{"$f":"'BNB-System'!G191","v":25},null,null,{"$f":"IF(AND(NOT(ISBLANK(K195)),NOT(ISBLANK(L195))),('Bewertung durch Anwender'!K195),IF(AND(NOT(ISBLANK(J195)),NOT(ISBLANK(I195))),('Bewertung durch Anwender'!I195),(Zielvereinbarung!G195)))","v":0},{"$f":"Zielvereinbarung!G195","v":0},null,null,null,null,null,null,null,{"$f":"'BNB-System'!K191","v":0}]
[null,null,{"$f":"'BNB-System'!F192","v":"Anpassung der Pläne und Berechnungen an das realisierte Gebäude"},{"$f":"'BNB-System'!G192","v":25},null,null,{"$f":"IF(AND(NOT(ISBLANK(K196)),NOT(ISBLANK(L196))),('Bewertung durch Anwender'!K196),IF(AND(NOT(ISBLANK(J196)),NOT(ISBLANK(I196))),('Bewertung durch Anwender'!I196),(Zielvereinbarung!G196)))","v":0},{"$f":"Zielvereinbarung!G196","v":0},null,null,null,null,null,null,null,{"$f":"'BNB-System'!K192","v":0}]
[null,null,{"$f":"'BNB-System'!F193","v":"Erstellung eines Nutzerhandbuches"},{"$f":"'BNB-System'!G193","v":25},null,null,{"$f":"IF(AND(NOT(ISBLANK(K197)),NOT(ISBLANK(L197))),('Bewertung durch Anwender'!K197),IF(AND(NOT(ISBLANK(J197)),NOT(ISBLANK(I197))),('Bewertung durch Anwender'!I197),(Zielvereinbarung!G197)))","v":0},{"$f":"Zielvereinbarung!G197","v":0},null,null,null,null,null,null,null,{"$f":"'BNB-System'!K193","v":0}]
[null,{"$f":"'BNB-System'!E194","v":" 5.1.6"},{"$f":"'BNB-System'!F194","v":"Bestandsanalyse"},{"$f":"'BNB-System'!G194","v":100},{"$f":"'BNB-System'!J194","v":1.2E-2},null,{"$f":"IF(AND(NOT(ISBLANK(K198)),NOT(ISBLANK(L198))),('Bewertung durch Anwender'!K198),IF(AND(NOT(ISBLANK(J198)),NOT(ISBLANK(I198))),('Bewertung durch Anwender'!I198),(Zielvereinbarung!G198)))","v":0},{"$f":"Zielvereinbarung!G198","v":0},null,null,null,null,{"$f":"SUM(M199:M207)","v":0},{"$f":"SUM(N199:N207)","v":0}]
[null,null,{"$f":"'BNB-System'!F195","v":"Bestandsaufnahme Geometrie"},{"$f":"'BNB-System'!G195","v":10},null,null,{"$f":"IF(AND(NOT(ISBLANK(K199)),NOT(ISBLANK(L199))),('Bewertung durch Anwender'!K199),IF(AND(NOT(ISBLANK(J199)),NOT(ISBLANK(I199))),('Bewertung durch Anwender'!I199),(Zielvereinbarung!G199)))","v":0},{"$f":"Zielvereinbarung!G199","v":0}]
[null,null,{"$f":"'BNB-System'!F196","v":"Bestandsaufnahme Baukonstruktion und Baustoffe"},{"$f":"'BNB-System'!G196","v":20},null,null,{"$f":"IF(AND(NOT(ISBLANK(K200)),NOT(ISBLANK(L200))),('Bewertung durch Anwender'!K200),IF(AND(NOT(ISBLANK(J200)),NOT(ISBLANK(I200))),('Bewertung durch Anwender'!I200),(Zielvereinbarung!G200)))","v":0},{"$f":"Zielvereinbarung!G200","v":0}]
[null,null,{"$f":"'BNB-System'!F197","v":"Bestandsaufnahme Haustechnik"},{"$f":"'BNB-System'!G197","v":10},null,null,{"$f":"IF(AND(NOT(ISBLANK(K201)),NOT(ISBLANK(L201))),('Bewertung durch Anwender'!K201),IF(AND(NOT(ISBLANK(J201)),NOT(ISBLANK(I201))),('Bewertung durch Anwender'!I201),(Zielvereinbarung!G201)))","v":0},{"$f":"Zielvereinbarung!G201","v":0}]
[null,null,{"$f":"'BNB-System'!F198","v":"Bestandsaufnahme Bau- und Nutzungsgeschichte"},{"$f":"'BNB-System'!G198","v":5},null,null,{"$f":"IF(AND(NOT(ISBLANK(K202)),NOT(ISBLANK(L202))),('Bewertung durch Anwender'!K202),IF(AND(NOT(ISBLANK(J202)),NOT(ISBLANK(I202))),('Bewertung durch Anwender'!I202),(Zielvereinbarung!G202)))","v":0},{"$f":"Zielvereinbarung!G202","v":0}]
[null,null,{"$f":"'BNB-System'!F199","v":"Bestandsaufnahme Exposition"},{"$f":"'BNB-System'!G199","v":5},null,null,{"$f":"IF(AND(NOT(ISBLANK(K203)),NOT(ISBLANK(L203))),('Bewertung durch Anwender'!K203),IF(AND(NOT(ISBLANK(J203)),NOT(ISBLANK(I203))),('Bewertung durch Anwender'!I203),(Zielvereinbarung!G203)))","v":0},{"$f":"Zielvereinbarung!G203","v":0}]
[null,null,{"$f":"'BNB-System'!F200","v":"Baudiagnose Tragwerk"},{"$f":"'BNB-System'!G200","v":15},null,null,{"$f":"IF(AND(NOT(ISBLANK(K204)),NOT(ISBLANK(L204))),('Bewertung durch Anwender'!K204),IF(AND(NOT(ISBLANK(J204)),NOT(ISBLANK(I204))),('Bewertung durch Anwender'!I204),(Zielvereinbarung!G204)))","v":0},{"$f":"Zielvereinbarung!G204","v":0}]
[null,null,{"$f":"'BNB-System'!F201","v":"Baudiagnose Energetische Qualität"},{"$f":"'BNB-System'!G201","v":15},null,null,{"$f":"IF(AND(NOT(ISBLANK(K205)),NOT(ISBLANK(L205))),('Bewertung durch Anwender'!K205),IF(AND(NOT(ISBLANK(J205)),NOT(ISBLANK(I205))),('Bewertung durch Anwender'!I205),(Zielvereinbarung!G205)))","v":0},{"$f":"Zielvereinbarung!G205","v":0}]
[null,null,{"$f":"'BNB-System'!F202","v":"Baudiagnose Schadstoffe"},{"$f":"'BNB-System'!G202","v":10},null,null,{"$f":"IF(AND(NOT(ISBLANK(K206)),NOT(ISBLANK(L206))),('Bewertung durch Anwender'!K206),IF(AND(NOT(ISBLANK(J206)),NOT(ISBLANK(I206))),('Bewertung durch Anwender'!I206),(Zielvereinbarung!G206)))","v":0},{"$f":"Zielvereinbarung!G206","v":0}]
[null,null,{"$f":"'BNB-System'!F203","v":"Baudiagnose Feuchte- und Salzbelastung"},{"$f":"'BNB-System'!G203","v":10},null,null,{"$f":"IF(AND(NOT(ISBLANK(K207)),NOT(ISBLANK(L207))),('Bewertung durch Anwender'!K207),IF(AND(NOT(ISBLANK(J207)),NOT(ISBLANK(I207))),('Bewertung durch Anwender'!I207),(Zielvereinbarung!G207)))","v":0},{"$f":"Zielvereinbarung!G207","v":0}]
[null,{"$f":"'BNB-System'!E204","v":" 5.1.7"},{"$f":"'BNB-System'!F204","v":"Rückbaumaßnahmen"},{"$f":"'BNB-System'!G204","v":100},{"$f":"'BNB-System'!J204","v":4.0000000000000001E-3},null,{"$f":"IF(AND(NOT(ISBLANK(K208)),NOT(ISBLANK(L208))),('Bewertung durch Anwender'!K208),IF(AND(NOT(ISBLANK(J208)),NOT(ISBLANK(I208))),('Bewertung durch Anwender'!I208),(Zielvereinbarung!G208)))","v":0},{"$f":"Zielvereinbarung!G208","v":0},null,null,null,null,{"$f":"SUM(M209:M211)","v":0},{"$f":"SUM(N209:N211)","v":0}]
[null,null,{"$f":"'BNB-System'!F205","v":"Planung des Rückbaus"},{"$f":"'BNB-System'!G205","v":50},null,null,{"$f":"IF(AND(NOT(ISBLANK(K209)),NOT(ISBLANK(L209))),('Bewertung durch Anwender'!K209),IF(AND(NOT(ISBLANK(J209)),NOT(ISBLANK(I209))),('Bewertung durch Anwender'!I209),(Zielvereinbarung!G209)))","v":0},{"$f":"Zielvereinbarung!G209","v":0}]
[null,null,{"$f":"'BNB-System'!F206","v":"Selektiver Rückbau"},{"$f":"'BNB-System'!G206","v":25},null,null,{"$f":"IF(AND(NOT(ISBLANK(K210)),NOT(ISBLANK(L210))),('Bewertung durch Anwender'!K210),IF(AND(NOT(ISBLANK(J210)),NOT(ISBLANK(I210))),('Bewertung durch Anwender'!I210),(Zielvereinbarung!G210)))","v":0},{"$f":"Zielvereinbarung!G210","v":0}]
[null,null,{"$f":"'BNB-System'!F207","v":"Prüfen auf Abfalltrennung und Entsorgung"},{"$f":"'BNB-System'!G207","v":25},null,null,{"$f":"IF(AND(NOT(ISBLANK(K211)),NOT(ISBLANK(L211))),('Bewertung durch Anwender'!K211),IF(AND(NOT(ISBLANK(J211)),NOT(ISBLANK(I211))),('Bewertung durch Anwender'!I211),(Zielvereinbarung!G211)))","v":0},{"$f":"Zielvereinbarung!G211","v":0}]
[null,null,{"$f":"'BNB-System'!F208","v":"Bauausführung"},null,null,null,null,null,null,null,null,null,null,null,null,{"$f":"'BNB-System'!K208","v":0}]
[null,{"$f":"'BNB-System'!E209","v":" 5.2.1"},{"$f":"'BNB-System'!F209","v":"Baustelle / Bauprozess"},{"$f":"'BNB-System'!G209","v":100},{"$f":"'BNB-System'!J209","v":8.0000000000000002E-3},null,{"$f":"IF(AND(NOT(ISBLANK(K213)),NOT(ISBLANK(L213))),('Bewertung durch Anwender'!K213),IF(AND(NOT(ISBLANK(J213)),NOT(ISBLANK(I213))),('Bewertung durch Anwender'!I213),(Zielvereinbarung!G213)))","v":0},{"$f":"Zielvereinbarung!G213","v":0},null,null,null,null,{"$f":"SUM(M214:M217)","v":0},{"$f":"SUM(N214:N217)","v":0},null,{"$f":"'BNB-System'!K209","v":200},{"$f":"IF(ISNUMBER(E213*N213/100),E213*N213/100,0)","v":0}]
[null,null,{"$f":"'BNB-System'!F210","v":"Wertstoffoptimierte Baustelle"},{"$f":"'BNB-System'!G210","v":25},null,null,{"$f":"IF(AND(NOT(ISBLANK(K214)),NOT(ISBLANK(L214))),('Bewertung durch Anwender'!K214),IF(AND(NOT(ISBLANK(J214)),NOT(ISBLANK(I214))),('Bewertung durch Anwender'!I214),(Zielvereinbarung!G214)))","v":0},{"$f":"Zielvereinbarung!G214","v":0},null,null,null,null,null,null,null,{"$f":"'BNB-System'!K210","v":0}]
[null,null,{"$f":"'BNB-System'!F211","v":"Lärmarme Baustelle"},{"$f":"'BNB-System'!G211","v":25},null,null,{"$f":"IF(AND(NOT(ISBLANK(K215)),NOT(ISBLANK(L215))),('Bewertung durch Anwender'!K215),IF(AND(NOT(ISBLANK(J215)),NOT(ISBLANK(I215))),('Bewertung durch Anwender'!I215),(Zielvereinbarung!G215)))","v":0},{"$f":"Zielvereinbarung!G215","v":0},null,null,null,null,null,null,null,{"$f":"'BNB-System'!K211","v":0}]
[null,null,{"$f":"'BNB-System'!F212","v":"Staubarme Baustelle"},{"$f":"'BNB-System'!G212","v":25},null,null,{"$f":"IF(AND(NOT(ISBLANK(K216)),NOT(ISBLANK(L216))),('Bewertung durch Anwender'!K216),IF(AND(NOT(ISBLANK(J216)),NOT(ISBLANK(I216))),('Bewertung durch Anwender'!I216),(Zielvereinbarung!G216)))","v":0},{"$f":"Zielvereinbarung!G216","v":0},null,null,null,null,null,null,null,{"$f":"'BNB-System'!K212","v":0}]
[null,null,{"$f":"'BNB-System'!F213","v":"Bodenschutz auf der Baustelle"},{"$f":"'BNB-System'!G213","v":25},null,null,{"$f":"IF(AND(NOT(ISBLANK(K217)),NOT(ISBLANK(L217))),('Bewertung durch Anwender'!K217),IF(AND(NOT(ISBLANK(J217)),NOT(ISBLANK(I217))),('Bewertung durch Anwender'!I217),(Zielvereinbarung!G217)))","v":0},{"$f":"Zielvereinbarung!G217","v":0},null,null,null,null,null,null,null,{"$f":"'BNB-System'!K213","v":0}]
[null,{"$f":"'BNB-System'!E214","v":" 5.2.2"},{"$f":"'BNB-System'!F214","v":"Qualitätssicherung der Bauausführung"},{"$f":"'BNB-System'!G214","v":100},{"$f":"'BNB-System'!J214","v":1.2E-2},null,{"$f":"IF(AND(NOT(ISBLANK(K218)),NOT(ISBLANK(L218))),('Bewertung durch Anwender'!K218),IF(AND(NOT(ISBLANK(J218)),NOT(ISBLANK(I218))),('Bewertung durch Anwender'!I218),(Zielvereinbarung!G218)))","v":0},{"$f":"Zielvereinbarung!G218","v":0},null,null,null,null,{"$f":"SUM(M219:M220)","v":0},{"$f":"SUM(N219:N220)","v":0},null,{"$f":"'BNB-System'!K214","v":300},{"$f":"IF(ISNUMBER(E218*N218/100),E218*N218/100,0)","v":0}]
[null,null,{"$f":"'BNB-System'!F215","v":"Dokumentation"},{"$f":"'BNB-System'!G215","v":50},null,null,{"$f":"IF(AND(NOT(ISBLANK(K219)),NOT(ISBLANK(L219))),('Bewertung durch Anwender'!K219),IF(AND(NOT(ISBLANK(J219)),NOT(ISBLANK(I219))),('Bewertung durch Anwender'!I219),(Zielvereinbarung!G219)))","v":0},{"$f":"Zielvereinbarung!G219","v":0},null,null,null,null,null,null,null,{"$f":"'BNB-System'!K215","v":0}]
[null,null,{"$f":"'BNB-System'!F216","v":"Messungen zur Qualitätskontrolle"},{"$f":"'BNB-System'!G216","v":50},null,null,{"$f":"IF(AND(NOT(ISBLANK(K220)),NOT(ISBLANK(L220))),('Bewertung durch Anwender'!K220),IF(AND(NOT(ISBLANK(J220)),NOT(ISBLANK(I220))),('Bewertung durch Anwender'!I220),(Zielvereinbarung!G220)))","v":0},{"$f":"Zielvereinbarung!G220","v":0},null,null,null,null,null,null,null,{"$f":"'BNB-System'!K216","v":0}]
[null,{"$f":"'BNB-System'!E217","v":" 5.2.3"},{"$f":"'BNB-System'!F217","v":"Systematische Inbetriebnahme"},{"$f":"'BNB-System'!G217","v":100},{"$f":"'BNB-System'!J217","v":1.2E-2},null,{"$f":"IF(AND(NOT(ISBLANK(K221)),NOT(ISBLANK(L221))),('Bewertung durch Anwender'!K221),IF(AND(NOT(ISBLANK(J221)),NOT(ISBLANK(I221))),('Bewertung durch Anwender'!I221),(Zielvereinbarung!G221)))","v":0},{"$f":"Zielvereinbarung!G221","v":0},null,null,null,null,null,null,null,{"$f":"'BNB-System'!K217","v":300},{"$f":"IF(ISNUMBER(E221*N221/100),E221*N221/100,0)","v":0}]
[null,null,null,null,null,null,null,null,null,null,null,null,null,null,null,{"$f":"'BNB-System'!#REF!","v":{"$error":"#REF!"}}]
[null,null,null,null,null,null,null,null,null,null,null,null,null,null,null,{"$f":"'BNB-System'!K219","v":0}]
[null,{"$f":"'BNB-System'!E220","v":"Standortmerkmale"},null,null,{"$f":"'BNB-System'!J220","v":1},null,{"$f":"G227*(E227/100)+G233*(E233/100)+G240*(E240/100)+G245*(E245/100)+G249*(E249/100)+G259*(E259/100)","v":0},{"$f":"Zielvereinbarung!G224","v":0},null,null,null,null,{"$f":"M227*(E227/100)+M233*(E233/100)+M240*(E240/100)+M245*(E245/100)+M249*(E249/100)+M259*(E259/100)","v":0},{"$f":"N227*(E227/100)+N233*(E233/100)+N240*(E240/100)+N245*(E245/100)+N249*(E249/100)+N259*(E259/100)","v":0},null,{"$f":"'BNB-System'!K220","v":1300}]
[null,null,null,null,null,null,null,null,null,null,null,null,null,null,null,{"$f":"'BNB-System'!K221","v":0}]
[null,null,{"$f":"'BNB-System'!F222","v":"Standortmerkmale"},null,null,null,null,null,null,null,null,null,null,null,null,{"$f":"'BNB-System'!K222","v":0}]
[null,{"$f":"'BNB-System'!E223","v":" 6.1.1"},{"$f":"'BNB-System'!F223","v":"Risiken am Mikrostandort"},{"$f":"'BNB-System'!G223","v":100},{"$f":"'BNB-System'!J223","v":0.15384615384615385},null,{"$f":"IF(AND(NOT(ISBLANK(K227)),NOT(ISBLANK(L227))),('Bewertung durch Anwender'!K227),IF(AND(NOT(ISBLANK(J227)),NOT(ISBLANK(I227))),('Bewertung durch Anwender'!I227),(Zielvereinbarung!G227)))","v":0},{"$f":"Zielvereinbarung!G227","v":0},null,null,null,null,{"$f":"IF(SUM(M228:M232)>100,100,SUM(M228:M232))","v":0},{"$f":"IF(SUM(N228:N232)>100,100,SUM(N228:N232))","v":0},null,{"$f":"'BNB-System'!K223","v":200}]
[null,null,{"$f":"'BNB-System'!F224","v":"Risiken aus Man-Made-Hazards (Unfälle)"},{"$f":"'BNB-System'!G224","v":20},null,null,{"$f":"IF(AND(NOT(ISBLANK(K228)),NOT(ISBLANK(L228))),('Bewertung durch Anwender'!K228),IF(AND(NOT(ISBLANK(J228)),NOT(ISBLANK(I228))),('Bewertung durch Anwender'!I228),(Zielvereinbarung!G228)))","v":0},{"$f":"Zielvereinbarung!G228","v":0},null,null,null,null,null,null,null,{"$f":"'BNB-System'!K229","v":200}]
[null,null,{"$f":"'BNB-System'!F225","v":"Risiken aus Erdbeben"},{"$f":"'BNB-System'!G225","v":20},null,null,{"$f":"IF(AND(NOT(ISBLANK(K229)),NOT(ISBLANK(L229))),('Bewertung durch Anwender'!K229),IF(AND(NOT(ISBLANK(J229)),NOT(ISBLANK(I229))),('Bewertung durch Anwender'!I229),(Zielvereinbarung!G229)))","v":0},{"$f":"Zielvereinbarung!G229","v":0},null,null,null,null,null,null,null,{"$f":"'BNB-System'!K236","v":200}]
[null,null,{"$f":"'BNB-System'!F226","v":"Risiken aus Lawinen"},{"$f":"'BNB-System'!G226","v":20},null,null,{"$f":"IF(AND(NOT(ISBLANK(K230)),NOT(ISBLANK(L230))),('Bewertung durch Anwender'!K230),IF(AND(NOT(ISBLANK(J230)),NOT(ISBLANK(I230))),('Bewertung durch Anwender'!I230),(Zielvereinbarung!G230)))","v":0},{"$f":"Zielvereinbarung!G230","v":0},null,null,null,null,null,null,null,{"$f":"'BNB-System'!K241","v":300}]
[null,null,{"$f":"'BNB-System'!F227","v":"Risiken aus Sturm"},{"$f":"'BNB-System'!G227","v":20},null,null,{"$f":"IF(AND(NOT(ISBLANK(K231)),NOT(ISBLANK(L231))),('Bewertung durch Anwender'!K231),IF(AND(NOT(ISBLANK(J231)),NOT(ISBLANK(I231))),('Bewertung durch Anwender'!I231),(Zielvereinbarung!G231)))","v":0},{"$f":"Zielvereinbarung!G231","v":0},null,null,null,null,null,null,null,{"$f":"'BNB-System'!K245","v":200}]
[null,null,{"$f":"'BNB-System'!F228","v":"Risiken aus Hochwasser"},{"$f":"'BNB-System'!G228","v":20},null,null,{"$f":"IF(AND(NOT(ISBLANK(K232)),NOT(ISBLANK(L232))),('Bewertung durch Anwender'!K232),IF(AND(NOT(ISBLANK(J232)),NOT(ISBLANK(I232))),('Bewertung durch Anwender'!I232),(Zielvereinbarung!G232)))","v":0},{"$f":"Zielvereinbarung!G232","v":0},null,null,null,null,null,null,null,{"$f":"'BNB-System'!K255","v":200}]
[null,{"$f":"'BNB-System'!E229","v":" 6.1.2"},{"$f":"'BNB-System'!F229","v":"Verhältnisse am Mikrostandort"},{"$f":"'BNB-System'!G229","v":100},{"$f":"'BNB-System'!J229","v":0.15384615384615385},null,{"$f":"IF(AND(NOT(ISBLANK(K233)),NOT(ISBLANK(L233))),('Bewertung durch Anwender'!K233),IF(AND(NOT(ISBLANK(J233)),NOT(ISBLANK(I233))),('Bewertung durch Anwender'!I233),(Zielvereinbarung!G233)))","v":0},{"$f":"Zielvereinbarung!G233","v":0},null,null,null,null,{"$f":"IF(SUM(M234:M239)>100,100,SUM(M234:M239))","v":0},{"$f":"IF(SUM(N234:N239)>100,100,SUM(N234:N239))","v":0}]
[null,null,{"$f":"'BNB-System'!F230","v":"Außenluftqualität"},{"$f":"'BNB-System'!G230","v":16},null,null,{"$f":"IF(AND(NOT(ISBLANK(K234)),NOT(ISBLANK(L234))),('Bewertung durch Anwender'!K234),IF(AND(NOT(ISBLANK(J234)),NOT(ISBLANK(I234))),('Bewertung durch Anwender'!I234),(Zielvereinbarung!G234)))","v":0},{"$f":"Zielvereinbarung!G234","v":0}]
[null,null,{"$f":"'BNB-System'!F231","v":"Außenlärmpegel"},{"$f":"'BNB-System'!G231","v":20},null,null,{"$f":"IF(AND(NOT(ISBLANK(K235)),NOT(ISBLANK(L235))),('Bewertung durch Anwender'!K235),IF(AND(NOT(ISBLANK(J235)),NOT(ISBLANK(I235))),('Bewertung durch Anwender'!I235),(Zielvereinbarung!G235)))","v":0},{"$f":"Zielvereinbarung!G235","v":0}]
[null,null,{"$f":"'BNB-System'!F232","v":"Baugrundverhältnisse, Bodenbelastungen"},{"$f":"'BNB-System'!G232","v":16},null,null,{"$f":"IF(AND(NOT(ISBLANK(K236)),NOT(ISBLANK(L236))),('Bewertung durch Anwender'!K236),IF(AND(NOT(ISBLANK(J236)),NOT(ISBLANK(I236))),('Bewertung durch Anwender'!I236),(Zielvereinbarung!G236)))","v":0},{"$f":"Zielvereinbarung!G236","v":0}]
[null,null,{"$f":"'BNB-System'!F233","v":"Elektromagnetische Felder"},{"$f":"'BNB-System'!G233","v":16},null,null,{"$f":"IF(AND(NOT(ISBLANK(K237)),NOT(ISBLANK(L237))),('Bewertung durch Anwender'!K237),IF(AND(NOT(ISBLANK(J237)),NOT(ISBLANK(I237))),('Bewertung durch Anwender'!I237),(Zielvereinbarung!G237)))","v":0},{"$f":"Zielvereinbarung!G237","v":0}]
[null,null,{"$f":"'BNB-System'!F234","v":"Vorkommen von Radon"},{"$f":"'BNB-System'!G234","v":16},null,null,{"$f":"IF(AND(NOT(ISBLANK(K238)),NOT(ISBLANK(L238))),('Bewertung durch Anwender'!K238),IF(AND(NOT(ISBLANK(J238)),NOT(ISBLANK(I238))),('Bewertung durch Anwender'!I238),(Zielvereinbarung!G238)))","v":0},{"$f":"Zielvereinbarung!G238","v":0}]
[null,null,{"$f":"'BNB-System'!F235","v":"Stadt- und Landschaftsbild / Sichtbeziehungen"},{"$f":"'BNB-System'!G235","v":16},null,null,{"$f":"IF(AND(NOT(ISBLANK(K239)),NOT(ISBLANK(L239))),('Bewertung durch Anwender'!K239),IF(AND(NOT(ISBLANK(J239)),NOT(ISBLANK(I239))),('Bewertung durch Anwender'!I239),(Zielvereinbarung!G239)))","v":0},{"$f":"Zielvereinbarung!G239","v":0}]
[null,{"$f":"'BNB-System'!E236","v":" 6.1.3"},{"$f":"'BNB-System'!F236","v":"Quartiersmerkmale"},{"$f":"'BNB-System'!G236","v":100},{"$f":"'BNB-System'!J236","v":0.15384615384615385},null,{"$f":"IF(AND(NOT(ISBLANK(K240)),NOT(ISBLANK(L240))),('Bewertung durch Anwender'!K240),IF(AND(NOT(ISBLANK(J240)),NOT(ISBLANK(I240))),('Bewertung durch Anwender'!I240),(Zielvereinbarung!G240)))","v":0},{"$f":"Zielvereinbarung!G240","v":0},null,null,null,null,{"$f":"IF(SUM(M241:M244)>100,100,SUM(M241:M244))","v":0},{"$f":"IF(SUM(N241:N244)>100,100,SUM(N241:N244))","v":0}]
[null,null,{"$f":"'BNB-System'!F237","v":"Image, Attraktivität"},{"$f":"'BNB-System'!G237","v":25},null,null,{"$f":"IF(AND(NOT(ISBLANK(K241)),NOT(ISBLANK(L241))),('Bewertung durch Anwender'!K241),IF(AND(NOT(ISBLANK(J241)),NOT(ISBLANK(I241))),('Bewertung durch Anwender'!I241),(Zielvereinbarung!G241)))","v":0},{"$f":"Zielvereinbarung!G241","v":0}]
[null,null,{"$f":"'BNB-System'!F238","v":"Synergie- und Konfliktpotenziale"},{"$f":"'BNB-System'!G238","v":25},null,null,{"$f":"IF(AND(NOT(ISBLANK(K242)),NOT(ISBLANK(L242))),('Bewertung durch Anwender'!K242),IF(AND(NOT(ISBLANK(J242)),NOT(ISBLANK(I242))),('Bewertung durch Anwender'!I242),(Zielvereinbarung!G242)))","v":0},{"$f":"Zielvereinbarung!G242","v":0}]
[null,null,{"$f":"'BNB-System'!F239","v":"Kriminalität"},{"$f":"'BNB-System'!G239","v":25},null,null,{"$f":"IF(AND(NOT(ISBLANK(K243)),NOT(ISBLANK(L243))),('Bewertung durch Anwender'!K243),IF(AND(NOT(ISBLANK(J243)),NOT(ISBLANK(I243))),('Bewertung durch Anwender'!I243),(Zielvereinbarung!G243)))","v":0},{"$f":"Zielvereinbarung!G243","v":0}]
[null,null,{"$f":"'BNB-System'!F240","v":"Pflege und Erhaltungszustand"},{"$f":"'BNB-System'!G240","v":25},null,null,{"$f":"IF(AND(NOT(ISBLANK(K244)),NOT(ISBLANK(L244))),('Bewertung durch Anwender'!K244),IF(AND(NOT(ISBLANK(J244)),NOT(ISBLANK(I244))),('Bewertung durch Anwender'!I244),(Zielvereinbarung!G244)))","v":0},{"$f":"Zielvereinbarung!G244","v":0}]
[null,{"$f":"'BNB-System'!E241","v":" 6.1.4"},{"$f":"'BNB-System'!F241","v":"Verkehrsanbindung"},{"$f":"'BNB-System'!G241","v":100},{"$f":"'BNB-System'!J241","v":0.23076923076923078},null,{"$f":"IF(AND(NOT(ISBLANK(K245)),NOT(ISBLANK(L245))),('Bewertung durch Anwender'!K245),IF(AND(NOT(ISBLANK(J245)),NOT(ISBLANK(I245))),('Bewertung durch Anwender'!I245),(Zielvereinbarung!G245)))","v":0},{"$f":"Zielvereinbarung!G245","v":0},null,null,null,null,{"$f":"IF(SUM(M246:M248)>100,100,SUM(M246:M248))","v":0},{"$f":"IF(SUM(N246:N248)>100,100,SUM(N246:N248))","v":0}]
[null,null,{"$f":"'BNB-System'!F242","v":"Erreichbarkeit Haupt-/ Fernbahnhof"},{"$f":"'BNB-System'!G242","v":30},null,null,{"$f":"IF(AND(NOT(ISBLANK(K246)),NOT(ISBLANK(L246))),('Bewertung durch Anwender'!K246),IF(AND(NOT(ISBLANK(J246)),NOT(ISBLANK(I246))),('Bewertung durch Anwender'!I246),(Zielvereinbarung!G246)))","v":0},{"$f":"Zielvereinbarung!G246","v":0}]
[null,null,{"$f":"'BNB-System'!F243","v":"Erreichbarkeit ÖPNV"},{"$f":"'BNB-System'!G243","v":30},null,null,{"$f":"IF(AND(NOT(ISBLANK(K247)),NOT(ISBLANK(L247))),('Bewertung durch Anwender'!K247),IF(AND(NOT(ISBLANK(J247)),NOT(ISBLANK(I247))),('Bewertung durch Anwender'!I247),(Zielvereinbarung!G247)))","v":0},{"$f":"Zielvereinbarung!G247","v":0}]
[null,null,{"$f":"'BNB-System'!F244","v":"Fuß- und Radwege"},{"$f":"'BNB-System'!G244","v":40},null,null,{"$f":"IF(AND(NOT(ISBLANK(K248)),NOT(ISBLANK(L248))),('Bewertung durch Anwender'!K248),IF(AND(NOT(ISBLANK(J248)),NOT(ISBLANK(I248))),('Bewertung durch Anwender'!I248),(Zielvereinbarung!G248)))","v":0},{"$f":"Zielvereinbarung!G248","v":0}]
[null,{"$f":"'BNB-System'!E245","v":" 6.1.5"},{"$f":"'BNB-System'!F245","v":"Nähe zu nutzungsrelevanten Einrichtungen"},{"$f":"'BNB-System'!G245","v":100},{"$f":"'BNB-System'!J245","v":0.15384615384615385},null,{"$f":"IF(AND(NOT(ISBLANK(K249)),NOT(ISBLANK(L249))),('Bewertung durch Anwender'!K249),IF(AND(NOT(ISBLANK(J249)),NOT(ISBLANK(I249))),('Bewertung durch Anwender'!I249),(Zielvereinbarung!G249)))","v":0},{"$f":"Zielvereinbarung!G249","v":0},null,null,null,null,{"$f":"IF(SUM(M250:M258)>100,100,SUM(M250:M258))","v":0},{"$f":"IF(SUM(N250:N258)>100,100,SUM(N250:N258))","v":0}]
[null,null,{"$f":"'BNB-System'!F246","v":"Gastronomie"},{"$f":"'BNB-System'!G246","v":10},null,null,{"$f":"IF(AND(NOT(ISBLANK(K250)),NOT(ISBLANK(L250))),('Bewertung durch Anwender'!K250),IF(AND(NOT(ISBLANK(J250)),NOT(ISBLANK(I250))),('Bewertung durch Anwender'!I250),(Zielvereinbarung!G250)))","v":0},{"$f":"Zielvereinbarung!G250","v":0}]
[null,null,{"$f":"'BNB-System'!F247","v":"Nahversorgung"},{"$f":"'BNB-System'!G247","v":10},null,null,{"$f":"IF(AND(NOT(ISBLANK(K251)),NOT(ISBLANK(L251))),('Bewertung durch Anwender'!K251),IF(AND(NOT(ISBLANK(J251)),NOT(ISBLANK(I251))),('Bewertung durch Anwender'!I251),(Zielvereinbarung!G251)))","v":0},{"$f":"Zielvereinbarung!G251","v":0}]
[null,null,{"$f":"'BNB-System'!F248","v":"Parkanlagen und Freiräume"},{"$f":"'BNB-System'!G248","v":20},null,null,{"$f":"IF(AND(NOT(ISBLANK(K252)),NOT(ISBLANK(L252))),('Bewertung durch Anwender'!K252),IF(AND(NOT(ISBLANK(J252)),NOT(ISBLANK(I252))),('Bewertung durch Anwender'!I252),(Zielvereinbarung!G252)))","v":0},{"$f":"Zielvereinbarung!G252","v":0}]
[null,null,{"$f":"'BNB-System'!F249","v":"Bildung"},{"$f":"'BNB-System'!G249","v":10},null,null,{"$f":"IF(AND(NOT(ISBLANK(K253)),NOT(ISBLANK(L253))),('Bewertung durch Anwender'!K253),IF(AND(NOT(ISBLANK(J253)),NOT(ISBLANK(I253))),('Bewertung durch Anwender'!I253),(Zielvereinbarung!G253)))","v":0},{"$f":"Zielvereinbarung!G253","v":0}]
[null,null,{"$f":"'BNB-System'!F250","v":"Öffentliche Verwaltung"},{"$f":"'BNB-System'!G250","v":10},null,null,{"$f":"IF(AND(NOT(ISBLANK(K254)),NOT(ISBLANK(L254))),('Bewertung durch Anwender'!K254),IF(AND(NOT(ISBLANK(J254)),NOT(ISBLANK(I254))),('Bewertung durch Anwender'!I254),(Zielvereinbarung!G254)))","v":0},{"$f":"Zielvereinbarung!G254","v":0}]
[null,null,{"$f":"'BNB-System'!F251","v":"Medizinische Versorgung"},{"$f":"'BNB-System'!G251","v":10},null,null,{"$f":"IF(AND(NOT(ISBLANK(K255)),NOT(ISBLANK(L255))),('Bewertung durch Anwender'!K255),IF(AND(NOT(ISBLANK(J255)),NOT(ISBLANK(I255))),('Bewertung durch Anwender'!I255),(Zielvereinbarung!G255)))","v":0},{"$f":"Zielvereinbarung!G255","v":0}]
[null,null,{"$f":"'BNB-System'!F252","v":"Sportstätten"},{"$f":"'BNB-System'!G252","v":10},null,null,{"$f":"IF(AND(NOT(ISBLANK(K256)),NOT(ISBLANK(L256))),('Bewertung durch Anwender'!K256),IF(AND(NOT(ISBLANK(J256)),NOT(ISBLANK(I256))),('Bewertung durch Anwender'!I256),(Zielvereinbarung!G256)))","v":0},{"$f":"Zielvereinbarung!G256","v":0}]
[null,null,{"$f":"'BNB-System'!F253","v":"Freizeit"},{"$f":"'BNB-System'!G253","v":10},null,null,{"$f":"IF(AND(NOT(ISBLANK(K257)),NOT(ISBLANK(L257))),('Bewertung durch Anwender'!K257),IF(AND(NOT(ISBLANK(J257)),NOT(ISBLANK(I257))),('Bewertung durch Anwender'!I257),(Zielvereinbarung!G257)))","v":0},{"$f":"Zielvereinbarung!G257","v":0}]
[null,null,{"$f":"'BNB-System'!F254","v":"Dienstleister"},{"$f":"'BNB-System'!G254","v":10},null,null,{"$f":"IF(AND(NOT(ISBLANK(K258)),NOT(ISBLANK(L258))),('Bewertung durch Anwender'!K258),IF(AND(NOT(ISBLANK(J258)),NOT(ISBLANK(I258))),('Bewertung durch Anwender'!I258),(Zielvereinbarung!G258)))","v":0},{"$f":"Zielvereinbarung!G258","v":0}]
[null,{"$f":"'BNB-System'!E255","v":" 6.1.6"},{"$f":"'BNB-System'!F255","v":"Anliegende Medien / Erschließung"},{"$f":"'BNB-System'!G255","v":100},{"$f":"'BNB-System'!J255","v":0.15384615384615385},null,{"$f":"IF(AND(NOT(ISBLANK(K259)),NOT(ISBLANK(L259))),('Bewertung durch Anwender'!K259),IF(AND(NOT(ISBLANK(J259)),NOT(ISBLANK(I259))),('Bewertung durch Anwender'!I259),(Zielvereinbarung!G259)))","v":0},{"$f":"Zielvereinbarung!G259","v":0},null,null,null,null,{"$f":"IF(SUM(M260:M263)>100,100,SUM(M260:M263))","v":0},{"$f":"IF(SUM(N260:N263)>100,100,SUM(N260:N263))","v":0}]
[null,null,{"$f":"'BNB-System'!F256","v":"Leitungsgebundene Energie"},{"$f":"'BNB-System'!G256","v":25},null,null,{"$f":"IF(AND(NOT(ISBLANK(K260)),NOT(ISBLANK(L260))),('Bewertung durch Anwender'!K260),IF(AND(NOT(ISBLANK(J260)),NOT(ISBLANK(I260))),('Bewertung durch Anwender'!I260),(Zielvereinbarung!G260)))","v":0},{"$f":"Zielvereinbarung!G260","v":0}]
[null,null,{"$f":"'BNB-System'!F257","v":"Solarenergie"},{"$f":"'BNB-System'!G257","v":25},null,null,{"$f":"IF(AND(NOT(ISBLANK(K261)),NOT(ISBLANK(L261))),('Bewertung durch Anwender'!K261),IF(AND(NOT(ISBLANK(J261)),NOT(ISBLANK(I261))),('Bewertung durch Anwender'!I261),(Zielvereinbarung!G261)))","v":0},{"$f":"Zielvereinbarung!G261","v":0}]
[null,null,{"$f":"'BNB-System'!F258","v":"Breitband-Anschluss"},{"$f":"'BNB-System'!G258","v":25},null,null,{"$f":"IF(AND(NOT(ISBLANK(K262)),NOT(ISBLANK(L262))),('Bewertung durch Anwender'!K262),IF(AND(NOT(ISBLANK(J262)),NOT(ISBLANK(I262))),('Bewertung durch Anwender'!I262),(Zielvereinbarung!G262)))","v":0},{"$f":"Zielvereinbarung!G262","v":0}]
[null,null,{"$f":"'BNB-System'!F259","v":"Regenwasserversickerung"},{"$f":"'BNB-System'!G259","v":25},null,null,{"$f":"IF(AND(NOT(ISBLANK(K263)),NOT(ISBLANK(L263))),('Bewertung durch Anwender'!K263),IF(AND(NOT(ISBLANK(J263)),NOT(ISBLANK(I263))),('Bewertung durch Anwender'!I263),(Zielvereinbarung!G263)))","v":0},{"$f":"Zielvereinbarung!G263","v":0}]

{"sheet":"Konformitätsprüfung","index":3,"n_rows":263,"n_cols":14,"rows_kept":263,"cut":false,"hidden":true,"merged":[[0,2,0,7],[3,14,4,14],[6,1,6,2],[3,10,4,10],[3,4,4,4],[3,6,3,7],[3,13,4,13],[3,11,4,11],[3,1,4,2],[3,3,4,3],[3,12,4,12],[3,9,4,9]]}
[null,{"$f":"'BNB-System'!B1","v":"Projekt:"},{"$f":"Zielvereinbarung!C1","v":"Projektbezeichnung"}]
[null,{"$f":"'BNB-System'!B2","v":"Bewertungssystem Nachhaltiges Bauen (BNB)"}]
[null,{"$f":"'BNB-System'!B3","v":"Systemvariante Büro- und Verwaltungsgebäude, Modul Komplettmodernisierung (BNB_BK) - Version 2017"}]
[null,"Nachhaltigkeitskriterien",null,"maximale Punktzahl","Gewichtung\nGesamt-\nbewertung","Punkt-\nzahl","Eingereichte \nEndbewertung",null,"Bemerkung Konformitätsprüfung \n\nPrüfung vom:","Bearbeiter",null,"Zielwert","Gesamt-bewertung Anwender","Gesamt-bewertung Konformitäts-\nprüfung"]
[null,null,null,null,null,"Ziel-\nvereinbarung","Anwender","Konformitätsprüfung",{"$f":"TODAY()","v":"2017-11-23"}]
[]
[null,"Gesamterfüllungsgrad",null,null,null,{"$f":"Zielvereinbarung!$G$7","v":0},{"$f":"'Bewertung durch Anwender'!N7","v":0},{"$f":"H10+H35+H49+H134+H163","v":0}]
[null,null,null,null,null,null,null,"ende",null,null,"qwertz"]
[]
[null,{"$f":"'BNB-System'!E6","v":"Ökologische Qualität"},null,null,{"$f":"'BNB-System'!J6","v":0.22500000000000001},{"$f":"'Bewertung durch Anwender'!G10","v":0},{"$f":"'Bewertung durch Anwender'!N10","v":0},{"$f":"H13*(E13/100)+H14*(E14/100)+H15*(E15/100)+H16*(E16/100)+H17*(E17/100)+H18*(E18/100)+H24*(E24/100)+H26*(E26/100)+H30*(E30/100)+H31*(E31/100)","v":0},null,null,null,{"$f":"'BNB-System'!K6","v":1800}]
[null,null,null,null,null,null,null,null,null,null,null,{"$f":"'BNB-System'!K7","v":0}]
[null,null,"Wirkungen auf die globale und lokale  Umwelt",null,null,null,null,null,null,null,null,{"$f":"'BNB-System'!K8","v":0}]
[null,{"$f":"'BNB-System'!E9","v":" 1.1.1"},{"$f":"'BNB-System'!F9","v":"Treibhauspotenzial (GWP)"},{"$f":"'BNB-System'!G9","v":100},{"$f":"'BNB-System'!J9","v":3.7499999999999999E-2},{"$f":"'Bewertung durch Anwender'!G13","v":0},{"$f":"'Bewertung durch Anwender'!N13","v":0},null,null,null,null,{"$f":"'BNB-System'!K9","v":300},{"$f":"IF(ISNUMBER(G13*E13/100),G13*E13/100,0)","v":0},{"$f":"IF(ISNUMBER(H13*E13/100),H13*E13/100,0)","v":0}]
[null,{"$f":"'BNB-System'!E10","v":" 1.1.2"},{"$f":"'BNB-System'!F10","v":"Ozonschichtabbaupotenzial (ODP)"},{"$f":"'BNB-System'!G10","v":100},{"$f":"'BNB-System'!J10","v":1.2499999999999999E-2},{"$f":"'Bewertung durch Anwender'!G14","v":0},{"$f":"'Bewertung durch Anwender'!N14","v":0},null,null,null,null,{"$f":"'BNB-System'!K10","v":100},{"$f":"IF(ISNUMBER(G14*E14/100),G14*E14/100,0)","v":0},0]
[null,{"$f":"'BNB-System'!E11","v":" 1.1.3"},{"$f":"'BNB-System'!F11","v":"Ozonbildungspotenzial (POCP)"},{"$f":"'BNB-System'!G11","v":100},{"$f":"'BNB-System'!J11","v":1.2499999999999999E-2},{"$f":"'Bewertung durch Anwender'!G15","v":0},{"$f":"'Bewertung durch Anwender'!N15","v":0},null,null,null,null,{"$f":"'BNB-System'!K11","v":100},0,0]
[null,{"$f":"'BNB-System'!E12","v":" 1.1.4"},{"$f":"'BNB-System'!F12","v":"Versauerungspotenzial (AP)"},{"$f":"'BNB-System'!G12","v":100},{"$f":"'BNB-System'!J12","v":1.2499999999999999E-2},{"$f":"'Bewertung durch Anwender'!G16","v":0},{"$f":"'Bewertung durch Anwender'!N16","v":0},null,null,null,null,{"$f":"'BNB-System'!K12","v":100},0,0]
[null,{"$f":"'BNB-System'!E13","v":" 1.1.5"},{"$f":"'BNB-System'!F13","v":"Überdüngungspotenzial (EP)"},{"$f":"'BNB-System'!G13","v":100},{"$f":"'BNB-System'!J13","v":1.2499999999999999E-2},{"$f":"'Bewertung durch Anwender'!G17","v":0},{"$f":"'Bewertung durch Anwender'!N17","v":0},null,null,null,null,{"$f":"'BNB-System'!K13","v":100},0,0]
[null,{"$f":"'BNB-System'!E14","v":" 1.1.6"},{"$f":"'BNB-System'!F14","v":"Risiken für die lokale Umwelt"},{"$f":"'BNB-System'!G14","v":100},{"$f":"'BNB-System'!J14","v":3.7499999999999999E-2},{"$f":"'Bewertung durch Anwender'!G18","v":0},{"$f":"'Bewertung durch Anwender'!N18","v":0},{"$f":"IF(SUM(H19:H23)>100,100,SUM(H19:H23))","v":0},null,null,null,{"$f":"'BNB-System'!K14","v":300},0,0]
[null,null,{"$f":"'BNB-System'!F15","v":"Altsubstanz: Q4 ; Neusubstanz: Q5"},{"$f":"'BNB-System'!G15","v":100},null,{"$f":"'Bewertung durch Anwender'!G19","v":0},{"$f":"'Bewertung durch Anwender'!N19","v":0}]
[null,null,{"$f":"'BNB-System'!F16","v":"Altsubstanz: Q3 ; Neusubstanz: Q4"},{"$f":"'BNB-System'!G16","v":75},null,{"$f":"'Bewertung durch Anwender'!G20","v":0},{"$f":"'Bewertung durch Anwender'!N20","v":0}]
[null,null,{"$f":"'BNB-System'!F17","v":"Altsubstanz: Q2 ; Neusubstanz: Q3"},{"$f":"'BNB-System'!G17","v":50},null,{"$f":"'Bewertung durch Anwender'!G21","v":0},{"$f":"'Bewertung durch Anwender'!N21","v":0}]
[null,null,{"$f":"'BNB-System'!F18","v":"Altsubstanz: Q1 ; Neusubstanz: Q2"},{"$f":"'BNB-System'!G18","v":25},null,{"$f":"'Bewertung durch Anwender'!G22","v":0},{"$f":"'Bewertung durch Anwender'!N22","v":0}]
[null,null,{"$f":"'BNB-System'!F19","v":"Altsubstanz: Q1 ; Neusubstanz: Q1"},{"$f":"'BNB-System'!G19","v":10},null,{"$f":"'Bewertung durch Anwender'!G23","v":0},{"$f":"'Bewertung durch Anwender'!N23","v":0}]
[null,{"$f":"'BNB-System'!E20","v":" 1.1.7"},{"$f":"'BNB-System'!F20","v":"Nachhaltige Materialgewinnung / Biodiversität"},{"$f":"'BNB-System'!G20","v":100},{"$f":"'BNB-System'!J20","v":1.2499999999999999E-2},{"$f":"'Bewertung durch Anwender'!G24","v":0},{"$f":"'Bewertung durch Anwender'!N24","v":0},null,null,null,null,{"$f":"'BNB-System'!K20","v":100},0,0]
[null,null,{"$f":"'BNB-System'!F21","v":"Ressourceninanspruchnahme"},null,null,null,null,null,null,null,null,{"$f":"'BNB-System'!K21","v":0}]
[null,{"$f":"'BNB-System'!E22","v":" 1.2.1"},{"$f":"'BNB-System'!F22","v":"Primärenergiebedarf"},{"$f":"'BNB-System'!G22","v":100},{"$f":"'BNB-System'!J22","v":3.7499999999999999E-2},{"$f":"'Bewertung durch Anwender'!G26","v":0},{"$f":"'Bewertung durch Anwender'!N26","v":0},{"$f":"IF(SUM(H27:H29)>100,100,SUM(H27:H29))","v":0},null,null,null,{"$f":"'BNB-System'!K22","v":300},{"$f":"IF(ISNUMBER(G26*E26/100),G26*E26/100,0)","v":0},{"$f":"IF(ISNUMBER(H26*E26/100),H26*E26/100,0)","v":0}]
[null,null,{"$f":"'BNB-System'!F23","v":"Primärenergiebedarf nicht erneuerbar (PEne)"},{"$f":"'BNB-System'!G23","v":60},null,{"$f":"'Bewertung durch Anwender'!G27","v":0},{"$f":"'Bewertung durch Anwender'!N27","v":0},null,null,null,null,{"$f":"'BNB-System'!K23","v":0}]
[null,null,{"$f":"'BNB-System'!F24","v":"Gesamtprimärenergiebedarf (PEges)"},{"$f":"'BNB-System'!G24","v":40},null,{"$f":"'Bewertung durch Anwender'!G29","v":0},{"$f":"'Bewertung durch Anwender'!N29","v":0}]
[null,null,{"$f":"'BNB-System'!F25","v":"Anteil der erneuerbaren Primärenergie (Pee)"},{"$f":"'BNB-System'!G25","v":20},null,{"$f":"'Bewertung durch Anwender'!G30","v":0},{"$f":"'Bewertung durch Anwender'!N30","v":0},null,null,null,null,{"$f":"'BNB-System'!K25","v":0}]
[null,{"$f":"'BNB-System'!E26","v":" 1.2.3"},{"$f":"'BNB-System'!F26","v":"Trinkwasserbedarf und Abwasseraufkommen"},{"$f":"'BNB-System'!G26","v":100},{"$f":"'BNB-System'!J26","v":2.4999999999999998E-2},{"$f":"'Bewertung durch Anwender'!G30","v":0},{"$f":"'Bewertung durch Anwender'!N30","v":0},null,null,null,null,{"$f":"'BNB-System'!K26","v":200},{"$f":"IF(ISNUMBER(G30*E30/100),G30*E30/100,0)","v":0},{"$f":"IF(ISNUMBER(H30*E30/100),H30*E30/100,0)","v":0}]
[null,{"$f":"'BNB-System'!E27","v":" 1.2.4"},{"$f":"'BNB-System'!F27","v":"Flächeninanspruchnahme"},{"$f":"'BNB-System'!G27","v":100},{"$f":"'BNB-System'!J27","v":2.4999999999999998E-2},{"$f":"'Bewertung durch Anwender'!G31","v":0},{"$f":"'Bewertung durch Anwender'!N31","v":0},{"$f":"SUM(H32:H33)","v":0},null,null,null,{"$f":"'BNB-System'!K27","v":200},{"$f":"IF(ISNUMBER(G31*E31/100),G31*E31/100,0)","v":0},{"$f":"IF(ISNUMBER(H31*E31/100),H31*E31/100,0)","v":0}]
[null,null,{"$f":"'BNB-System'!F28","v":"Veränderung der Flächeninanspruchnahme"},{"$f":"'BNB-System'!G28","v":100},null,{"$f":"'Bewertung durch Anwender'!G32","v":0},{"$f":"'Bewertung durch Anwender'!N32","v":0}]
[null,null,{"$f":"'BNB-System'!F29","v":"Ausgleichsmaßnahmen und Flächenrecycling"},{"$f":"'BNB-System'!G29","v":40},null,{"$f":"'Bewertung durch Anwender'!G33","v":0},{"$f":"'Bewertung durch Anwender'!N33","v":0}]
[null,null,null,null,null,null,null,null,null,null,null,{"$f":"'BNB-System'!K30","v":0}]
[null,{"$f":"'BNB-System'!E31","v":"Ökonomische Qualität"},null,null,{"$f":"'BNB-System'!J31","v":0.22500000000000001},{"$f":"'Bewertung durch Anwender'!G35","v":0},{"$f":"'Bewertung durch Anwender'!N35","v":0},{"$f":"H38*($E$38/100)+H40*($E$40/100)+H41*($E$41/100)","v":0},null,null,null,{"$f":"'BNB-System'!K31","v":600}]
[null,null,null,null,null,null,null,null,null,null,null,{"$f":"'BNB-System'!K32","v":0}]
[null,null,{"$f":"'BNB-System'!F33","v":"Lebenszykluskosten"},null,null,null,null,null,null,null,null,{"$f":"'BNB-System'!K33","v":0}]
[null,{"$f":"'BNB-System'!E34","v":" 2.1.1"},{"$f":"'BNB-System'!F34","v":"Gebäudebezogene Kosten im Lebenszyklus"},{"$f":"'BNB-System'!G34","v":100},{"$f":"'BNB-System'!J34","v":0.1125},{"$f":"'Bewertung durch Anwender'!G38","v":0},{"$f":"'Bewertung durch Anwender'!N38","v":0},null,null,null,null,{"$f":"'BNB-System'!K34","v":300},{"$f":"IF(ISNUMBER(G38*E38/100),G38*E38/100,0)","v":0},{"$f":"IF(ISNUMBER(H38*E38/100),H38*E38/100,0)","v":0}]
[null,null,{"$f":"'BNB-System'!F35","v":"Wirtschaftlichkeit und Wertstabilität"},null,null,null,null,null,null,null,null,{"$f":"'BNB-System'!K35","v":0}]
[null,{"$f":"'BNB-System'!E36","v":" 2.2.1"},{"$f":"'BNB-System'!F36","v":"Flächeneffizienz"},{"$f":"'BNB-System'!G36","v":100},{"$f":"'BNB-System'!J36","v":3.7499999999999999E-2},{"$f":"'Bewertung durch Anwender'!G40","v":0},{"$f":"'Bewertung durch Anwender'!N40","v":0},null,null,null,null,{"$f":"'BNB-System'!K36","v":100},{"$f":"IF(ISNUMBER(G40*E40/100),G40*E40/100,0)","v":0},0]
[null,{"$f":"'BNB-System'!E37","v":" 2.2.2"},{"$f":"'BNB-System'!F37","v":"Anpassungsfähigkeit"},{"$f":"'BNB-System'!G37","v":100},{"$f":"'BNB-System'!J37","v":7.4999999999999997E-2},{"$f":"'Bewertung durch Anwender'!G41","v":0},{"$f":"'Bewertung durch Anwender'!N41","v":0},{"$f":"SUM(H42:H47)","v":0},null,null,null,{"$f":"'BNB-System'!K37","v":200},{"$f":"IF(ISNUMBER(G41*E41/100),G41*E41/100,0)","v":0},{"$f":"IF(ISNUMBER(H41*E41/100),H41*E41/100,0)","v":0}]
[null,null,{"$f":"'BNB-System'!F38","v":"Lichte Raumhöhe"},{"$f":"'BNB-System'!G38","v":15},null,{"$f":"'Bewertung durch Anwender'!G42","v":0},{"$f":"'Bewertung durch Anwender'!N42","v":0},null,null,null,null,{"$f":"'BNB-System'!K38","v":0}]
[null,null,{"$f":"'BNB-System'!F39","v":"Gebäudetiefe"},{"$f":"'BNB-System'!G39","v":15},null,{"$f":"'Bewertung durch Anwender'!G43","v":0},{"$f":"'Bewertung durch Anwender'!N43","v":0},null,null,null,null,{"$f":"'BNB-System'!K39","v":0}]
[null,null,{"$f":"'BNB-System'!F40","v":"Vertikale Erschließung"},{"$f":"'BNB-System'!G40","v":15},null,{"$f":"'Bewertung durch Anwender'!G44","v":0},{"$f":"'Bewertung durch Anwender'!N44","v":0},null,null,null,null,{"$f":"'BNB-System'!K40","v":0}]
[null,null,{"$f":"'BNB-System'!F41","v":"Grundrisse"},{"$f":"'BNB-System'!G41","v":25},null,{"$f":"'Bewertung durch Anwender'!G45","v":0},{"$f":"'Bewertung durch Anwender'!N45","v":0},null,null,null,null,{"$f":"'BNB-System'!K41","v":0}]
[null,null,{"$f":"'BNB-System'!F42","v":"Konstruktion"},{"$f":"'BNB-System'!G42","v":20},null,{"$f":"'Bewertung durch Anwender'!G46","v":0},{"$f":"'Bewertung durch Anwender'!N46","v":0},null,null,null,null,{"$f":"'BNB-System'!K42","v":0}]
[null,null,{"$f":"'BNB-System'!F43","v":"Technische Ausstattung"},{"$f":"'BNB-System'!G43","v":18},null,{"$f":"'Bewertung durch Anwender'!G47","v":0},{"$f":"'Bewertung durch Anwender'!N47","v":0},null,null,null,null,{"$f":"'BNB-System'!K43","v":0}]
[null,null,null,null,null,null,null,null,null,null,null,{"$f":"'BNB-System'!K44","v":0}]
[null,{"$f":"'BNB-System'!E45","v":"Soziokulturelle und funktionale Qualität"},null,null,{"$f":"'BNB-System'!J45","v":0.22500000000000001},{"$f":"'Bewertung durch Anwender'!G49","v":0},{"$f":"'Bewertung durch Anwender'!N49","v":0},{"$f":"H52*($E$52/100)+H63*($E$63/100)+H66*($E$66/100)+H76*($E$76/100)+H84*($E$84/100)+H93*($E$93/100)+H107*($E$107/100)+H109*($E$109/100)+H110*($E$110/100)+H116*($E$116/100)+H121*($E$121/100)+H128*($E$128/100)","v":0},null,null,null,{"$f":"'BNB-System'!K45","v":2300}]
[null,null,null,null,null,null,null,null,null,null,null,{"$f":"'BNB-System'!K46","v":0}]
[null,null,{"$f":"'BNB-System'!F47","v":"Gesundheit, Behaglichkeit und Nutzerzufriedenheit"},null,null,null,null,null,null,null,null,{"$f":"'BNB-System'!K47","v":0}]
[null,{"$f":"'BNB-System'!E48","v":" 3.1.1"},{"$f":"'BNB-System'!F48","v":"Thermischer Komfort"},{"$f":"'BNB-System'!G48","v":100},{"$f":"'BNB-System'!J48","v":2.9347826086956522E-2},{"$f":"'Bewertung durch Anwender'!G52","v":0},{"$f":"'Bewertung durch Anwender'!N52","v":0},{"$f":"SUM(H54:H57,H59:H62)","v":0},null,null,null,{"$f":"'BNB-System'!K48","v":300},{"$f":"IF(ISNUMBER(G52*E52/100),G52*E52/100,0)","v":0},{"$f":"IF(ISNUMBER(H52*E52/100),H52*E52/100,0)","v":0}]
[null,null,{"$f":"'BNB-System'!F49","v":"Winter"}]
[null,null,{"$f":"'BNB-System'!F50","v":"Operative Temperatur"},{"$f":"'BNB-System'!G50","v":10},null,{"$f":"'Bewertung durch Anwender'!G54","v":0},{"$f":"'Bewertung durch Anwender'!N54","v":0}]
[null,null,{"$f":"'BNB-System'!F51","v":" Zugluft"},{"$f":"'BNB-System'!G51","v":10},null,{"$f":"'Bewertung durch Anwender'!G55","v":0},{"$f":"'Bewertung durch Anwender'!N55","v":0}]
[null,null,{"$f":"'BNB-System'!F52","v":"Stahlungstemperaturasymmetrie und Fußbodentemperatur"},{"$f":"'BNB-System'!G52","v":10},null,{"$f":"'Bewertung durch Anwender'!G56","v":0},{"$f":"'Bewertung durch Anwender'!N56","v":0}]
[null,null,{"$f":"'BNB-System'!F53","v":"Luftfeuchte"},{"$f":"'BNB-System'!G53","v":10},null,{"$f":"'Bewertung durch Anwender'!G57","v":0},{"$f":"'Bewertung durch Anwender'!N57","v":0}]
[null,null,{"$f":"'BNB-System'!F54","v":"Sommer"},null,null,{"$f":"'Bewertung durch Anwender'!G58","v":""}]
[null,null,{"$f":"'BNB-System'!F55","v":"Operative Temperatur"},{"$f":"'BNB-System'!G55","v":30},null,{"$f":"'Bewertung durch Anwender'!G59","v":0},{"$f":"'Bewertung durch Anwender'!N59","v":0}]
[null,null,{"$f":"'BNB-System'!F56","v":" Zugluft"},{"$f":"'BNB-System'!G56","v":10},null,{"$f":"'Bewertung durch Anwender'!G60","v":0},{"$f":"'Bewertung durch Anwender'!N60","v":0}]
[null,null,{"$f":"'BNB-System'!F57","v":"Stahlungstemperaturasymmetrie und Fußbodentemperatur"},{"$f":"'BNB-System'!G57","v":10},null,{"$f":"'Bewertung durch Anwender'!G61","v":0},{"$f":"'Bewertung durch Anwender'!N61","v":0},null,null,null,null,{"$f":"'BNB-System'!K50","v":0}]
[null,null,{"$f":"'BNB-System'!F58","v":"Luftfeuchte"},{"$f":"'BNB-System'!G58","v":10},null,{"$f":"'Bewertung durch Anwender'!G62","v":0},{"$f":"'Bewertung durch Anwender'!N62","v":0},null,null,null,null,{"$f":"'BNB-System'!#REF!","v":{"$error":"#REF!"}}]
[null,{"$f":"'BNB-System'!E59","v":" 3.1.3"},{"$f":"'BNB-System'!F59","v":"Innenraumlufthygiene"},{"$f":"'BNB-System'!G59","v":100},{"$f":"'BNB-System'!J59","v":2.9347826086956522E-2},{"$f":"'Bewertung durch Anwender'!G63","v":0},{"$f":"'Bewertung durch Anwender'!N63","v":0},{"$f":"SUM(H64:H65)","v":0},null,null,null,{"$f":"'BNB-System'!K59","v":300},{"$f":"IF(ISNUMBER(G63*E63/100),G63*E63/100,0)","v":0},{"$f":"IF(ISNUMBER(H63*E63/100),H63*E63/100,0)","v":0}]
[null,null,{"$f":"'BNB-System'!F60","v":"Flüchtige organische Stoffe (VOC) und Formaldehyd"},{"$f":"'BNB-System'!G60","v":50},null,{"$f":"'Bewertung durch Anwender'!G64","v":0},{"$f":"'Bewertung durch Anwender'!N64","v":0},null,null,null,null,{"$f":"'BNB-System'!K60","v":0}]
[null,null,{"$f":"'BNB-System'!F61","v":"Personenbezogene Lüftungsrate"},{"$f":"'BNB-System'!G61","v":50},null,{"$f":"'Bewertung durch Anwender'!G65","v":0},{"$f":"'Bewertung durch Anwender'!N65","v":0},null,null,null,null,{"$f":"'BNB-System'!K61","v":0}]
[null,{"$f":"'BNB-System'!E62","v":" 3.1.4"},{"$f":"'BNB-System'!F62","v":"Akustischer Komfort"},{"$f":"'BNB-System'!G62","v":100},{"$f":"'BNB-System'!J62","v":9.7826086956521747E-3},{"$f":"'Bewertung durch Anwender'!G66","v":0},{"$f":"'Bewertung durch Anwender'!N66","v":0},{"$f":"SUM(H68:H75)","v":0},null,null,null,{"$f":"'BNB-System'!K62","v":100},{"$f":"IF(ISNUMBER(G66*E66/100),G66*E66/100,0)","v":0},{"$f":"IF(ISNUMBER(H66*E66/100),H66*E66/100,0)","v":0}]
[null,null,{"$f":"'BNB-System'!F63","v":"Räume Gruppe A"},null,null,null,null,null,null,null,null,{"$f":"'BNB-System'!K63","v":0}]
[null,null,{"$f":"'BNB-System'!F64","v":"Musik "},{"$f":"'BNB-System'!G64","v":100},null,{"$f":"'Bewertung durch Anwender'!G68","v":0},{"$f":"'Bewertung durch Anwender'!N68","v":0}]
[null,null,{"$f":"'BNB-System'!F65","v":"Sprache/ Vortrag"},{"$f":"'BNB-System'!G65","v":100},null,{"$f":"'Bewertung durch Anwender'!G69","v":0},{"$f":"'Bewertung durch Anwender'!N69","v":0},null,null,null,null,{"$f":"'BNB-System'!K65","v":0}]
[null,null,{"$f":"'BNB-System'!F66","v":"Unterricht/ Kommunikation"},{"$f":"'BNB-System'!G66","v":100},null,{"$f":"'Bewertung durch Anwender'!G70","v":0},{"$f":"'Bewertung durch Anwender'!N70","v":0},null,null,null,null,{"$f":"'BNB-System'!K66","v":0}]
[null,null,{"$f":"'BNB-System'!F67","v":"Sport"},{"$f":"'BNB-System'!G67","v":100},null,{"$f":"'Bewertung durch Anwender'!G71","v":0},{"$f":"'Bewertung durch Anwender'!N71","v":0},null,null,null,null,{"$f":"'BNB-System'!K67","v":0}]
[null,null,{"$f":"'BNB-System'!F68","v":"Räume Gruppe B"}]
[null,null,{"$f":"'BNB-System'!F69","v":"Einzel- und Mehrpersonenbüros bis 100 m³"},{"$f":"'BNB-System'!G69","v":100},null,{"$f":"'Bewertung durch Anwender'!G73","v":0},{"$f":"'Bewertung durch Anwender'!N73","v":0},null,null,null,null,{"$f":"'BNB-System'!K69","v":0}]
[null,null,{"$f":"'BNB-System'!F70","v":"Mehrpersonenbüros über 100 m³"},{"$f":"'BNB-System'!G70","v":100},null,{"$f":"'Bewertung durch Anwender'!G74","v":0},{"$f":"'Bewertung durch Anwender'!N74","v":0},null,null,null,null,{"$f":"'BNB-System'!K70","v":0}]
[null,null,{"$f":"'BNB-System'!F71","v":"Weitere Räume"},{"$f":"'BNB-System'!G71","v":100},null,{"$f":"'Bewertung durch Anwender'!G75","v":0},{"$f":"'Bewertung durch Anwender'!N75","v":0},null,null,null,null,{"$f":"'BNB-System'!K71","v":0}]
[null,{"$f":"'BNB-System'!E72","v":" 3.1.5"},{"$f":"'BNB-System'!F72","v":"Visueller Komfort"},{"$f":"'BNB-System'!G72","v":100},{"$f":"'BNB-System'!J72","v":2.9347826086956522E-2},{"$f":"'Bewertung durch Anwender'!G76","v":0},{"$f":"'Bewertung durch Anwender'!N76","v":0},{"$f":"SUM(H77:H83)","v":0},null,null,null,{"$f":"'BNB-System'!K72","v":300},{"$f":"IF(ISNUMBER(G76*E76/100),G76*E76/100,0)","v":0},{"$f":"IF(ISNUMBER(#REF!*E76/100),#REF!*E76/100,0)","v":0}]
[null,null,{"$f":"'BNB-System'!F73","v":"Tageslichtverfügbarkeit Gesamtgebäude"},{"$f":"'BNB-System'!G73","v":15},null,{"$f":"'Bewertung durch Anwender'!G77","v":0},{"$f":"'Bewertung durch Anwender'!N77","v":0},null,null,null,null,{"$f":"'BNB-System'!K73","v":0}]
[null,null,{"$f":"'BNB-System'!F74","v":"Tageslichtverfügbarkeit ständige Arbeitsplätze"},{"$f":"'BNB-System'!G74","v":15},null,{"$f":"'Bewertung durch Anwender'!G78","v":0},{"$f":"'Bewertung durch Anwender'!N78","v":0},null,null,null,null,{"$f":"'BNB-System'!K74","v":0}]
[null,null,{"$f":"'BNB-System'!F75","v":"Nachweis de Sichtverbindung außen"},{"$f":"'BNB-System'!G75","v":15},null,{"$f":"'Bewertung durch Anwender'!G79","v":0},{"$f":"'Bewertung durch Anwender'!N79","v":0},null,null,null,null,{"$f":"'BNB-System'!K75","v":0}]
[null,null,{"$f":"'BNB-System'!F76","v":"Blendfreiheit Tageslicht"},{"$f":"'BNB-System'!G76","v":15},null,{"$f":"'Bewertung durch Anwender'!G80","v":0},{"$f":"'Bewertung durch Anwender'!N80","v":0},null,null,null,null,{"$f":"'BNB-System'!K76","v":0}]
[null,null,{"$f":"'BNB-System'!F77","v":"Blendfreiheit  Kunstlicht"},{"$f":"'BNB-System'!G77","v":10},null,{"$f":"'Bewertung durch Anwender'!G81","v":0},{"$f":"'Bewertung durch Anwender'!N81","v":0},null,null,null,null,{"$f":"'BNB-System'!K77","v":0}]
[null,null,{"$f":"'BNB-System'!F78","v":"Lichtverteilung"},{"$f":"'BNB-System'!G78","v":15},null,{"$f":"'Bewertung durch Anwender'!G82","v":0},{"$f":"'Bewertung durch Anwender'!N82","v":0},null,null,null,null,{"$f":"'BNB-System'!K78","v":0}]
[null,null,{"$f":"'BNB-System'!F79","v":"Farbwiedergabe"},{"$f":"'BNB-System'!G79","v":15},null,{"$f":"'Bewertung durch Anwender'!G83","v":0},{"$f":"'Bewertung durch Anwender'!N83","v":0},null,null,null,null,{"$f":"'BNB-System'!K79","v":0}]
[null,{"$f":"'BNB-System'!E80","v":" 3.1.6"},{"$f":"'BNB-System'!F80","v":"Einflussnahmemöglichkeiten durch Nutzer"},{"$f":"'BNB-System'!G80","v":100},{"$f":"'BNB-System'!J80","v":1.9565217391304349E-2},{"$f":"'Bewertung durch Anwender'!G84","v":0},{"$f":"'Bewertung durch Anwender'!N84","v":0},{"$f":"SUM(H85:H92)","v":0},null,null,null,{"$f":"'BNB-System'!K80","v":200},{"$f":"IF(ISNUMBER(G84*E84/100),G84*E84/100,0)","v":0},{"$f":"IF(ISNUMBER(H84*E84/100),H84*E84/100,0)","v":0}]
[null,null,{"$f":"'BNB-System'!F81","v":"Lüftung"},{"$f":"'BNB-System'!G81","v":10},null,{"$f":"'Bewertung durch Anwender'!G85","v":0},{"$f":"'Bewertung durch Anwender'!N85","v":0},null,null,null,null,{"$f":"'BNB-System'!K81","v":0}]
[null,null,{"$f":"'BNB-System'!F82","v":"Sonnenschutz"},{"$f":"'BNB-System'!G82","v":10},null,{"$f":"'Bewertung durch Anwender'!G86","v":0},{"$f":"'Bewertung durch Anwender'!N86","v":0},null,null,null,null,{"$f":"'BNB-System'!K82","v":0}]
[null,null,{"$f":"'BNB-System'!F83","v":"Blendschutz"},{"$f":"'BNB-System'!G83","v":10},null,{"$f":"'Bewertung durch Anwender'!G87","v":0},{"$f":"'Bewertung durch Anwender'!N87","v":0},null,null,null,null,{"$f":"'BNB-System'!K83","v":0}]
[null,null,{"$f":"'BNB-System'!F84","v":"Temperaturen während der Heizperiode"},{"$f":"'BNB-System'!G84","v":10},null,{"$f":"'Bewertung durch Anwender'!G88","v":0},{"$f":"'Bewertung durch Anwender'!N88","v":0},null,null,null,null,{"$f":"'BNB-System'!K84","v":0}]
[null,null,{"$f":"'BNB-System'!F85","v":"Temperaturen außerhalb der Heizperiode"},{"$f":"'BNB-System'!G85","v":15},null,{"$f":"'Bewertung durch Anwender'!G89","v":0},{"$f":"'Bewertung durch Anwender'!N89","v":0},null,null,null,null,{"$f":"'BNB-System'!K85","v":0}]
[null,null,{"$f":"'BNB-System'!F86","v":"Steuerung von Tageslicht"},{"$f":"'BNB-System'!G86","v":15},null,{"$f":"'Bewertung durch Anwender'!G90","v":0},{"$f":"'Bewertung durch Anwender'!N90","v":0},null,null,null,null,{"$f":"'BNB-System'!K86","v":0}]
[null,null,{"$f":"'BNB-System'!F87","v":"Steuerung von  Kunstlicht"},{"$f":"'BNB-System'!G87","v":15},null,{"$f":"'Bewertung durch Anwender'!G91","v":0},{"$f":"'Bewertung durch Anwender'!N91","v":0},null,null,null,null,{"$f":"'BNB-System'!K87","v":0}]
[null,null,{"$f":"'BNB-System'!F88","v":"Bedienfreundlichkeit"},{"$f":"'BNB-System'!G88","v":15},null,{"$f":"'Bewertung durch Anwender'!G92","v":0},{"$f":"'Bewertung durch Anwender'!N92","v":0},null,null,null,null,{"$f":"'BNB-System'!K88","v":0}]
[null,{"$f":"'BNB-System'!E89","v":" 3.1.7"},{"$f":"'BNB-System'!F89","v":"Aufenthaltsqualitäten"},{"$f":"'BNB-System'!G89","v":100},{"$f":"'BNB-System'!J89","v":9.7826086956521747E-3},{"$f":"'Bewertung durch Anwender'!G93","v":0},{"$f":"'Bewertung durch Anwender'!N93","v":0},{"$f":"SUM(H94:H106)","v":0},null,null,null,{"$f":"'BNB-System'!K89","v":100},{"$f":"IF(ISNUMBER(G93*E93/100),G93*E93/100,0)","v":0},{"$f":"IF(ISNUMBER(H93*E93/100),H93*E93/100,0)","v":0}]
[null,null,{"$f":"'BNB-System'!F90","v":"Anzahl der Aufenthaltsbereiche im Gebäude"},{"$f":"'BNB-System'!G90","v":10},null,{"$f":"'Bewertung durch Anwender'!G94","v":0},{"$f":"'Bewertung durch Anwender'!N94","v":0},null,null,null,null,{"$f":"'BNB-System'!K90","v":0}]
[null,null,{"$f":"'BNB-System'!F91","v":"Anzahl der Aufenthaltsbereiche im Außenraum"},{"$f":"'BNB-System'!G91","v":10},null,{"$f":"'Bewertung durch Anwender'!G95","v":0},{"$f":"'Bewertung durch Anwender'!N95","v":0},null,null,null,null,{"$f":"'BNB-System'!K91","v":0}]
[null,null,{"$f":"'BNB-System'!F92","v":"Anzahl der Sitzmöglichkeiten in diesen Bereichen"},{"$f":"'BNB-System'!G92","v":40},null,{"$f":"'Bewertung durch Anwender'!G96","v":0},{"$f":"'Bewertung durch Anwender'!N96","v":0},null,null,null,null,{"$f":"'BNB-System'!K92","v":0}]
[null,null,{"$f":"'BNB-System'!F93","v":"uneingeschränkte Nutzbarkeit der Erschließungsflächen als Aufenthaltsflächen"},{"$f":"'BNB-System'!G93","v":10},null,{"$f":"'Bewertung durch Anwender'!G97","v":0},{"$f":"'Bewertung durch Anwender'!N97","v":0},null,null,null,null,{"$f":"'BNB-System'!K93","v":0}]
[null,null,{"$f":"'BNB-System'!F94","v":"Sichtbeziehungen"},{"$f":"'BNB-System'!G94","v":10},null,{"$f":"'Bewertung durch Anwender'!G98","v":0},{"$f":"'Bewertung durch Anwender'!N98","v":0},null,null,null,null,{"$f":"'BNB-System'!K94","v":0}]
[null,null,{"$f":"'BNB-System'!F95","v":"Außenbezug"},{"$f":"'BNB-System'!G95","v":10},null,{"$f":"'Bewertung durch Anwender'!G99","v":0},{"$f":"'Bewertung durch Anwender'!N99","v":0},null,null,null,null,{"$f":"'BNB-System'!K95","v":0}]
[null,null,{"$f":"'BNB-System'!F96","v":"Ausstattungsqualität der Aufenthaltsbereiche im Außenraum"},null,null,{"$f":"'Bewertung durch Anwender'!G100","v":0},{"$f":"'Bewertung durch Anwender'!N100","v":0},null,null,null,null,{"$f":"'BNB-System'!K96","v":0}]
[null,null,{"$f":"'BNB-System'!F97","v":"Beleuchtung"},{"$f":"'BNB-System'!G97","v":2},null,{"$f":"'Bewertung durch Anwender'!G101","v":0},{"$f":"'Bewertung durch Anwender'!N101","v":0},null,null,null,null,{"$f":"'BNB-System'!K97","v":0}]
[null,null,{"$f":"'BNB-System'!F98","v":"Windschutz"},{"$f":"'BNB-System'!G98","v":2},null,{"$f":"'Bewertung durch Anwender'!G102","v":0},{"$f":"'Bewertung durch Anwender'!N102","v":0},null,null,null,null,{"$f":"'BNB-System'!K98","v":0}]
[null,null,{"$f":"'BNB-System'!F99","v":"Überdachung / Regenschutz"},{"$f":"'BNB-System'!G99","v":2},null,{"$f":"'Bewertung durch Anwender'!G103","v":0},{"$f":"'Bewertung durch Anwender'!N103","v":0},null,null,null,null,{"$f":"'BNB-System'!K99","v":0}]
[null,null,{"$f":"'BNB-System'!F100","v":"Sonnenschutz"},{"$f":"'BNB-System'!G100","v":2},null,{"$f":"'Bewertung durch Anwender'!G104","v":0},{"$f":"'Bewertung durch Anwender'!N104","v":0},null,null,null,null,{"$f":"'BNB-System'!K100","v":0}]
[null,null,{"$f":"'BNB-System'!F101","v":"Stromversorgung für Außenarbeitsplätze"},{"$f":"'BNB-System'!G101","v":1},null,{"$f":"'Bewertung durch Anwender'!G105","v":0},{"$f":"'Bewertung durch Anwender'!N105","v":0},null,null,null,null,{"$f":"'BNB-System'!K101","v":0}]
[null,null,{"$f":"'BNB-System'!F102","v":"Bepflanzung / Begrünung"},{"$f":"'BNB-System'!G102","v":1},null,{"$f":"'Bewertung durch Anwender'!G106","v":0},{"$f":"'Bewertung durch Anwender'!N106","v":0},null,null,null,null,{"$f":"'BNB-System'!K102","v":0}]
[null,{"$f":"'BNB-System'!E103","v":" 3.1.8"},{"$f":"'BNB-System'!F103","v":"Sicherheit"},{"$f":"'BNB-System'!G103","v":100},{"$f":"'BNB-System'!J103","v":9.7826086956521747E-3},{"$f":"'Bewertung durch Anwender'!G107","v":0},{"$f":"'Bewertung durch Anwender'!N107","v":0},null,null,null,null,{"$f":"'BNB-System'!K103","v":100},{"$f":"IF(ISNUMBER(G107*E107/100),G107*E107/100,0)","v":0},{"$f":"IF(ISNUMBER(H107*E107/100),H107*E107/100,0)","v":0}]
[null,null,{"$f":"'BNB-System'!F104","v":"Funktionalität"},null,null,null,null,null,null,null,null,{"$f":"'BNB-System'!K104","v":0}]
[null,{"$f":"'BNB-System'!E105","v":" 3.2.1"},{"$f":"'BNB-System'!F105","v":"Barrierefreiheit"},{"$f":"'BNB-System'!G105","v":100},{"$f":"'BNB-System'!J105","v":1.9565217391304349E-2},{"$f":"'Bewertung durch Anwender'!G109","v":0},{"$f":"'Bewertung durch Anwender'!N109","v":0},null,null,null,null,{"$f":"'BNB-System'!K105","v":200},{"$f":"IF(ISNUMBER(G109*E109/100),G109*E109/100,0)","v":0},0]
[null,{"$f":"'BNB-System'!E106","v":" 3.2.4"},{"$f":"'BNB-System'!F106","v":"Zugänglichkeit"},{"$f":"'BNB-System'!G106","v":100},{"$f":"'BNB-System'!J106","v":1.9565217391304349E-2},{"$f":"'Bewertung durch Anwender'!G110","v":0},{"$f":"'Bewertung durch Anwender'!N110","v":0},{"$f":"SUM(H111:H115)","v":0},null,null,null,{"$f":"'BNB-System'!K106","v":200},{"$f":"IF(ISNUMBER(G110*E110/100),G110*E110/100,0)","v":0},{"$f":"IF(ISNUMBER(H110*E110/100),H110*E110/100,0)","v":0}]
[null,null,{"$f":"'BNB-System'!F107","v":"Grundsätzliche Zugänglichkeit des Gebäudes"},{"$f":"'BNB-System'!G107","v":25},null,{"$f":"'Bewertung durch Anwender'!G111","v":0},{"$f":"'Bewertung durch Anwender'!N111","v":0},null,null,null,null,{"$f":"'BNB-System'!K107","v":0}]
[null,null,{"$f":"'BNB-System'!F108","v":"Öffnung der Außenanlagen für die Öffentlichkeit"},{"$f":"'BNB-System'!G108","v":25},null,{"$f":"'Bewertung durch Anwender'!G112","v":0},{"$f":"'Bewertung durch Anwender'!N112","v":0},null,null,null,null,{"$f":"'BNB-System'!K108","v":0}]
[null,null,{"$f":"'BNB-System'!F109","v":"Öffnung gebäudeinterner Einrichtungen für die Öffentlichkeit"},{"$f":"'BNB-System'!G109","v":25},null,{"$f":"'Bewertung durch Anwender'!G113","v":0},{"$f":"'Bewertung durch Anwender'!N113","v":0},null,null,null,null,{"$f":"'BNB-System'!K109","v":0}]
[null,null,{"$f":"'BNB-System'!F110","v":"Möglichkeit der Anmietung von Räumlichkeiten "},{"$f":"'BNB-System'!G110","v":15},null,{"$f":"'Bewertung durch Anwender'!G114","v":0},{"$f":"'Bewertung durch Anwender'!N114","v":0},null,null,null,null,{"$f":"'BNB-System'!K110","v":0}]
[null,null,{"$f":"'BNB-System'!F111","v":"Nutzungsvielfalt der öffentlich zugänglichen Bereiche"},{"$f":"'BNB-System'!G111","v":10},null,{"$f":"'Bewertung durch Anwender'!G115","v":0},{"$f":"'Bewertung durch Anwender'!N115","v":0},null,null,null,null,{"$f":"'BNB-System'!K111","v":0}]
[null,{"$f":"'BNB-System'!E112","v":" 3.2.5"},{"$f":"'BNB-System'!F112","v":"Mobilitätsinfrastruktur"},{"$f":"'BNB-System'!G112","v":100},{"$f":"'BNB-System'!J112","v":9.7826086956521747E-3},{"$f":"'Bewertung durch Anwender'!G116","v":0},{"$f":"'Bewertung durch Anwender'!N116","v":0},{"$f":"IF(SUM(H117:H119)>100,100,SUM(H117:H119))","v":0},null,null,null,{"$f":"'BNB-System'!K112","v":100},{"$f":"IF(ISNUMBER(G116*E116/100),G116*E116/100,0)","v":0},{"$f":"IF(ISNUMBER(H116*E116/100),H116*E116/100,0)","v":0}]
[null,null,{"$f":"'BNB-System'!F113","v":"Anzahl der Fahrradstellplätze"},{"$f":"'BNB-System'!G113","v":40},null,{"$f":"'Bewertung durch Anwender'!G117","v":0},{"$f":"'Bewertung durch Anwender'!N117","v":0},null,null,null,null,{"$f":"'BNB-System'!K113","v":0}]
[null,null,{"$f":"'BNB-System'!F114","v":"Anzahl der Lademöglichkeiten und Carsharing-Stellplätze"},{"$f":"'BNB-System'!G114","v":20},null,{"$f":"'Bewertung durch Anwender'!G118","v":0},{"$f":"'Bewertung durch Anwender'!N118","v":0},null,null,null,null,{"$f":"'BNB-System'!K114","v":0}]
[null,null,{"$f":"'BNB-System'!F115","v":"Qualitative Anforderungen an Fahrradstellplätze"},{"$f":"'BNB-System'!G115","v":60},null,{"$f":"'Bewertung durch Anwender'!G119","v":0},{"$f":"'Bewertung durch Anwender'!N119","v":0},null,null,null,null,{"$f":"'BNB-System'!K115","v":0}]
[null,null,{"$f":"'BNB-System'!F116","v":"Sicherung der Gestaltungsqualität"},null,null,null,null,null,null,null,null,{"$f":"'BNB-System'!K116","v":0}]
[null,{"$f":"'BNB-System'!E117","v":" 3.3.1"},{"$f":"'BNB-System'!F117","v":"Gestalterische und städtebauliche Qualität"},{"$f":"'BNB-System'!G117","v":100},{"$f":"'BNB-System'!J117","v":2.9347826086956522E-2},{"$f":"'Bewertung durch Anwender'!G121","v":0},{"$f":"'Bewertung durch Anwender'!N121","v":0},{"$f":"IF(AND(H122>0,H126<=H127),SUM(H122:H125),IF(AND(H122>0,H127<=H126),SUM(H122:H125),IF(H126>0,H126,IF(H127>0,H127,))))","v":0},null,null,null,{"$f":"'BNB-System'!K117","v":300},{"$f":"IF(ISNUMBER(G121*E121/100),G121*E121/100,0)","v":0},{"$f":"IF(ISNUMBER(H121*E121/100),H121*E121/100,0)","v":0}]
[null,null,{"$f":"'BNB-System'!F118","v":"Erfassung und Fortentwicklung der gestalterischen und städtebaulichen Qualität des Bestandsgebäudes"},{"$f":"'BNB-System'!G118","v":40},null,{"$f":"'Bewertung durch Anwender'!G122","v":0},{"$f":"'Bewertung durch Anwender'!N122","v":0},null,null,null,null,{"$f":"'BNB-System'!K118","v":0}]
[null,null,{"$f":"'BNB-System'!F119","v":"Wettbewerbsverfahren"},{"$f":"'BNB-System'!G119","v":35},null,{"$f":"'Bewertung durch Anwender'!G123","v":0},{"$f":"'Bewertung durch Anwender'!N123","v":0},null,null,null,null,{"$f":"'BNB-System'!K119","v":0}]
[null,null,{"$f":"'BNB-System'!F120","v":"Ausführung des Entwurfs eines der Preisträger"},{"$f":"'BNB-System'!G120","v":20},null,{"$f":"'Bewertung durch Anwender'!G124","v":0},{"$f":"'Bewertung durch Anwender'!N124","v":0},null,null,null,null,{"$f":"'BNB-System'!K120","v":0}]
[null,null,{"$f":"'BNB-System'!F121","v":"Beauftragung des Planungsteams"},{"$f":"'BNB-System'!G121","v":5},null,{"$f":"'Bewertung durch Anwender'!G125","v":0},{"$f":"'Bewertung durch Anwender'!N125","v":0},null,null,null,null,{"$f":"'BNB-System'!K121","v":0}]
[null,null,{"$f":"'BNB-System'!F122","v":"Auszeichnung mit einem Architekturpreis"},{"$f":"'BNB-System'!G122","v":40},null,{"$f":"'Bewertung durch Anwender'!G126","v":0},{"$f":"'Bewertung durch Anwender'!N126","v":0},null,null,null,null,{"$f":"'BNB-System'!K122","v":0}]
[null,null,{"$f":"'BNB-System'!F123","v":"Unabhängiges Expertengremium"},{"$f":"'BNB-System'!G123","v":30},null,{"$f":"'Bewertung durch Anwender'!G127","v":0},{"$f":"'Bewertung durch Anwender'!N127","v":0},null,null,null,null,{"$f":"'BNB-System'!K123","v":0}]
[null,{"$f":"'BNB-System'!E124","v":" 3.3.2"},{"$f":"'BNB-System'!F124","v":"Kunst am Bau "},{"$f":"'BNB-System'!G124","v":100},{"$f":"'BNB-System'!J124","v":9.7826086956521747E-3},{"$f":"'Bewertung durch Anwender'!G128","v":0},{"$f":"'Bewertung durch Anwender'!N128","v":0},{"$f":"SUM(H129:H132)","v":0},null,null,null,{"$f":"'BNB-System'!K124","v":100},{"$f":"IF(ISNUMBER(G128*E128/100),G128*E128/100,0)","v":0},{"$f":"IF(ISNUMBER(H128*E128/100),H128*E128/100,0)","v":0}]
[null,null,{"$f":"'BNB-System'!F125","v":"Mindestanforderung"},{"$f":"'BNB-System'!G125","v":10},null,{"$f":"'Bewertung durch Anwender'!G129","v":0},{"$f":"'Bewertung durch Anwender'!N129","v":0},null,null,null,null,{"$f":"'BNB-System'!K125","v":0}]
[null,null,{"$f":"'BNB-System'!F126","v":"Bereitstellung von Mitteln im Rahmen der Bauaufgabe"},{"$f":"'BNB-System'!G126","v":30},null,{"$f":"'Bewertung durch Anwender'!G130","v":0},{"$f":"'Bewertung durch Anwender'!N130","v":0},null,null,null,null,{"$f":"'BNB-System'!K126","v":0}]
[null,null,{"$f":"'BNB-System'!F127","v":"Umsetzung des Leitfadens Kunst am Bau"},{"$f":"'BNB-System'!G127","v":40},null,{"$f":"'Bewertung durch Anwender'!G131","v":0},{"$f":"'Bewertung durch Anwender'!N131","v":0},null,null,null,null,{"$f":"'BNB-System'!K127","v":0}]
[null,null,{"$f":"'BNB-System'!F128","v":"Öffentlichkeitsarbeit, Rezeption  der Kunst am Bau"},{"$f":"'BNB-System'!G128","v":20},null,{"$f":"'Bewertung durch Anwender'!G132","v":0},{"$f":"'Bewertung durch Anwender'!N132","v":0},null,null,null,null,{"$f":"'BNB-System'!K128","v":0}]
[null,null,null,null,null,null,null,null,null,null,null,{"$f":"'BNB-System'!K129","v":0}]
[null,{"$f":"'BNB-System'!E130","v":"Technische Qualität"},null,null,{"$f":"'BNB-System'!J130","v":0.22500000000000001},{"$f":"'Bewertung durch Anwender'!G134","v":0},{"$f":"'Bewertung durch Anwender'!N134","v":0},{"$f":"H137*($E$137/100)+H142*($E$142/100)+H149*($E$149/100)+H159*($E$159/100)+H160*($E$160/100)+H161*($E$161/100)","v":0},null,null,null,{"$f":"'BNB-System'!K130","v":1000}]
[null,null,null,null,null,null,null,null,null,null,null,{"$f":"'BNB-System'!K131","v":0}]
[null,null,{"$f":"'BNB-System'!F132","v":"technische Ausführung"},null,null,null,null,null,null,null,null,{"$f":"'BNB-System'!K132","v":0}]
[null,{"$f":"'BNB-System'!E133","v":" 4.1.1"},{"$f":"'BNB-System'!F133","v":"Schallschutz "},{"$f":"'BNB-System'!G133","v":100},{"$f":"'BNB-System'!J133","v":4.5000000000000005E-2},{"$f":"'Bewertung durch Anwender'!G137","v":0},{"$f":"'Bewertung durch Anwender'!N137","v":0},{"$f":"SUM(H138:H141)","v":0},null,null,null,{"$f":"'BNB-System'!K133","v":200},{"$f":"IF(ISNUMBER(G137*E137/100),G137*E137/100,0)","v":0},{"$f":"IF(ISNUMBER(H137*E137/100),H137*E137/100,0)","v":0}]
[null,null,{"$f":"'BNB-System'!F134","v":"Luftschallschutz gegen Außenlärm"},{"$f":"'BNB-System'!G134","v":20},null,{"$f":"'Bewertung durch Anwender'!G138","v":0},{"$f":"'Bewertung durch Anwender'!N138","v":0},null,null,null,null,{"$f":"'BNB-System'!K134","v":0}]
[null,null,{"$f":"'BNB-System'!F135","v":"Luftschallschutz gegenüber fremden und eigenen Arbeitsbereichen"},{"$f":"'BNB-System'!G135","v":30},null,{"$f":"'Bewertung durch Anwender'!G139","v":0},{"$f":"'Bewertung durch Anwender'!N139","v":0},null,null,null,null,{"$f":"'BNB-System'!K135","v":0}]
[null,null,{"$f":"'BNB-System'!F136","v":"Trittschallschutz gegenüber fremden und eigenen Arbeitsbereichen"},{"$f":"'BNB-System'!G136","v":30},null,{"$f":"'Bewertung durch Anwender'!G140","v":0},{"$f":"'Bewertung durch Anwender'!N140","v":0},null,null,null,null,{"$f":"'BNB-System'!K136","v":0}]
[null,null,{"$f":"'BNB-System'!F137","v":"Schallschutz gegenüber haustechnischen Anlagen"},{"$f":"'BNB-System'!G137","v":20},null,{"$f":"'Bewertung durch Anwender'!G141","v":0},{"$f":"'Bewertung durch Anwender'!N141","v":0},null,null,null,null,{"$f":"'BNB-System'!K137","v":0}]
[null,{"$f":"'BNB-System'!E138","v":" 4.1.2"},{"$f":"'BNB-System'!F138","v":"Wärme- und Tauwasserschutz "},{"$f":"'BNB-System'!G138","v":100},{"$f":"'BNB-System'!J138","v":4.5000000000000005E-2},{"$f":"'Bewertung durch Anwender'!G142","v":0},{"$f":"'Bewertung durch Anwender'!N142","v":0},{"$f":"SUM(H143:H148)","v":0},null,null,null,{"$f":"'BNB-System'!K138","v":200},{"$f":"IF(ISNUMBER(G142*E142/100),G142*E142/100,0)","v":0},{"$f":"IF(ISNUMBER(H142*E142/100),H142*E142/100,0)","v":0}]
[null,null,{"$f":"'BNB-System'!F139","v":"Mittlere Wärmeduchgangskoeffizienten"},{"$f":"'BNB-System'!G139","v":30},null,{"$f":"'Bewertung durch Anwender'!G143","v":0},{"$f":"'Bewertung durch Anwender'!N143","v":0},null,null,null,null,{"$f":"'BNB-System'!K139","v":0}]
[null,null,{"$f":"'BNB-System'!F140","v":"Wärmebrückenzuschlag"},{"$f":"'BNB-System'!G140","v":15},null,{"$f":"'Bewertung durch Anwender'!G144","v":0},{"$f":"'Bewertung durch Anwender'!N144","v":0},null,null,null,null,{"$f":"'BNB-System'!K140","v":0}]
[null,null,{"$f":"'BNB-System'!F141","v":"Klassen der Luftdurchlässigkeit (Fugendurchlässigkeit)"},{"$f":"'BNB-System'!G141","v":15},null,{"$f":"'Bewertung durch Anwender'!G145","v":0},{"$f":"'Bewertung durch Anwender'!N145","v":0},null,null,null,null,{"$f":"'BNB-System'!K141","v":0}]
[null,null,{"$f":"'BNB-System'!F142","v":"Tauwasserbildung"},{"$f":"'BNB-System'!G142","v":10},null,{"$f":"'Bewertung durch Anwender'!G146","v":0},{"$f":"'Bewertung durch Anwender'!N146","v":0},null,null,null,null,{"$f":"'BNB-System'!K142","v":0}]
[null,null,{"$f":"'BNB-System'!F143","v":"Luftwechsel"},{"$f":"'BNB-System'!G143","v":15},null,{"$f":"'Bewertung durch Anwender'!G147","v":0},{"$f":"'Bewertung durch Anwender'!N147","v":0},null,null,null,null,{"$f":"'BNB-System'!K143","v":0}]
[null,null,{"$f":"'BNB-System'!F144","v":"Sonneneintragswert"},{"$f":"'BNB-System'!G144","v":15},null,{"$f":"'Bewertung durch Anwender'!G148","v":0},{"$f":"'Bewertung durch Anwender'!N148","v":0},null,null,null,null,{"$f":"'BNB-System'!K144","v":0}]
[null,{"$f":"'BNB-System'!E145","v":" 4.1.3"},{"$f":"'BNB-System'!F145","v":"Reinigungs- und Instandhaltungsfreundlichkeit"},{"$f":"'BNB-System'!G145","v":100},{"$f":"'BNB-System'!J145","v":4.5000000000000005E-2},{"$f":"'Bewertung durch Anwender'!G149","v":0},{"$f":"'Bewertung durch Anwender'!N149","v":0},{"$f":"SUM(H150:H158)","v":0},null,null,null,{"$f":"'BNB-System'!K145","v":200},{"$f":"IF(ISNUMBER(G149*E149/100),G149*E149/100,0)","v":0},{"$f":"IF(ISNUMBER(#REF!*E149/100),#REF!*E149/100,0)","v":0}]
[null,null,{"$f":"'BNB-System'!F146","v":"Tragkonstruktion"},{"$f":"'BNB-System'!G146","v":15},null,{"$f":"'Bewertung durch Anwender'!G150","v":0},{"$f":"'Bewertung durch Anwender'!N150","v":0},null,null,null,null,{"$f":"'BNB-System'!K146","v":0}]
[null,null,{"$f":"'BNB-System'!F147","v":"Zugänglichkeit der Außenglasflächen"},{"$f":"'BNB-System'!G147","v":15},null,{"$f":"'Bewertung durch Anwender'!G151","v":0},{"$f":"'Bewertung durch Anwender'!N151","v":0},null,null,null,null,{"$f":"'BNB-System'!K147","v":0}]
[null,null,{"$f":"'BNB-System'!F148","v":"Außenbauteile"},{"$f":"'BNB-System'!G148","v":9},null,{"$f":"'Bewertung durch Anwender'!G152","v":0},{"$f":"'Bewertung durch Anwender'!N152","v":0},null,null,null,null,{"$f":"'BNB-System'!K148","v":0}]
[null,null,{"$f":"'BNB-System'!F149","v":"Bodenbelag"},{"$f":"'BNB-System'!G149","v":9},null,{"$f":"'Bewertung durch Anwender'!G153","v":0},{"$f":"'Bewertung durch Anwender'!N153","v":0},null,null,null,null,{"$f":"'BNB-System'!K149","v":0}]
[null,null,{"$f":"'BNB-System'!F150","v":"Schmutzfangzone"},{"$f":"'BNB-System'!G150","v":9},null,{"$f":"'Bewertung durch Anwender'!G154","v":0},{"$f":"'Bewertung durch Anwender'!N154","v":0},null,null,null,null,{"$f":"'BNB-System'!K150","v":0}]
[null,null,{"$f":"'BNB-System'!F151","v":"Fußbodenleisten"},{"$f":"'BNB-System'!G151","v":9},null,{"$f":"'Bewertung durch Anwender'!G155","v":0},{"$f":"'Bewertung durch Anwender'!N155","v":0},null,null,null,null,{"$f":"'BNB-System'!K151","v":0}]
[null,null,{"$f":"'BNB-System'!F152","v":"Hindernisfreie Grundrissgestaltung"},{"$f":"'BNB-System'!G152","v":9},null,{"$f":"'Bewertung durch Anwender'!G156","v":0},{"$f":"'Bewertung durch Anwender'!N156","v":0},null,null,null,null,{"$f":"'BNB-System'!K152","v":0}]
[null,null,{"$f":"'BNB-System'!F153","v":"Einbauten"},{"$f":"'BNB-System'!G153","v":10},null,{"$f":"'Bewertung durch Anwender'!G157","v":0},{"$f":"'Bewertung durch Anwender'!N157","v":0},null,null,null,null,{"$f":"'BNB-System'!K153","v":0}]
[null,null,{"$f":"'BNB-System'!F154","v":"Zugänglichkeit der Innenglasflächen "},{"$f":"'BNB-System'!G154","v":15},null,{"$f":"'Bewertung durch Anwender'!G158","v":0},{"$f":"'Bewertung durch Anwender'!N158","v":0},null,null,null,null,{"$f":"'BNB-System'!K154","v":0}]
[null,{"$f":"'BNB-System'!E155","v":" 4.1.4"},{"$f":"'BNB-System'!F155","v":"Rückbau, Trennung und Verwertung"},{"$f":"'BNB-System'!G155","v":100},{"$f":"'BNB-System'!J155","v":4.5000000000000005E-2},{"$f":"'Bewertung durch Anwender'!G159","v":0},{"$f":"'Bewertung durch Anwender'!N159","v":0},null,null,null,null,{"$f":"'BNB-System'!K155","v":200},{"$f":"IF(ISNUMBER(G159*E159/100),G159*E159/100,0)","v":0},{"$f":"IF(ISNUMBER(H159*E159/100),H159*E159/100,0)","v":0}]
[null,{"$f":"'BNB-System'!E156","v":" 4.1.5"},{"$f":"'BNB-System'!F156","v":"Widerstandsfähigkeit gegen Naturgefahren"},{"$f":"'BNB-System'!G156","v":100},{"$f":"'BNB-System'!J156","v":2.2500000000000003E-2},{"$f":"'Bewertung durch Anwender'!G160","v":0},{"$f":"'Bewertung durch Anwender'!N160","v":0},null,null,null,null,{"$f":"'BNB-System'!K156","v":100},{"$f":"IF(ISNUMBER(G160*E160/100),G160*E160/100,0)","v":0},{"$f":"IF(ISNUMBER(H160*E160/100),H160*E160/100,0)","v":0}]
[null,{"$f":"'BNB-System'!E157","v":" 4.1.6"},{"$f":"'BNB-System'!F157","v":"Bedienungs- und Instandhaltungsfreundlichkeit der TGA"},{"$f":"'BNB-System'!G157","v":100},{"$f":"'BNB-System'!J157","v":2.2500000000000003E-2},{"$f":"'Bewertung durch Anwender'!G161","v":0},{"$f":"'Bewertung durch Anwender'!N161","v":0},null,null,null,null,{"$f":"'BNB-System'!K157","v":100},{"$f":"IF(ISNUMBER(G161*E161/100),G161*E161/100,0)","v":0},{"$f":"IF(ISNUMBER(H161*E161/100),H161*E161/100,0)","v":0}]
[null,null,null,null,null,null,null,null,null,null,null,{"$f":"'BNB-System'!K158","v":0}]
[null,{"$f":"'BNB-System'!E159","v":"Prozessqualität"},null,null,{"$f":"'BNB-System'!J159","v":0.1},{"$f":"'Bewertung durch Anwender'!G163","v":0},{"$f":"'Bewertung durch Anwender'!N163","v":0},{"$f":"H166*($E$166/100)+H170*($E$170/100)+H176*($E$176/100)+H192*($E$192/100)+H193*($E$193/100)+H213*($E$213/100)+H218*($E$218/100)+H221*($E$221/100)","v":0},null,null,null,{"$f":"'BNB-System'!K159","v":2500}]
[null,null,null,null,null,null,null,null,null,null,null,{"$f":"'BNB-System'!K160","v":0}]
[null,null,{"$f":"'BNB-System'!F161","v":"Planung"},null,null,null,null,null,null,null,null,{"$f":"'BNB-System'!K161","v":0}]
[null,{"$f":"'BNB-System'!E162","v":" 5.1.1"},{"$f":"'BNB-System'!F162","v":"Projektvorbereitung"},{"$f":"'BNB-System'!G162","v":100},{"$f":"'BNB-System'!J162","v":1.2E-2},{"$f":"'Bewertung durch Anwender'!G166","v":0},{"$f":"'Bewertung durch Anwender'!N166","v":0},{"$f":"SUM(H167:H169)","v":0},null,null,null,{"$f":"'BNB-System'!K162","v":300},{"$f":"IF(ISNUMBER(G166*E166/100),G166*E166/100,0)","v":0},{"$f":"IF(ISNUMBER(H166*E166/100),H166*E166/100,0)","v":0}]
[null,null,{"$f":"'BNB-System'!F163","v":"Bedarfsplanung oder vergleichbare Planung"},{"$f":"'BNB-System'!G163","v":35},null,{"$f":"'Bewertung durch Anwender'!G167","v":0},{"$f":"'Bewertung durch Anwender'!N167","v":0},null,null,null,null,{"$f":"'BNB-System'!K163","v":0}]
[null,null,{"$f":"'BNB-System'!F164","v":"Zielvereinbarung"},{"$f":"'BNB-System'!G164","v":35},null,{"$f":"'Bewertung durch Anwender'!G168","v":0},{"$f":"'Bewertung durch Anwender'!N168","v":0},null,null,null,null,{"$f":"'BNB-System'!K164","v":0}]
[null,null,{"$f":"'BNB-System'!F165","v":"Architektenwettbewerb"},{"$f":"'BNB-System'!G165","v":30},null,{"$f":"'Bewertung durch Anwender'!G169","v":0},{"$f":"'Bewertung durch Anwender'!N169","v":0},null,null,null,null,{"$f":"'BNB-System'!K165","v":0}]
[null,{"$f":"'BNB-System'!E166","v":" 5.1.2"},{"$f":"'BNB-System'!F166","v":"Integrale Planung"},{"$f":"'BNB-System'!G166","v":100},{"$f":"'BNB-System'!J166","v":1.2E-2},{"$f":"'Bewertung durch Anwender'!G170","v":0},{"$f":"'Bewertung durch Anwender'!N170","v":0},{"$f":"SUM(H171:H175)","v":0},null,null,null,{"$f":"'BNB-System'!K166","v":300},{"$f":"IF(ISNUMBER(G170*E170/100),G170*E170/100,0)","v":0},{"$f":"IF(ISNUMBER(H170*E170/100),H170*E170/100,0)","v":0}]
[null,null,{"$f":"'BNB-System'!F167","v":"Integrales Planungsteam"},{"$f":"'BNB-System'!G167","v":30},null,{"$f":"'Bewertung durch Anwender'!G171","v":0},{"$f":"'Bewertung durch Anwender'!N171","v":0},null,null,null,null,{"$f":"'BNB-System'!K167","v":0}]
[null,null,{"$f":"'BNB-System'!F168","v":"Qualifikation des Planungsteams"},{"$f":"'BNB-System'!G168","v":20},null,{"$f":"'Bewertung durch Anwender'!G172","v":0},{"$f":"'Bewertung durch Anwender'!N172","v":0},null,null,null,null,{"$f":"'BNB-System'!K168","v":0}]
[null,null,{"$f":"'BNB-System'!F169","v":"Integraler Planungsprozess"},{"$f":"'BNB-System'!G169","v":20},null,{"$f":"'Bewertung durch Anwender'!G173","v":0},{"$f":"'Bewertung durch Anwender'!N173","v":0},null,null,null,null,{"$f":"'BNB-System'!K169","v":0}]
[null,null,{"$f":"'BNB-System'!F170","v":"Nutzerbeteiligung"},{"$f":"'BNB-System'!G170","v":20},null,{"$f":"'Bewertung durch Anwender'!G174","v":0},{"$f":"'Bewertung durch Anwender'!N174","v":0},null,null,null,null,{"$f":"'BNB-System'!K170","v":0}]
[null,null,{"$f":"'BNB-System'!F171","v":"Öffentlichkeitsbeteiligung"},{"$f":"'BNB-System'!G171","v":10},null,{"$f":"'Bewertung durch Anwender'!G175","v":0},{"$f":"'Bewertung durch Anwender'!N175","v":0},null,null,null,null,{"$f":"'BNB-System'!K171","v":0}]
[null,{"$f":"'BNB-System'!E172","v":" 5.1.3"},{"$f":"'BNB-System'!F172","v":"Komplexität und Optimierung der Planung"},{"$f":"'BNB-System'!G172","v":100},{"$f":"'BNB-System'!J172","v":1.2E-2},{"$f":"'Bewertung durch Anwender'!G176","v":0},{"$f":"'Bewertung durch Anwender'!N176","v":0},{"$f":"IF(SUM(H177:H191)>100,100,SUM(H177:H191))","v":0},null,null,null,{"$f":"'BNB-System'!K172","v":300},{"$f":"IF(ISNUMBER(G176*E176/100),G176*E176/100,0)","v":0},{"$f":"IF(ISNUMBER(H176*E176/100),H176*E176/100,0)","v":0}]
[null,null,{"$f":"'BNB-System'!F173","v":"SiGe-Plan"},{"$f":"'BNB-System'!G173","v":10},null,{"$f":"'Bewertung durch Anwender'!G177","v":0},{"$f":"'Bewertung durch Anwender'!N177","v":0},null,null,null,null,{"$f":"'BNB-System'!K173","v":0}]
[null,null,{"$f":"'BNB-System'!F174","v":"Ver- und Entsiegelungskonzept"},{"$f":"'BNB-System'!G174","v":10},null,{"$f":"'Bewertung durch Anwender'!G178","v":0},{"$f":"'Bewertung durch Anwender'!N178","v":0},null,null,null,null,{"$f":"'BNB-System'!K174","v":0}]
[null,null,{"$f":"'BNB-System'!F175","v":"Energiekonzept"},{"$f":"'BNB-System'!G175","v":15},null,{"$f":"'Bewertung durch Anwender'!G179","v":0},{"$f":"'Bewertung durch Anwender'!N179","v":0},null,null,null,null,{"$f":"'BNB-System'!K175","v":0}]
[null,null,{"$f":"'BNB-System'!F176","v":"Mess- und Monitoringkonzept"},{"$f":"'BNB-System'!G176","v":15},null,{"$f":"'Bewertung durch Anwender'!G180","v":0},{"$f":"'Bewertung durch Anwender'!N180","v":0},null,null,null,null,{"$f":"'BNB-System'!K176","v":0}]
[null,null,{"$f":"'BNB-System'!F177","v":"Wasserkonzept"},{"$f":"'BNB-System'!G177","v":10},null,{"$f":"'Bewertung durch Anwender'!G181","v":0},{"$f":"'Bewertung durch Anwender'!N181","v":0},null,null,null,null,{"$f":"'BNB-System'!K177","v":0}]
[null,null,{"$f":"'BNB-System'!F178","v":"Konzept zur Vermeidung von Umwelt- und Gesundheitsrisiken aus Bauprodukten"},{"$f":"'BNB-System'!G178","v":10},null,{"$f":"'Bewertung durch Anwender'!G182","v":0},{"$f":"'Bewertung durch Anwender'!N182","v":0},null,null,null,null,{"$f":"'BNB-System'!K178","v":0}]
[null,null,{"$f":"'BNB-System'!F179","v":"Lüftungskonzept"},{"$f":"'BNB-System'!G179","v":10},null,{"$f":"'Bewertung durch Anwender'!G183","v":0},{"$f":"'Bewertung durch Anwender'!N183","v":0},null,null,null,null,{"$f":"'BNB-System'!K179","v":0}]
[null,null,{"$f":"'BNB-System'!F180","v":"Abfallkonzept / Wertstoffkonzept"},{"$f":"'BNB-System'!G180","v":5},null,{"$f":"'Bewertung durch Anwender'!G184","v":0},{"$f":"'Bewertung durch Anwender'!N184","v":0},null,null,null,null,{"$f":"'BNB-System'!K180","v":0}]
[null,null,{"$f":"'BNB-System'!F181","v":"Tages- / Kunstlichtoptimierung"},{"$f":"'BNB-System'!G181","v":10},null,{"$f":"'Bewertung durch Anwender'!G185","v":0},{"$f":"'Bewertung durch Anwender'!N185","v":0},null,null,null,null,{"$f":"'BNB-System'!K181","v":0}]
[null,null,{"$f":"'BNB-System'!F182","v":"Konzept zur Sicherung der Reinigungs- und Instandhaltungsfreundlichkeit"},{"$f":"'BNB-System'!G182","v":10},null,{"$f":"'Bewertung durch Anwender'!G186","v":0},{"$f":"'Bewertung durch Anwender'!N186","v":0},null,null,null,null,{"$f":"'BNB-System'!K182","v":0}]
[null,null,{"$f":"'BNB-System'!F183","v":"Anpassbarkeits-, Rückbau- und Recyclingkonzept"},{"$f":"'BNB-System'!G183","v":10},null,{"$f":"'Bewertung durch Anwender'!G187","v":0},{"$f":"'Bewertung durch Anwender'!N187","v":0},null,null,null,null,{"$f":"'BNB-System'!K183","v":0}]
[null,null,{"$f":"'BNB-System'!F184","v":"Konzept zur Vermeidung und Beherrschung von Risiken"},{"$f":"'BNB-System'!G184","v":10},null,{"$f":"'Bewertung durch Anwender'!G188","v":0},{"$f":"'Bewertung durch Anwender'!N188","v":0},null,null,null,null,{"$f":"'BNB-System'!K184","v":0}]
[null,null,{"$f":"'BNB-System'!F185","v":"Sonstige Konzepte zum Nachhaltigen Bauen"},{"$f":"'BNB-System'!G185","v":10},null,{"$f":"'Bewertung durch Anwender'!G189","v":0},{"$f":"'Bewertung durch Anwender'!N189","v":0},null,null,null,null,{"$f":"'BNB-System'!K185","v":0}]
[null,null,{"$f":"'BNB-System'!F186","v":"Prüfung der Planungsunterlagen durch unabhängige Dritte"},{"$f":"'BNB-System'!G186","v":5},null,{"$f":"'Bewertung durch Anwender'!G190","v":0},{"$f":"'Bewertung durch Anwender'!N190","v":0},null,null,null,null,{"$f":"'BNB-System'!K186","v":0}]
[null,null,{"$f":"'BNB-System'!F187","v":"Durchführung von Variantenvergleichen"},{"$f":"'BNB-System'!G187","v":10},null,{"$f":"'Bewertung durch Anwender'!G191","v":0},{"$f":"'Bewertung durch Anwender'!N191","v":0},null,null,null,null,{"$f":"'BNB-System'!K187","v":0}]
[null,{"$f":"'BNB-System'!E188","v":" 5.1.4"},{"$f":"'BNB-System'!F188","v":"Ausschreibung und Vergabe"},{"$f":"'BNB-System'!G188","v":100},{"$f":"'BNB-System'!J188","v":8.0000000000000002E-3},{"$f":"'Bewertung durch Anwender'!G192","v":0},{"$f":"'Bewertung durch Anwender'!N192","v":0},null,null,null,null,{"$f":"'BNB-System'!K188","v":200},{"$f":"IF(ISNUMBER(G192*E192/100),G192*E192/100,0)","v":0},{"$f":"IF(ISNUMBER(H192*E192/100),H192*E192/100,0)","v":0}]
[null,{"$f":"'BNB-System'!E189","v":" 5.1.5"},{"$f":"'BNB-System'!F189","v":"Voraussetzungen für eine optimale Bewirtschaftung"},{"$f":"'BNB-System'!G189","v":100},{"$f":"'BNB-System'!J189","v":8.0000000000000002E-3},{"$f":"'Bewertung durch Anwender'!G193","v":0},{"$f":"'Bewertung durch Anwender'!N193","v":0},{"$f":"SUM(H194:H197)","v":0},null,null,null,{"$f":"'BNB-System'!K189","v":200},{"$f":"IF(ISNUMBER(G193*E193/100),G193*E193/100,0)","v":0},{"$f":"IF(ISNUMBER(H193*E193/100),H193*E193/100,0)","v":0}]
[null,null,{"$f":"'BNB-System'!F190","v":"Erstellung einer Gebäudeakte / Objektdokumentation"},{"$f":"'BNB-System'!G190","v":25},null,{"$f":"'Bewertung durch Anwender'!G194","v":0},{"$f":"'Bewertung durch Anwender'!N194","v":0},null,null,null,null,{"$f":"'BNB-System'!K190","v":0}]
[null,null,{"$f":"'BNB-System'!F191","v":"Erstellung von Wartungs-, Inspektions-, Betriebs-, und Pflegeanleitungen"},{"$f":"'BNB-System'!G191","v":25},null,{"$f":"'Bewertung durch Anwender'!G195","v":0},{"$f":"'Bewertung durch Anwender'!N195","v":0},null,null,null,null,{"$f":"'BNB-System'!K191","v":0}]
[null,null,{"$f":"'BNB-System'!F192","v":"Anpassung der Pläne und Berechnungen an das realisierte Gebäude"},{"$f":"'BNB-System'!G192","v":25},null,{"$f":"'Bewertung durch Anwender'!G196","v":0},{"$f":"'Bewertung durch Anwender'!N196","v":0},null,null,null,null,{"$f":"'BNB-System'!K192","v":0}]
[null,null,{"$f":"'BNB-System'!F193","v":"Erstellung eines Nutzerhandbuches"},{"$f":"'BNB-System'!G193","v":25},null,{"$f":"'Bewertung durch Anwender'!G197","v":0},{"$f":"'Bewertung durch Anwender'!N197","v":0},null,null,null,null,{"$f":"'BNB-System'!K193","v":0}]
[null,{"$f":"'BNB-System'!E194","v":" 5.1.6"},{"$f":"'BNB-System'!F194","v":"Bestandsanalyse"},{"$f":"'BNB-System'!G194","v":100},null,{"$f":"'Bewertung durch Anwender'!G198","v":0},{"$f":"'Bewertung durch Anwender'!N198","v":0},{"$f":"SUM(H199:H207)","v":0}]
[null,null,{"$f":"'BNB-System'!F195","v":"Bestandsaufnahme Geometrie"},{"$f":"'BNB-System'!G195","v":10},null,{"$f":"'Bewertung durch Anwender'!G199","v":0},{"$f":"'Bewertung durch Anwender'!N199","v":0}]
[null,null,{"$f":"'BNB-System'!F196","v":"Bestandsaufnahme Baukonstruktion und Baustoffe"},{"$f":"'BNB-System'!G196","v":20},null,{"$f":"'Bewertung durch Anwender'!G200","v":0},{"$f":"'Bewertung durch Anwender'!N200","v":0}]
[null,null,{"$f":"'BNB-System'!F197","v":"Bestandsaufnahme Haustechnik"},{"$f":"'BNB-System'!G197","v":10},null,{"$f":"'Bewertung durch Anwender'!G201","v":0},{"$f":"'Bewertung durch Anwender'!N201","v":0}]
[null,null,{"$f":"'BNB-System'!F198","v":"Bestandsaufnahme Bau- und Nutzungsgeschichte"},{"$f":"'BNB-System'!G198","v":5},null,{"$f":"'Bewertung durch Anwender'!G202","v":0},{"$f":"'Bewertung durch Anwender'!N202","v":0}]
[null,null,{"$f":"'BNB-System'!F199","v":"Bestandsaufnahme Exposition"},{"$f":"'BNB-System'!G199","v":5},null,{"$f":"'Bewertung durch Anwender'!G203","v":0},{"$f":"'Bewertung durch Anwender'!N203","v":0}]
[null,null,{"$f":"'BNB-System'!F200","v":"Baudiagnose Tragwerk"},{"$f":"'BNB-System'!G200","v":15},null,{"$f":"'Bewertung durch Anwender'!G204","v":0},{"$f":"'Bewertung durch Anwender'!N204","v":0}]
[null,null,{"$f":"'BNB-System'!F201","v":"Baudiagnose Energetische Qualität"},{"$f":"'BNB-System'!G201","v":15},null,{"$f":"'Bewertung durch Anwender'!G205","v":0},{"$f":"'Bewertung durch Anwender'!N205","v":0}]
[null,null,{"$f":"'BNB-System'!F202","v":"Baudiagnose Schadstoffe"},{"$f":"'BNB-System'!G202","v":10},null,{"$f":"'Bewertung durch Anwender'!G206","v":0},{"$f":"'Bewertung durch Anwender'!N206","v":0}]
[null,null,{"$f":"'BNB-System'!F203","v":"Baudiagnose Feuchte- und Salzbelastung"},{"$f":"'BNB-System'!G203","v":10},null,{"$f":"'Bewertung durch Anwender'!G207","v":0},{"$f":"'Bewertung durch Anwender'!N207","v":0}]
[null,{"$f":"'BNB-System'!E204","v":" 5.1.7"},{"$f":"'BNB-System'!F204","v":"Rückbaumaßnahmen"},{"$f":"'BNB-System'!G204","v":100},null,{"$f":"'Bewertung durch Anwender'!G208","v":0},{"$f":"'Bewertung durch Anwender'!N208","v":0},{"$f":"SUM(H209:H211)","v":0}]
[null,null,{"$f":"'BNB-System'!F205","v":"Planung des Rückbaus"},{"$f":"'BNB-System'!G205","v":50},null,{"$f":"'Bewertung durch Anwender'!G209","v":0},{"$f":"'Bewertung durch Anwender'!N209","v":0}]
[null,null,{"$f":"'BNB-System'!F206","v":"Selektiver Rückbau"},{"$f":"'BNB-System'!G206","v":25},null,{"$f":"'Bewertung durch Anwender'!G210","v":0},{"$f":"'Bewertung durch Anwender'!N210","v":0}]
[null,null,{"$f":"'BNB-System'!F207","v":"Prüfen auf Abfalltrennung und Entsorgung"},{"$f":"'BNB-System'!G207","v":25},null,{"$f":"'Bewertung durch Anwender'!G211","v":0},{"$f":"'Bewertung durch Anwender'!N211","v":0}]
[null,null,{"$f":"'BNB-System'!F208","v":"Bauausführung"},null,null,null,null,null,null,null,null,{"$f":"'BNB-System'!K208","v":0}]
[null,{"$f":"'BNB-System'!E209","v":" 5.2.1"},{"$f":"'BNB-System'!F209","v":"Baustelle / Bauprozess"},{"$f":"'BNB-System'!G209","v":100},{"$f":"'BNB-System'!J209","v":8.0000000000000002E-3},{"$f":"'Bewertung durch Anwender'!G213","v":0},{"$f":"'Bewertung durch Anwender'!N213","v":0},{"$f":"SUM(H214:H217)","v":0},null,null,null,{"$f":"'BNB-System'!K209","v":200},{"$f":"IF(ISNUMBER(G213*E213/100),G213*E213/100,0)","v":0},{"$f":"IF(ISNUMBER(H213*E213/100),H213*E213/100,0)","v":0}]
[null,null,{"$f":"'BNB-System'!F210","v":"Wertstoffoptimierte Baustelle"},{"$f":"'BNB-System'!G210","v":25},null,{"$f":"'Bewertung durch Anwender'!G214","v":0},{"$f":"'Bewertung durch Anwender'!N214","v":0},null,null,null,null,{"$f":"'BNB-System'!K210","v":0}]
[null,null,{"$f":"'BNB-System'!F211","v":"Lärmarme Baustelle"},{"$f":"'BNB-System'!G211","v":25},null,{"$f":"'Bewertung durch Anwender'!G215","v":0},{"$f":"'Bewertung durch Anwender'!N215","v":0},null,null,null,null,{"$f":"'BNB-System'!K211","v":0}]
[null,null,{"$f":"'BNB-System'!F212","v":"Staubarme Baustelle"},{"$f":"'BNB-System'!G212","v":25},null,{"$f":"'Bewertung durch Anwender'!G216","v":0},{"$f":"'Bewertung durch Anwender'!N216","v":0},null,null,null,null,{"$f":"'BNB-System'!K212","v":0}]
[null,null,{"$f":"'BNB-System'!F213","v":"Bodenschutz auf der Baustelle"},{"$f":"'BNB-System'!G213","v":25},null,{"$f":"'Bewertung durch Anwender'!G217","v":0},{"$f":"'Bewertung durch Anwender'!N217","v":0},null,null,null,null,{"$f":"'BNB-System'!K213","v":0}]
[null,{"$f":"'BNB-System'!E214","v":" 5.2.2"},{"$f":"'BNB-System'!F214","v":"Qualitätssicherung der Bauausführung"},{"$f":"'BNB-System'!G214","v":100},{"$f":"'BNB-System'!J214","v":1.2E-2},{"$f":"'Bewertung durch Anwender'!G218","v":0},{"$f":"'Bewertung durch Anwender'!N218","v":0},{"$f":"SUM(H219:H220)","v":0},null,null,null,{"$f":"'BNB-System'!K214","v":300},{"$f":"IF(ISNUMBER(G218*E218/100),G218*E218/100,0)","v":0},{"$f":"IF(ISNUMBER(H218*E218/100),H218*E218/100,0)","v":0}]
[null,null,{"$f":"'BNB-System'!F215","v":"Dokumentation"},{"$f":"'BNB-System'!G215","v":50},null,{"$f":"'Bewertung durch Anwender'!G219","v":0},{"$f":"'Bewertung durch Anwender'!N219","v":0},null,null,null,null,{"$f":"'BNB-System'!K215","v":0}]
[null,null,{"$f":"'BNB-System'!F216","v":"Messungen zur Qualitätskontrolle"},{"$f":"'BNB-System'!G216","v":50},null,{"$f":"'Bewertung durch Anwender'!G220","v":0},{"$f":"'Bewertung durch Anwender'!N220","v":0},null,null,null,null,{"$f":"'BNB-System'!K216","v":0}]
[null,{"$f":"'BNB-System'!E217","v":" 5.2.3"},{"$f":"'BNB-System'!F217","v":"Systematische Inbetriebnahme"},{"$f":"'BNB-System'!G217","v":100},{"$f":"'BNB-System'!J217","v":1.2E-2},{"$f":"'Bewertung durch Anwender'!G221","v":0},{"$f":"'Bewertung durch Anwender'!N221","v":0},null,null,null,null,{"$f":"'BNB-System'!K217","v":300},{"$f":"IF(ISNUMBER(G221*E221/100),G221*E221/100,0)","v":0},{"$f":"IF(ISNUMBER(H221*E221/100),H221*E221/100,0)","v":0}]
[null,null,null,null,null,null,null,null,null,null,null,{"$f":"'BNB-System'!#REF!","v":{"$error":"#REF!"}}]
[null,null,null,null,null,null,null,null,null,null,null,{"$f":"'BNB-System'!K219","v":0}]
[null,{"$f":"'BNB-System'!E220","v":"Standortmerkmale"},null,null,{"$f":"'BNB-System'!J220","v":1},{"$f":"Zielvereinbarung!G224","v":0},{"$f":"'Bewertung durch Anwender'!N224","v":0},{"$f":"H227*($E$227/100)+H233*($E$233/100)+H240*($E$240/100)+H245*($E$245/100)+H249*($E$249/100)+H259*($E$259/100)","v":0},null,null,null,{"$f":"'BNB-System'!K220","v":1300}]
[null,null,null,null,null,null,null,null,null,null,null,{"$f":"'BNB-System'!K221","v":0}]
[null,null,{"$f":"'BNB-System'!F222","v":"Standortmerkmale"},null,null,null,null,null,null,null,null,{"$f":"'BNB-System'!K222","v":0}]
[null,{"$f":"'BNB-System'!E223","v":" 6.1.1"},{"$f":"'BNB-System'!F223","v":"Risiken am Mikrostandort"},{"$f":"'BNB-System'!G223","v":100},{"$f":"'BNB-System'!J223","v":0.15384615384615385},{"$f":"'Bewertung durch Anwender'!G227","v":0},{"$f":"'Bewertung durch Anwender'!N227","v":0},{"$f":"SUM(H228:H232)","v":0},null,null,null,{"$f":"'BNB-System'!K223","v":200}]
[null,null,{"$f":"'BNB-System'!F224","v":"Risiken aus Man-Made-Hazards (Unfälle)"},{"$f":"'BNB-System'!G224","v":20},null,{"$f":"'Bewertung durch Anwender'!G228","v":0},{"$f":"'Bewertung durch Anwender'!N228","v":0}]
[null,null,{"$f":"'BNB-System'!F225","v":"Risiken aus Erdbeben"},{"$f":"'BNB-System'!G225","v":20},null,{"$f":"'Bewertung durch Anwender'!G229","v":0},{"$f":"'Bewertung durch Anwender'!N229","v":0}]
[null,null,{"$f":"'BNB-System'!F226","v":"Risiken aus Lawinen"},{"$f":"'BNB-System'!G226","v":20},null,{"$f":"'Bewertung durch Anwender'!G230","v":0},{"$f":"'Bewertung durch Anwender'!N230","v":0}]
[null,null,{"$f":"'BNB-System'!F227","v":"Risiken aus Sturm"},{"$f":"'BNB-System'!G227","v":20},null,{"$f":"'Bewertung durch Anwender'!G231","v":0},{"$f":"'Bewertung durch Anwender'!N231","v":0}]
[null,null,{"$f":"'BNB-System'!F228","v":"Risiken aus Hochwasser"},{"$f":"'BNB-System'!G228","v":20},null,{"$f":"'Bewertung durch Anwender'!G232","v":0},{"$f":"'Bewertung durch Anwender'!N232","v":0}]
[null,{"$f":"'BNB-System'!E229","v":" 6.1.2"},{"$f":"'BNB-System'!F229","v":"Verhältnisse am Mikrostandort"},{"$f":"'BNB-System'!G229","v":100},{"$f":"'BNB-System'!J229","v":0.15384615384615385},{"$f":"'Bewertung durch Anwender'!G233","v":0},{"$f":"'Bewertung durch Anwender'!N233","v":0},{"$f":"SUM(H234:H239)","v":0},null,null,null,{"$f":"'BNB-System'!K229","v":200}]
[null,null,{"$f":"'BNB-System'!F230","v":"Außenluftqualität"},{"$f":"'BNB-System'!G230","v":16},null,{"$f":"'Bewertung durch Anwender'!G234","v":0},{"$f":"'Bewertung durch Anwender'!N234","v":0}]
[null,null,{"$f":"'BNB-System'!F231","v":"Außenlärmpegel"},{"$f":"'BNB-System'!G231","v":20},null,{"$f":"'Bewertung durch Anwender'!G235","v":0},{"$f":"'Bewertung durch Anwender'!N235","v":0}]
[null,null,{"$f":"'BNB-System'!F232","v":"Baugrundverhältnisse, Bodenbelastungen"},{"$f":"'BNB-System'!G232","v":16},null,{"$f":"'Bewertung durch Anwender'!G236","v":0},{"$f":"'Bewertung durch Anwender'!N236","v":0}]
[null,null,{"$f":"'BNB-System'!F233","v":"Elektromagnetische Felder"},{"$f":"'BNB-System'!G233","v":16},null,{"$f":"'Bewertung durch Anwender'!G237","v":0},{"$f":"'Bewertung durch Anwender'!N237","v":0}]
[null,null,{"$f":"'BNB-System'!F234","v":"Vorkommen von Radon"},{"$f":"'BNB-System'!G234","v":16},null,{"$f":"'Bewertung durch Anwender'!G238","v":0},{"$f":"'Bewertung durch Anwender'!N238","v":0}]
[null,null,{"$f":"'BNB-System'!F235","v":"Stadt- und Landschaftsbild / Sichtbeziehungen"},{"$f":"'BNB-System'!G235","v":16},null,{"$f":"'Bewertung durch Anwender'!G239","v":0},{"$f":"'Bewertung durch Anwender'!N239","v":0}]
[null,{"$f":"'BNB-System'!E236","v":" 6.1.3"},{"$f":"'BNB-System'!F236","v":"Quartiersmerkmale"},{"$f":"'BNB-System'!G236","v":100},{"$f":"'BNB-System'!J236","v":0.15384615384615385},{"$f":"'Bewertung durch Anwender'!G240","v":0},{"$f":"'Bewertung durch Anwender'!N240","v":0},{"$f":"SUM(H241:H244)","v":0},null,null,null,{"$f":"'BNB-System'!K236","v":200}]
[null,null,{"$f":"'BNB-System'!F237","v":"Image, Attraktivität"},{"$f":"'BNB-System'!G237","v":25},null,{"$f":"'Bewertung durch Anwender'!G241","v":0},{"$f":"'Bewertung durch Anwender'!N241","v":0}]
[null,null,{"$f":"'BNB-System'!F238","v":"Synergie- und Konfliktpotenziale"},{"$f":"'BNB-System'!G238","v":25},null,{"$f":"'Bewertung durch Anwender'!G242","v":0},{"$f":"'Bewertung durch Anwender'!N242","v":0}]
[null,null,{"$f":"'BNB-System'!F239","v":"Kriminalität"},{"$f":"'BNB-System'!G239","v":25},null,{"$f":"'Bewertung durch Anwender'!G243","v":0},{"$f":"'Bewertung durch Anwender'!N243","v":0}]
[null,null,{"$f":"'BNB-System'!F240","v":"Pflege und Erhaltungszustand"},{"$f":"'BNB-System'!G240","v":25},null,{"$f":"'Bewertung durch Anwender'!G244","v":0},{"$f":"'Bewertung durch Anwender'!N244","v":0}]
[null,{"$f":"'BNB-System'!E241","v":" 6.1.4"},{"$f":"'BNB-System'!F241","v":"Verkehrsanbindung"},{"$f":"'BNB-System'!G241","v":100},{"$f":"'BNB-System'!J241","v":0.23076923076923078},{"$f":"'Bewertung durch Anwender'!G245","v":0},{"$f":"'Bewertung durch Anwender'!N245","v":0},{"$f":"SUM(H246:H248)","v":0},null,null,null,{"$f":"'BNB-System'!K241","v":300}]
[null,null,{"$f":"'BNB-System'!F242","v":"Erreichbarkeit Haupt-/ Fernbahnhof"},{"$f":"'BNB-System'!G242","v":30},null,{"$f":"'Bewertung durch Anwender'!G246","v":0},{"$f":"'Bewertung durch Anwender'!N246","v":0}]
[null,null,{"$f":"'BNB-System'!F243","v":"Erreichbarkeit ÖPNV"},{"$f":"'BNB-System'!G243","v":30},null,{"$f":"'Bewertung durch Anwender'!G247","v":0},{"$f":"'Bewertung durch Anwender'!N247","v":0}]
[null,null,{"$f":"'BNB-System'!F244","v":"Fuß- und Radwege"},{"$f":"'BNB-System'!G244","v":40},null,{"$f":"'Bewertung durch Anwender'!G248","v":0},{"$f":"'Bewertung durch Anwender'!N248","v":0}]
[null,{"$f":"'BNB-System'!E245","v":" 6.1.5"},{"$f":"'BNB-System'!F245","v":"Nähe zu nutzungsrelevanten Einrichtungen"},{"$f":"'BNB-System'!G245","v":100},{"$f":"'BNB-System'!J245","v":0.15384615384615385},{"$f":"'Bewertung durch Anwender'!G249","v":0},{"$f":"'Bewertung durch Anwender'!N249","v":0},{"$f":"SUM(H250:H258)","v":0},null,null,null,{"$f":"'BNB-System'!K245","v":200}]
[null,null,{"$f":"'BNB-System'!F246","v":"Gastronomie"},{"$f":"'BNB-System'!G246","v":10},null,{"$f":"'Bewertung durch Anwender'!G250","v":0},{"$f":"'Bewertung durch Anwender'!N250","v":0}]
[null,null,{"$f":"'BNB-System'!F247","v":"Nahversorgung"},{"$f":"'BNB-System'!G247","v":10},null,{"$f":"'Bewertung durch Anwender'!G251","v":0},{"$f":"'Bewertung durch Anwender'!N251","v":0}]
[null,null,{"$f":"'BNB-System'!F248","v":"Parkanlagen und Freiräume"},{"$f":"'BNB-System'!G248","v":20},null,{"$f":"'Bewertung durch Anwender'!G252","v":0},{"$f":"'Bewertung durch Anwender'!N252","v":0}]
[null,null,{"$f":"'BNB-System'!F249","v":"Bildung"},{"$f":"'BNB-System'!G249","v":10},null,{"$f":"'Bewertung durch Anwender'!G253","v":0},{"$f":"'Bewertung durch Anwender'!N253","v":0}]
[null,null,{"$f":"'BNB-System'!F250","v":"Öffentliche Verwaltung"},{"$f":"'BNB-System'!G250","v":10},null,{"$f":"'Bewertung durch Anwender'!G254","v":0},{"$f":"'Bewertung durch Anwender'!N254","v":0}]
[null,null,{"$f":"'BNB-System'!F251","v":"Medizinische Versorgung"},{"$f":"'BNB-System'!G251","v":10},null,{"$f":"'Bewertung durch Anwender'!G255","v":0},{"$f":"'Bewertung durch Anwender'!N255","v":0}]
[null,null,{"$f":"'BNB-System'!F252","v":"Sportstätten"},{"$f":"'BNB-System'!G252","v":10},null,{"$f":"'Bewertung durch Anwender'!G256","v":0},{"$f":"'Bewertung durch Anwender'!N256","v":0}]
[null,null,{"$f":"'BNB-System'!F253","v":"Freizeit"},{"$f":"'BNB-System'!G253","v":10},null,{"$f":"'Bewertung durch Anwender'!G257","v":0},{"$f":"'Bewertung durch Anwender'!N257","v":0}]
[null,null,{"$f":"'BNB-System'!F254","v":"Dienstleister"},{"$f":"'BNB-System'!G254","v":10},null,{"$f":"'Bewertung durch Anwender'!G258","v":0},{"$f":"'Bewertung durch Anwender'!N258","v":0}]
[null,{"$f":"'BNB-System'!E255","v":" 6.1.6"},{"$f":"'BNB-System'!F255","v":"Anliegende Medien / Erschließung"},{"$f":"'BNB-System'!G255","v":100},{"$f":"'BNB-System'!J255","v":0.15384615384615385},{"$f":"'Bewertung durch Anwender'!G259","v":0},{"$f":"'Bewertung durch Anwender'!N259","v":0},{"$f":"SUM(H260:H263)","v":0},null,null,null,{"$f":"'BNB-System'!K255","v":200}]
[null,null,{"$f":"'BNB-System'!F256","v":"Leitungsgebundene Energie"},{"$f":"'BNB-System'!G256","v":25},null,{"$f":"'Bewertung durch Anwender'!G260","v":0},{"$f":"'Bewertung durch Anwender'!N260","v":0}]
[null,null,{"$f":"'BNB-System'!F257","v":"Solarenergie"},{"$f":"'BNB-System'!G257","v":25},null,{"$f":"'Bewertung durch Anwender'!G261","v":0},{"$f":"'Bewertung durch Anwender'!N261","v":0}]
[null,null,{"$f":"'BNB-System'!F258","v":"Breitband-Anschluss"},{"$f":"'BNB-System'!G258","v":25},null,{"$f":"'Bewertung durch Anwender'!G262","v":0},{"$f":"'Bewertung durch Anwender'!N262","v":0}]
[null,null,{"$f":"'BNB-System'!F259","v":"Regenwasserversickerung"},{"$f":"'BNB-System'!G259","v":25},null,{"$f":"'Bewertung durch Anwender'!G263","v":0},{"$f":"'Bewertung durch Anwender'!N263","v":0}]

{"sheet":"BNB-System","index":4,"n_rows":260,"n_cols":11,"rows_kept":260,"cut":false,"hidden":true,"merged":[[259,1,259,11],[3,4,3,5],[3,1,3,3]]}
[null,"Projekt:"]
[null,"Bewertungssystem Nachhaltiges Bauen (BNB)"]
[null,"Systemvariante Büro- und Verwaltungsgebäude, Modul Komplettmodernisierung (BNB_BK) - Version 2017"]
["Hinweis zu Denkmal-schutz","identische Inhalte *",null,null,"Nachhaltigkeitskriterien",null,"Zielwert\nmax. Punktzahl","Punktzahl","Bedeutungs-faktor","Gewichtung\nGesamt-bewertung","Zielwert"]
[]
[null,null,null,null,"Ökologische Qualität",null,null,null,null,0.22500000000000001,{"$f":"SUM(K9:K27)","v":1800}]
[]
[null,null,null,null,null,"Wirkungen auf die globale und lokale  Umwelt"]
["D",null,null,null," 1.1.1","Treibhauspotenzial (GWP)",100,null,3,{"$f":"K9/$K6*J6","v":3.7499999999999999E-2},{"$f":"G9*I9","v":300}]
["D",null,null,null," 1.1.2","Ozonschichtabbaupotenzial (ODP)",100,null,1,{"$f":"K10/K6*J6","v":1.2499999999999999E-2},100]
["D",null,null,null," 1.1.3","Ozonbildungspotenzial (POCP)",100,null,1,{"$f":"K11/K6*J6","v":1.2499999999999999E-2},100]
["D",null,null,null," 1.1.4","Versauerungspotenzial (AP)",100,null,1,{"$f":"K12/K6*J6","v":1.2499999999999999E-2},100]
["D",null,null,null," 1.1.5","Überdüngungspotenzial (EP)",100,null,1,{"$f":"K13/K6*J6","v":1.2499999999999999E-2},100]
["D",null,"UK",null," 1.1.6","Risiken für die lokale Umwelt",100,null,3,{"$f":"K14/K6*J6","v":3.7499999999999999E-2},300]
[null,null,"UK",null,null,"Altsubstanz: Q4 ; Neusubstanz: Q5",100]
[null,null,"UK",null,null,"Altsubstanz: Q3 ; Neusubstanz: Q4",75]
[null,null,"UK",null,null,"Altsubstanz: Q2 ; Neusubstanz: Q3",50]
[null,null,"UK",null,null,"Altsubstanz: Q1 ; Neusubstanz: Q2",25]
[null,null,"UK",null,null,"Altsubstanz: Q1 ; Neusubstanz: Q1",10]
[null,null,"UK",null," 1.1.7","Nachhaltige Materialgewinnung / Biodiversität",100,null,1,{"$f":"K20/K6*J6","v":1.2499999999999999E-2},100]
[null,null,null,null,null,"Ressourceninanspruchnahme"]
[null,null,null,null," 1.2.1","Primärenergiebedarf",100,{"$f":"IF(SUM(H23:H25)>100,100,SUM(H23:H25))","v":0},3,{"$f":"K22/$K6*J6","v":3.7499999999999999E-2},{"$f":"G22*I22","v":300}]
[null,null,null,null,null,"Primärenergiebedarf nicht erneuerbar (PEne)",60]
[null,null,null,null,null,"Gesamtprimärenergiebedarf (PEges)",40]
[null,null,null,null,null,"Anteil der erneuerbaren Primärenergie (Pee)",20]
[null,null,null,null," 1.2.3","Trinkwasserbedarf und Abwasseraufkommen",100,null,2,{"$f":"K26/$K$6*$J$6","v":2.4999999999999998E-2},{"$f":"G26*I26","v":200}]
[null,null,"UK",null," 1.2.4","Flächeninanspruchnahme",100,null,2,{"$f":"K27/$K$6*$J$6","v":2.4999999999999998E-2},{"$f":"G27*I27","v":200}]
[null,null,null,null,null,"Veränderung der Flächeninanspruchnahme",100]
[null,null,null,null,null,"Ausgleichsmaßnahmen und Flächenrecycling",40]
[]
[null,null,null,null,"Ökonomische Qualität",null,null,null,null,0.22500000000000001,{"$f":"SUM(K34:K37)","v":600}]
[]
[null,null,null,null,null,"Lebenszykluskosten"]
["D",null,null,null," 2.1.1","Gebäudebezogene Kosten im Lebenszyklus",100,null,3,{"$f":"K34/$K31*J31","v":0.1125},{"$f":"G34*I34","v":300}]
[null,null,null,null,null,"Wirtschaftlichkeit und Wertstabilität"]
[null,"BN",null,null," 2.2.1","Flächeneffizienz",100,null,1,{"$f":"K36/$K$31*$J$31","v":3.7499999999999999E-2},{"$f":"G36*I36","v":100}]
["D",null,null,null," 2.2.2","Anpassungsfähigkeit",100,{"$f":"IF(SUM(H38:H43)>100,100,SUM(H38:H43))","v":0},2,{"$f":"K37/$K$31*$J$31","v":7.4999999999999997E-2},{"$f":"G37*I37","v":200}]
[null,null,null,null,null,"Lichte Raumhöhe",15]
[null,null,null,null,null,"Gebäudetiefe",15]
[null,null,null,null,null,"Vertikale Erschließung",15]
[null,null,null,null,null,"Grundrisse",25]
[null,null,null,null,null,"Konstruktion",20]
[null,null,null,null,null,"Technische Ausstattung",18]
[]
[null,null,null,null,"Soziokulturelle und funktionale Qualität",null,null,null,null,0.22500000000000001,{"$f":"SUM(K48:K128)","v":2300}]
[]
[null,null,null,null,null,"Gesundheit, Behaglichkeit und Nutzerzufriedenheit"]
[null,"BN ","UK","UN"," 3.1.1","Thermischer Komfort",100,{"$f":"IF(SUM(H50:H58)>100,100,SUM(H50:H58))","v":0},3,{"$f":"K48/$K$45*$J$45","v":2.9347826086956522E-2},{"$f":"G48*I48","v":300}]
[null,null,null,null,null,"Winter"]
[null,null,null,null,null,"Operative Temperatur",10]
[null,null,null,null,null," Zugluft",10]
[null,null,null,null,null,"Stahlungstemperaturasymmetrie und Fußbodentemperatur",10]
[null,null,null,null,null,"Luftfeuchte",10]
[null,null,null,null,null,"Sommer"]
[null,null,null,null,null,"Operative Temperatur",30]
[null,null,null,null,null," Zugluft",10]
[null,null,null,null,null,"Stahlungstemperaturasymmetrie und Fußbodentemperatur",10]
[null,null,null,null,null,"Luftfeuchte",10]
[null,"BN ","UK","UN"," 3.1.3","Innenraumlufthygiene",100,{"$f":"IF(SUM(H60:H61)>100,100,SUM(H60:H61))","v":0},3,{"$f":"K59/$K$45*$J$45","v":2.9347826086956522E-2},{"$f":"G59*I59","v":300}]
[null,"BN ","UK","UN",null,"Flüchtige organische Stoffe (VOC) und Formaldehyd",50]
[null,"BN ","UK","UN",null,"Personenbezogene Lüftungsrate",50]
[null,"BN ","UK","UN"," 3.1.4","Akustischer Komfort",100,{"$f":"IF(SUM(H63:H71)>100,100,SUM(H63:H71))","v":0},1,{"$f":"K62/$K$45*$J$45","v":9.7826086956521747E-3},{"$f":"G62*I62","v":100}]
[null,null,null,null,null,"Räume Gruppe A"]
[null,null,null,null,null,"Musik ",100]
[null,null,null,null,null,"Sprache/ Vortrag",100]
[null,null,null,null,null,"Unterricht/ Kommunikation",100]
[null,null,null,null,null,"Sport",100]
[null,null,null,null,null,"Räume Gruppe B"]
[null,null,null,null,null,"Einzel- und Mehrpersonenbüros bis 100 m³",100]
[null,null,null,null,null,"Mehrpersonenbüros über 100 m³",100]
[null,null,null,null,null,"Weitere Räume",100]
[null,"BN ",null,null," 3.1.5","Visueller Komfort",100,{"$f":"IF(SUM(H73:H79)>100,100,SUM(H73:H79))","v":0},3,{"$f":"K72/$K$45*$J$45","v":2.9347826086956522E-2},{"$f":"G72*I72","v":300}]
[null,"BN ",null,null,null,"Tageslichtverfügbarkeit Gesamtgebäude",15]
[null,"BN ",null,null,null,"Tageslichtverfügbarkeit ständige Arbeitsplätze",15]
[null,"BN ",null,null,null,"Nachweis de Sichtverbindung außen",15]
[null,"BN ",null,null,null,"Blendfreiheit Tageslicht",15]
[null,"BN ",null,null,null,"Blendfreiheit  Kunstlicht",10]
[null,"BN ",null,null,null,"Lichtverteilung",15]
[null,"BN ",null,null,null,"Farbwiedergabe",15]
[null,"BN ",null,null," 3.1.6","Einflussnahmemöglichkeiten durch Nutzer",100,{"$f":"IF(SUM(H81:H88)>100,100,SUM(H81:H88))","v":0},2,{"$f":"K80/$K$45*$J$45","v":1.9565217391304349E-2},{"$f":"G80*I80","v":200}]
[null,"BN ",null,null,null,"Lüftung",10]
[null,"BN ",null,null,null,"Sonnenschutz",10]
[null,"BN ",null,null,null,"Blendschutz",10]
[null,"BN ",null,null,null,"Temperaturen während der Heizperiode",10]
[null,"BN ",null,null,null,"Temperaturen außerhalb der Heizperiode",15]
[null,"BN ",null,null,null,"Steuerung von Tageslicht",15]
[null,"BN ",null,null,null,"Steuerung von  Kunstlicht",15]
[null,"BN ",null,null,null,"Bedienfreundlichkeit",15]
[null,"BN ","UK","UN"," 3.1.7","Aufenthaltsqualitäten",100,{"$f":"IF(SUM(H90:H102)>100,100,SUM(H90:H102))","v":0},1,{"$f":"K89/$K$45*$J$45","v":9.7826086956521747E-3},{"$f":"G89*I89","v":100}]
[null,"BN ",null,null,null,"Anzahl der Aufenthaltsbereiche im Gebäude",10]
[null,"BN ",null,null,null,"Anzahl der Aufenthaltsbereiche im Außenraum",10]
[null,"BN ",null,null,null,"Anzahl der Sitzmöglichkeiten in diesen Bereichen",40]
[null,"BN ",null,null,null,"uneingeschränkte Nutzbarkeit der Erschließungsflächen als Aufenthaltsflächen",10]
[null,"BN ",null,null,null,"Sichtbeziehungen",10]
[null,"BN ",null,null,null,"Außenbezug",10]
[null,"BN ",null,null,null,"Ausstattungsqualität der Aufenthaltsbereiche im Außenraum"]
[null,"BN ",null,null,null,"Beleuchtung",2]
[null,"BN ",null,null,null,"Windschutz",2]
[null,"BN ",null,null,null,"Überdachung / Regenschutz",2]
[null,"BN ",null,null,null,"Sonnenschutz",2]
[null,"BN ",null,null,null,"Stromversorgung für Außenarbeitsplätze",1]
[null,"BN ",null,null,null,"Bepflanzung / Begrünung",1]
[null,"BN ",null,null," 3.1.8","Sicherheit",100,null,1,{"$f":"K103/$K$45*$J$45","v":9.7826086956521747E-3},{"$f":"G103*I103","v":100}]
[null,null,null,null,null,"Funktionalität"]
[null,"BN ",null,null," 3.2.1","Barrierefreiheit",100,null,2,{"$f":"K105/$K$45*$J$45","v":1.9565217391304349E-2},{"$f":"G105*I105","v":200}]
[null,"BN ",null,null," 3.2.4","Zugänglichkeit",{"$f":"IF(SUM(G107:G111)>100,100,SUM(G107:G111))","v":100},{"$f":"IF(SUM(H107:H111)>100,100,SUM(H107:H111))","v":0},2,{"$f":"K106/$K$45*$J$45","v":1.9565217391304349E-2},{"$f":"G106*I106","v":200}]
[null,null,null,null,null,"Grundsätzliche Zugänglichkeit des Gebäudes",25]
[null,null,null,null,null,"Öffnung der Außenanlagen für die Öffentlichkeit",25]
[null,null,null,null,null,"Öffnung gebäudeinterner Einrichtungen für die Öffentlichkeit",25]
[null,null,null,null,null,"Möglichkeit der Anmietung von Räumlichkeiten ",15]
[null,null,null,null,null,"Nutzungsvielfalt der öffentlich zugänglichen Bereiche",10]
[null,"BN ","UK","UN"," 3.2.5","Mobilitätsinfrastruktur",{"$f":"IF(SUM(G113:G115)>100,100,SUM(G113:G115))","v":100},{"$f":"IF(SUM(H113:H115)>100,100,SUM(H113:H115))","v":0},1,{"$f":"K112/$K$45*$J$45","v":9.7826086956521747E-3},{"$f":"G112*I112","v":100}]
[null,null,null,null,null,"Anzahl der Fahrradstellplätze",40]
[null,null,null,null,null,"Anzahl der Lademöglichkeiten und Carsharing-Stellplätze",20]
[null,null,null,null,null,"Qualitative Anforderungen an Fahrradstellplätze",60]
[null,null,null,null,null,"Sicherung der Gestaltungsqualität"]
["D",null,"UK",null," 3.3.1","Gestalterische und städtebauliche Qualität",{"$f":"IF(SUM(G118:G123)>100,100,SUM(G118:G123))","v":100},{"$f":"IF(AND(H118>0,H122<=H123),SUM(H118:H121),IF(AND(H118>0,H123<=H122),SUM(H118:H121),IF(H122>0,H122,IF(H123>0,H123,))))","v":0},3,{"$f":"K117/$K$45*$J$45","v":2.9347826086956522E-2},{"$f":"G117*I117","v":300}]
[null,null,"UK",null,null,"Erfassung und Fortentwicklung der gestalterischen und städtebaulichen Qualität des Bestandsgebäudes",40]
[null,null,"UK",null,null,"Wettbewerbsverfahren",35]
[null,null,"UK",null,null,"Ausführung des Entwurfs eines der Preisträger",20]
[null,null,"UK",null,null,"Beauftragung des Planungsteams",5]
[null,null,"UK",null,null,"Auszeichnung mit einem Architekturpreis",40]
[null,null,"UK",null,null,"Unabhängiges Expertengremium",30]
[null,null,"UK",null," 3.3.2","Kunst am Bau ",{"$f":"IF(SUM(G125:G128)>100,100,SUM(G125:G128))","v":100},{"$f":"IF(SUM(H125:H128)>100,100,SUM(H125:H128))","v":0},1,{"$f":"K124/$K$45*$J$45","v":9.7826086956521747E-3},{"$f":"G124*I124","v":100}]
[null,null,null,null,null,"Mindestanforderung",10]
[null,null,null,null,null,"Bereitstellung von Mitteln im Rahmen der Bauaufgabe",30]
[null,null,null,null,null,"Umsetzung des Leitfadens Kunst am Bau",40]
[null,null,null,null,null,"Öffentlichkeitsarbeit, Rezeption  der Kunst am Bau",20]
[]
[null,null,null,null,"Technische Qualität",null,null,null,null,0.22500000000000001,{"$f":"SUM(K133:K157)","v":1000}]
[]
[null,null,null,null,null,"technische Ausführung"]
[null,"BN ",null,null," 4.1.1","Schallschutz ",{"$f":"IF(SUM(G134:G137)>100,100,SUM(G134:G137))","v":100},{"$f":"IF(SUM(H134:H137)>100,100,SUM(H134:H137))","v":0},2,{"$f":"K133/$K$130*$J$130","v":4.5000000000000005E-2},{"$f":"G133*I133","v":200}]
[null,null,null,null,null,"Luftschallschutz gegen Außenlärm",20]
[null,null,null,null,null,"Luftschallschutz gegenüber fremden und eigenen Arbeitsbereichen",30]
[null,null,null,null,null,"Trittschallschutz gegenüber fremden und eigenen Arbeitsbereichen",30]
[null,null,null,null,null,"Schallschutz gegenüber haustechnischen Anlagen",20]
["D",null,"UK",null," 4.1.2","Wärme- und Tauwasserschutz ",{"$f":"IF(SUM(G139:G144)>100,100,SUM(G139:G144))","v":100},{"$f":"IF(SUM(H139:H140)>100,100,SUM(H139:H140))","v":0},2,{"$f":"K138/$K$130*$J$130","v":4.5000000000000005E-2},{"$f":"G138*I138","v":200}]
[null,null,null,null,null,"Mittlere Wärmeduchgangskoeffizienten",30]
[null,null,null,null,null,"Wärmebrückenzuschlag",15]
[null,null,null,null,null,"Klassen der Luftdurchlässigkeit (Fugendurchlässigkeit)",15]
[null,null,null,null,null,"Tauwasserbildung",10]
[null,null,null,null,null,"Luftwechsel",15]
[null,null,null,null,null,"Sonneneintragswert",15]
[null,"BN ",null,null," 4.1.3","Reinigungs- und Instandhaltungsfreundlichkeit",{"$f":"IF(SUM(G146:G154)>100,100,SUM(G146:G154))","v":100},{"$f":"IF(SUM(H146:H154)>100,100,SUM(H146:H154))","v":0},2,{"$f":"K145/$K$130*$J$130","v":4.5000000000000005E-2},{"$f":"G145*I145","v":200}]
[null,null,null,null,null,"Tragkonstruktion",15]
[null,null,null,null,null,"Zugänglichkeit der Außenglasflächen",15]
[null,null,null,null,null,"Außenbauteile",9]
[null,null,null,null,null,"Bodenbelag",9]
[null,null,null,null,null,"Schmutzfangzone",9]
[null,null,null,null,null,"Fußbodenleisten",9]
[null,null,null,null,null,"Hindernisfreie Grundrissgestaltung",9]
[null,null,null,null,null,"Einbauten",10]
[null,null,null,null,null,"Zugänglichkeit der Innenglasflächen ",15]
[null,"BN ","UK","UN"," 4.1.4","Rückbau, Trennung und Verwertung",100,null,2,{"$f":"K155/$K$130*$J$130","v":4.5000000000000005E-2},{"$f":"G155*I155","v":200}]
[null,"BN ","UK","UN"," 4.1.5","Widerstandsfähigkeit gegen Naturgefahren",100,null,1,{"$f":"K156/$K$130*$J$130","v":2.2500000000000003E-2},{"$f":"G156*I156","v":100}]
[null,"BN ","UK","UN"," 4.1.6","Bedienungs- und Instandhaltungsfreundlichkeit der TGA",100,null,1,{"$f":"K157/$K$130*$J$130","v":2.2500000000000003E-2},{"$f":"G157*I157","v":100}]
[]
[null,null,null,null,"Prozessqualität",null,null,null,null,0.1,{"$f":"SUM(K162:K217)","v":2500}]
[]
[null,null,null,null,null,"Planung"]
[null,"BN ",null,null," 5.1.1","Projektvorbereitung",{"$f":"IF(SUM(G163:G165)>100,100,SUM(G163:G165))","v":100},{"$f":"IF(SUM(H163:H165)>100,100,SUM(H163:H165))","v":0},3,{"$f":"K162/$K$159*$J$159","v":1.2E-2},{"$f":"G162*I162","v":300}]
[null,"BN ",null,null,null,"Bedarfsplanung oder vergleichbare Planung",35]
[null,"BN ",null,null,null,"Zielvereinbarung",35]
[null,"BN ",null,null,null,"Architektenwettbewerb",30]
[null,"BN ",null,null," 5.1.2","Integrale Planung",{"$f":"IF(SUM(G167:G171)>100,100,SUM(G167:G171))","v":100},{"$f":"IF(SUM(H167:H171)>100,100,SUM(H167:H171))","v":0},3,{"$f":"K166/$K$159*$J$159","v":1.2E-2},{"$f":"G166*I166","v":300}]
[null,null,null,null,null,"Integrales Planungsteam",30]
[null,null,null,null,null,"Qualifikation des Planungsteams",20]
[null,null,null,null,null,"Integraler Planungsprozess",20]
[null,null,null,null,null,"Nutzerbeteiligung",20]
[null,null,null,null,null,"Öffentlichkeitsbeteiligung",10]
[null,"BN ","UK","UN"," 5.1.3","Komplexität und Optimierung der Planung",{"$f":"IF(SUM(G173:G187)>100,100,SUM(G173:G187))","v":100},{"$f":"IF(SUM(H173:H187)>100,100,SUM(H173:H187))","v":0},3,{"$f":"K172/$K$159*$J$159","v":1.2E-2},{"$f":"G172*I172","v":300}]
[null,"BN ","UK","UN",null,"SiGe-Plan",10]
[null,"BN ","UK","UN",null,"Ver- und Entsiegelungskonzept",10]
[null,"BN ","UK","UN",null,"Energiekonzept",15]
[null,"BN ","UK","UN",null,"Mess- und Monitoringkonzept",15]
[null,"BN ","UK","UN",null,"Wasserkonzept",10]
[null,"BN ","UK","UN",null,"Konzept zur Vermeidung von Umwelt- und Gesundheitsrisiken aus Bauprodukten",10]
[null,"BN ","UK","UN",null,"Lüftungskonzept",10]
[null,"BN ","UK","UN",null,"Abfallkonzept / Wertstoffkonzept",5]
[null,"BN ","UK","UN",null,"Tages- / Kunstlichtoptimierung",10]
[null,"BN ","UK","UN",null,"Konzept zur Sicherung der Reinigungs- und Instandhaltungsfreundlichkeit",10]
[null,"BN ","UK","UN",null,"Anpassbarkeits-, Rückbau- und Recyclingkonzept",10]
[null,"BN ","UK","UN",null,"Konzept zur Vermeidung und Beherrschung von Risiken",10]
[null,"BN ","UK","UN",null,"Sonstige Konzepte zum Nachhaltigen Bauen",10]
[null,"BN ","UK","UN",null,"Prüfung der Planungsunterlagen durch unabhängige Dritte",5]
[null,"BN ","UK","UN",null,"Durchführung von Variantenvergleichen",10]
[null,"BN ","UK","UN"," 5.1.4","Ausschreibung und Vergabe",100,null,2,{"$f":"K188/$K$159*$J$159","v":8.0000000000000002E-3},{"$f":"G188*I188","v":200}]
[null,"BN ","UK","UN"," 5.1.5","Voraussetzungen für eine optimale Bewirtschaftung",{"$f":"IF(SUM(G190:G193)>100,100,SUM(G190:G193))","v":100},{"$f":"IF(SUM(H190:H193)>100,100,SUM(H190:H193))","v":0},2,{"$f":"K189/$K$159*$J$159","v":8.0000000000000002E-3},{"$f":"G189*I189","v":200}]
[null,null,null,null,null,"Erstellung einer Gebäudeakte / Objektdokumentation",25]
[null,null,null,null,null,"Erstellung von Wartungs-, Inspektions-, Betriebs-, und Pflegeanleitungen",25]
[null,null,null,null,null,"Anpassung der Pläne und Berechnungen an das realisierte Gebäude",25]
[null,null,null,null,null,"Erstellung eines Nutzerhandbuches",25]
[null,null,"UK",null," 5.1.6","Bestandsanalyse",100,{"$f":"IF(SUM(H195:H203)>100,100,SUM(H195:H203))","v":0},3,{"$f":"K194/$K$159*$J$159","v":1.2E-2},{"$f":"G194*I194","v":300}]
[null,null,"UK",null,null,"Bestandsaufnahme Geometrie",10]
[null,null,"UK",null,null,"Bestandsaufnahme Baukonstruktion und Baustoffe",20]
[null,null,"UK",null,null,"Bestandsaufnahme Haustechnik",10]
[null,null,"UK",null,null,"Bestandsaufnahme Bau- und Nutzungsgeschichte",5]
[null,null,"UK",null,null,"Bestandsaufnahme Exposition",5]
[null,null,"UK",null,null,"Baudiagnose Tragwerk",15]
[null,null,"UK",null,null,"Baudiagnose Energetische Qualität",15]
[null,null,"UK",null,null,"Baudiagnose Schadstoffe",10]
[null,null,"UK",null,null,"Baudiagnose Feuchte- und Salzbelastung",10]
[null,null,"UK",null," 5.1.7","Rückbaumaßnahmen",100,{"$f":"IF(SUM(H205:H207)>100,100,SUM(H205:H207))","v":0},1,{"$f":"K204/$K$159*$J$159","v":4.0000000000000001E-3},{"$f":"G204*I204","v":100}]
[null,null,null,null,null,"Planung des Rückbaus",50]
[null,null,null,null,null,"Selektiver Rückbau",25]
[null,null,null,null,null,"Prüfen auf Abfalltrennung und Entsorgung",25]
[null,null,null,null,null,"Bauausführung"]
[null,"BN ","UK","UN"," 5.2.1","Baustelle / Bauprozess",{"$f":"IF(SUM(G210:G213)>100,100,SUM(G210:G213))","v":100},{"$f":"IF(SUM(H210:H213)>100,100,SUM(H210:H213))","v":0},2,{"$f":"K209/$K$159*$J$159","v":8.0000000000000002E-3},{"$f":"G209*I209","v":200}]
[null,"BN ","UK","UN",null,"Wertstoffoptimierte Baustelle",25]
[null,"BN ","UK","UN",null,"Lärmarme Baustelle",25]
[null,"BN ","UK","UN",null,"Staubarme Baustelle",25]
[null,"BN ","UK","UN",null,"Bodenschutz auf der Baustelle",25]
[null,"BN ","UK","UN"," 5.2.2","Qualitätssicherung der Bauausführung",{"$f":"IF(SUM(G215:G217)>100,100,SUM(G215:G217))","v":100},{"$f":"IF(SUM(H215:H216)>100,100,SUM(H215:H216))","v":0},3,{"$f":"K214/$K$159*$J$159","v":1.2E-2},{"$f":"G214*I214","v":300}]
[null,"BN ","UK","UN",null,"Dokumentation",50]
[null,"BN ","UK","UN",null,"Messungen zur Qualitätskontrolle",50]
[null,"BN ","UK","UN"," 5.2.3","Systematische Inbetriebnahme",100,null,3,{"$f":"K217/$K$159*$J$159","v":1.2E-2},{"$f":"G217*I217","v":300}]
[]
[]
[null,null,null,null,"Standortmerkmale",null,null,null,null,1,{"$f":"SUM(K223:K255)","v":1300}]
[]
[null,null,null,null,null,"Standortmerkmale"]
[null,"BN ","UK","UN"," 6.1.1","Risiken am Mikrostandort",100,{"$f":"IF(SUM(H224:H228)>100,100,SUM(H224:H228))","v":0},2,{"$f":"K223/$K$220*$J$220","v":0.15384615384615385},{"$f":"G223*I223","v":200}]
[null,"BN ","UK","UN",null,"Risiken aus Man-Made-Hazards (Unfälle)",20]
[null,"BN ","UK","UN",null,"Risiken aus Erdbeben",20]
[null,"BN ","UK","UN",null,"Risiken aus Lawinen",20]
[null,"BN ","UK","UN",null,"Risiken aus Sturm",20]
[null,"BN ","UK","UN",null,"Risiken aus Hochwasser",20]
[null,"BN ","UK","UN"," 6.1.2","Verhältnisse am Mikrostandort",100,{"$f":"IF(SUM(H230:H235)>100,100,SUM(H230:H235))","v":0},2,0.15384615384615385,200]
[null,"BN ","UK","UN",null,"Außenluftqualität",16]
[null,"BN ","UK","UN",null,"Außenlärmpegel",20]
[null,"BN ","UK","UN",null,"Baugrundverhältnisse, Bodenbelastungen",16]
[null,"BN ","UK","UN",null,"Elektromagnetische Felder",16]
[null,"BN ","UK","UN",null,"Vorkommen von Radon",16]
[null,"BN ","UK","UN",null,"Stadt- und Landschaftsbild / Sichtbeziehungen",16]
[null,"BN ","UK","UN"," 6.1.3","Quartiersmerkmale",100,{"$f":"IF(SUM(H237:H240)>100,100,SUM(H237:H240))","v":0},2,0.15384615384615385,200]
[null,"BN ","UK","UN",null,"Image, Attraktivität",25]
[null,"BN ","UK","UN",null,"Synergie- und Konfliktpotenziale",25]
[null,"BN ","UK","UN",null,"Kriminalität",25]
[null,"BN ","UK","UN",null,"Pflege und Erhaltungszustand",25]
[null,"BN ",null,null," 6.1.4","Verkehrsanbindung",100,{"$f":"IF(SUM(H242:H244)>100,100,SUM(H242:H244))","v":0},3,0.23076923076923078,300]
[null,"BN ","UK","UN",null,"Erreichbarkeit Haupt-/ Fernbahnhof",30]
[null,"BN ","UK","UN",null,"Erreichbarkeit ÖPNV",30]
[null,"BN ","UK","UN",null,"Fuß- und Radwege",40]
[null,"BN ","UK","UN"," 6.1.5","Nähe zu nutzungsrelevanten Einrichtungen",100,{"$f":"IF(SUM(H246:H254)>100,100,SUM(H246:H254))","v":0},2,0.15384615384615385,200]
[null,"BN ","UK","UN",null,"Gastronomie",10]
[null,"BN ","UK","UN",null,"Nahversorgung",10]
[null,"BN ","UK","UN",null,"Parkanlagen und Freiräume",20]
[null,"BN ","UK","UN",null,"Bildung",10]
[null,"BN ","UK","UN",null,"Öffentliche Verwaltung",10]
[null,"BN ","UK","UN",null,"Medizinische Versorgung",10]
[null,"BN ","UK","UN",null,"Sportstätten",10]
[null,"BN ","UK","UN",null,"Freizeit",10]
[null,"BN ","UK","UN",null,"Dienstleister",10]
[null,"BN ","UK","UN"," 6.1.6","Anliegende Medien / Erschließung",100,{"$f":"IF(SUM(H256:H259)>100,100,SUM(H256:H259))","v":0},2,0.15384615384615385,200]
[null,null,null,null,null,"Leitungsgebundene Energie",25]
[null,null,null,null,null,"Solarenergie",25]
[null,null,null,null,null,"Breitband-Anschluss",25]
[null,null,null,null,null,"Regenwasserversickerung",25]
[null,"* Diese Kriteriensteckbriefe sind inhaltich identisch mit den angegebenen Systemvarianten in folgenden Versionen: BN 2015, UK 2017 und UN 2017"]

{"sheet":"Gültigkeitsliste","index":5,"n_rows":3,"n_cols":1,"rows_kept":3,"cut":false,"hidden":true,"merged":[]}
["Erfüllt / nicht erfüllt"]
["o"]
["x"]

{"sheet":"hilfstabelle","index":6,"n_rows":263,"n_cols":4,"rows_kept":263,"cut":false,"hidden":true,"merged":[[3,0,3,1],[3,3,4,3]]}
[]
[]
[]
["Eingereichte \nEndbewertung",null,"Bemerkung Konformitätsprüfung \n\nPrüfung vom:","Bearbeiter"]
["Anwender","Konformitätsprüfung",{"$f":"TODAY()","v":"2017-11-23"}]
[]
[{"$f":"Konformitätsprüfung!$G7","v":0},{"$f":"B10+B35+B49+B134+B163","v":0}]
[]
[]
[{"$f":"Konformitätsprüfung!$G10","v":0},{"$f":"B13*($E$13/100)+B14*($E$14/100)+B15*($E$15/100)+B16*($E$16/100)+B17*($E$17/100)+B18*($E$18/100)+B24*($E$24/100)+B26*($E$26/100)+B30*($E$30/100)+B31*($E$31/100)","v":0}]
[]
[]
[{"$f":"Konformitätsprüfung!$G13","v":0},{"$f":"Konformitätsprüfung!$H13","v":0}]
[{"$f":"Konformitätsprüfung!$G14","v":0},{"$f":"Konformitätsprüfung!$H14","v":0}]
[{"$f":"Konformitätsprüfung!$G15","v":0},{"$f":"Konformitätsprüfung!$H15","v":0}]
[{"$f":"Konformitätsprüfung!$G16","v":0},{"$f":"Konformitätsprüfung!$H16","v":0}]
[{"$f":"Konformitätsprüfung!$G17","v":0},{"$f":"Konformitätsprüfung!$H17","v":0}]
[{"$f":"Konformitätsprüfung!$G18","v":0},{"$f":"SUM(B19:B23)","v":0}]
[{"$f":"Konformitätsprüfung!$G19","v":0},{"$f":"Konformitätsprüfung!$H19","v":0}]
[{"$f":"Konformitätsprüfung!$G20","v":0},{"$f":"Konformitätsprüfung!$H20","v":0}]
[{"$f":"Konformitätsprüfung!$G21","v":0},{"$f":"Konformitätsprüfung!$H21","v":0}]
[{"$f":"Konformitätsprüfung!$G22","v":0},{"$f":"Konformitätsprüfung!$H22","v":0}]
[{"$f":"Konformitätsprüfung!$G23","v":0},{"$f":"Konformitätsprüfung!$H23","v":0}]
[{"$f":"Konformitätsprüfung!$G24","v":0},{"$f":"Konformitätsprüfung!$H24","v":0}]
[]
[{"$f":"Konformitätsprüfung!$G26","v":0},{"$f":"SUM(B27:B29)","v":0}]
[{"$f":"Konformitätsprüfung!$G27","v":0},{"$f":"Konformitätsprüfung!$H27","v":0}]
[{"$f":"Konformitätsprüfung!$G29","v":0},{"$f":"Konformitätsprüfung!$H29","v":0}]
[{"$f":"Konformitätsprüfung!$G30","v":0},{"$f":"Konformitätsprüfung!$H30","v":0}]
[{"$f":"Konformitätsprüfung!$G30","v":0},{"$f":"Konformitätsprüfung!$H30","v":0}]
[{"$f":"Konformitätsprüfung!$G31","v":0},{"$f":"SUM(B32:B33)","v":0}]
[{"$f":"Konformitätsprüfung!$G32","v":0},{"$f":"Konformitätsprüfung!$H32","v":0}]
[{"$f":"Konformitätsprüfung!$G33","v":0},{"$f":"Konformitätsprüfung!$H33","v":0}]
[]
[{"$f":"Konformitätsprüfung!$G35","v":0},{"$f":"B38*($E$38/100)+B40*($E$40/100)+B41*($E$41/100)","v":0}]
[]
[]
[{"$f":"Konformitätsprüfung!$G38","v":0},{"$f":"Konformitätsprüfung!$H38","v":0}]
[]
[{"$f":"Konformitätsprüfung!$G40","v":0},{"$f":"Konformitätsprüfung!$H40","v":0}]
[{"$f":"Konformitätsprüfung!$G41","v":0},{"$f":"SUM(B42:B47)","v":0}]
[{"$f":"Konformitätsprüfung!$G42","v":0},{"$f":"Konformitätsprüfung!$H42","v":0}]
[{"$f":"Konformitätsprüfung!$G43","v":0},{"$f":"Konformitätsprüfung!$H43","v":0}]
[{"$f":"Konformitätsprüfung!$G44","v":0},{"$f":"Konformitätsprüfung!$H44","v":0}]
[{"$f":"Konformitätsprüfung!$G45","v":0},{"$f":"Konformitätsprüfung!$H45","v":0}]
[{"$f":"Konformitätsprüfung!$G46","v":0},{"$f":"Konformitätsprüfung!$H46","v":0}]
[{"$f":"Konformitätsprüfung!$G47","v":0},{"$f":"Konformitätsprüfung!$H47","v":0}]
[]
[{"$f":"Konformitätsprüfung!$G49","v":0},{"$f":"B52*($E$52/100)+B63*($E$63/100)+B66*($E$66/100)+B76*($E$76/100)+B84*($E$84/100)+B93*($E$93/100)+B107*($E$107/100)+B109*($E$109/100)+B110*($E$110/100)+B116*($E$116/100)+B121*($E$121/100)+B128*($E$128/100)","v":0}]
[]
[]
[{"$f":"Konformitätsprüfung!$G52","v":0},{"$f":"SUM(B53:B62)","v":0}]
[{"$f":"Konformitätsprüfung!$G53","v":0},{"$f":"Konformitätsprüfung!$H53","v":0}]
[{"$f":"Konformitätsprüfung!$G54","v":0},{"$f":"Konformitätsprüfung!$H54","v":0}]
[{"$f":"Konformitätsprüfung!$G55","v":0},{"$f":"Konformitätsprüfung!$H55","v":0}]
[{"$f":"Konformitätsprüfung!$G56","v":0},{"$f":"Konformitätsprüfung!$H56","v":0}]
[{"$f":"Konformitätsprüfung!$G57","v":0},{"$f":"Konformitätsprüfung!$H57","v":0}]
[{"$f":"Konformitätsprüfung!$G58","v":0},{"$f":"Konformitätsprüfung!$H58","v":0}]
[{"$f":"Konformitätsprüfung!$G59","v":0},{"$f":"Konformitätsprüfung!$H59","v":0}]
[{"$f":"Konformitätsprüfung!$G60","v":0},{"$f":"Konformitätsprüfung!$H60","v":0}]
[{"$f":"Konformitätsprüfung!$G61","v":0},{"$f":"Konformitätsprüfung!$H61","v":0}]
[{"$f":"Konformitätsprüfung!$G62","v":0},{"$f":"Konformitätsprüfung!$H62","v":0}]
[{"$f":"Konformitätsprüfung!$G63","v":0},{"$f":"IF(SUM(B64:B65)>100,100,SUM(B64:B65))","v":0}]
[{"$f":"Konformitätsprüfung!$G64","v":0},{"$f":"Konformitätsprüfung!$H64","v":0}]
[{"$f":"Konformitätsprüfung!$G65","v":0},{"$f":"Konformitätsprüfung!$H65","v":0}]
[{"$f":"Konformitätsprüfung!$G66","v":0},{"$f":"SUM(B68:B75)","v":0}]
[]
[{"$f":"Konformitätsprüfung!$G68","v":0},{"$f":"Konformitätsprüfung!$H68","v":0}]
[{"$f":"Konformitätsprüfung!$G69","v":0},{"$f":"Konformitätsprüfung!$H69","v":0}]
[{"$f":"Konformitätsprüfung!$G70","v":0},{"$f":"Konformitätsprüfung!$H70","v":0}]
[{"$f":"Konformitätsprüfung!$G71","v":0},{"$f":"Konformitätsprüfung!$H71","v":0}]
[]
[{"$f":"Konformitätsprüfung!$G73","v":0},{"$f":"Konformitätsprüfung!$H73","v":0}]
[{"$f":"Konformitätsprüfung!$G74","v":0},{"$f":"Konformitätsprüfung!$H74","v":0}]
[{"$f":"Konformitätsprüfung!$G75","v":0},{"$f":"Konformitätsprüfung!$H75","v":0}]
[{"$f":"Konformitätsprüfung!$G76","v":0},{"$f":"SUM(B77:B83)","v":0}]
[{"$f":"Konformitätsprüfung!$G77","v":0},{"$f":"Konformitätsprüfung!$H77","v":0}]
[{"$f":"Konformitätsprüfung!$G78","v":0},{"$f":"Konformitätsprüfung!$H78","v":0}]
[{"$f":"Konformitätsprüfung!$G79","v":0},{"$f":"Konformitätsprüfung!$H79","v":0}]
[{"$f":"Konformitätsprüfung!$G80","v":0},{"$f":"Konformitätsprüfung!$H80","v":0}]
[{"$f":"Konformitätsprüfung!$G81","v":0},{"$f":"Konformitätsprüfung!$H81","v":0}]
[{"$f":"Konformitätsprüfung!$G82","v":0},{"$f":"Konformitätsprüfung!$H82","v":0}]
[{"$f":"Konformitätsprüfung!$G83","v":0},{"$f":"Konformitätsprüfung!$H83","v":0}]
[{"$f":"Konformitätsprüfung!$G84","v":0},{"$f":"SUM(B85:B92)","v":0}]
[{"$f":"Konformitätsprüfung!$G85","v":0},{"$f":"Konformitätsprüfung!$H85","v":0}]
[{"$f":"Konformitätsprüfung!$G86","v":0},{"$f":"Konformitätsprüfung!$H86","v":0}]
[{"$f":"Konformitätsprüfung!$G87","v":0},{"$f":"Konformitätsprüfung!$H87","v":0}]
[{"$f":"Konformitätsprüfung!$G88","v":0},{"$f":"Konformitätsprüfung!$H88","v":0}]
[{"$f":"Konformitätsprüfung!$G89","v":0},{"$f":"Konformitätsprüfung!$H89","v":0}]
[{"$f":"Konformitätsprüfung!$G90","v":0},{"$f":"Konformitätsprüfung!$H90","v":0}]
[{"$f":"Konformitätsprüfung!$G91","v":0},{"$f":"Konformitätsprüfung!$H91","v":0}]
[{"$f":"Konformitätsprüfung!$G92","v":0},{"$f":"Konformitätsprüfung!$H92","v":0}]
[{"$f":"Konformitätsprüfung!$G93","v":0},{"$f":"SUM(B94:B106)","v":0}]
[{"$f":"Konformitätsprüfung!$G94","v":0},{"$f":"Konformitätsprüfung!$H94","v":0}]
[{"$f":"Konformitätsprüfung!$G95","v":0},{"$f":"Konformitätsprüfung!$H95","v":0}]
[{"$f":"Konformitätsprüfung!$G96","v":0},{"$f":"Konformitätsprüfung!$H96","v":0}]
[{"$f":"Konformitätsprüfung!$G97","v":0},{"$f":"Konformitätsprüfung!$H97","v":0}]
[{"$f":"Konformitätsprüfung!$G98","v":0},{"$f":"Konformitätsprüfung!$H98","v":0}]
[{"$f":"Konformitätsprüfung!$G99","v":0},{"$f":"Konformitätsprüfung!$H99","v":0}]
[{"$f":"Konformitätsprüfung!$G100","v":0},{"$f":"Konformitätsprüfung!$H100","v":0}]
[{"$f":"Konformitätsprüfung!$G101","v":0},{"$f":"Konformitätsprüfung!$H101","v":0}]
[{"$f":"Konformitätsprüfung!$G102","v":0},{"$f":"Konformitätsprüfung!$H102","v":0}]
[{"$f":"Konformitätsprüfung!$G103","v":0},{"$f":"Konformitätsprüfung!$H103","v":0}]
[{"$f":"Konformitätsprüfung!$G104","v":0},{"$f":"Konformitätsprüfung!$H104","v":0}]
[{"$f":"Konformitätsprüfung!$G105","v":0},{"$f":"Konformitätsprüfung!$H105","v":0}]
[{"$f":"Konformitätsprüfung!$G106","v":0},{"$f":"Konformitätsprüfung!$H106","v":0}]
[{"$f":"Konformitätsprüfung!$G107","v":0},{"$f":"Konformitätsprüfung!$H105","v":0}]
[]
[{"$f":"Konformitätsprüfung!$G109","v":0},{"$f":"Konformitätsprüfung!$H107","v":0}]
[{"$f":"Konformitätsprüfung!$G110","v":0},{"$f":"SUM(B111:B115)","v":0}]
[{"$f":"Konformitätsprüfung!$G111","v":0},{"$f":"Konformitätsprüfung!$H111","v":0}]
[{"$f":"Konformitätsprüfung!$G112","v":0},{"$f":"Konformitätsprüfung!$H112","v":0}]
[{"$f":"Konformitätsprüfung!$G113","v":0},{"$f":"Konformitätsprüfung!$H113","v":0}]
[{"$f":"Konformitätsprüfung!$G114","v":0},{"$f":"Konformitätsprüfung!$H114","v":0}]
[{"$f":"Konformitätsprüfung!$G115","v":0},{"$f":"Konformitätsprüfung!$H115","v":0}]
[{"$f":"Konformitätsprüfung!$G116","v":0},{"$f":"SUM(B117:B119)","v":0}]
[{"$f":"Konformitätsprüfung!$G117","v":0},{"$f":"Konformitätsprüfung!$H117","v":0}]
[{"$f":"Konformitätsprüfung!$G118","v":0},{"$f":"Konformitätsprüfung!$H118","v":0}]
[{"$f":"Konformitätsprüfung!$G119","v":0},{"$f":"Konformitätsprüfung!$H119","v":0}]
[]
[{"$f":"Konformitätsprüfung!$G121","v":0},{"$f":"IF(AND(B122>0,B126<=B127),SUM(B122:B125),IF(AND(B122>0,B127<=B126),SUM(B122:B125),IF(B126>0,B126,IF(B127>0,B127,))))","v":0}]
[{"$f":"Konformitätsprüfung!$G122","v":0},{"$f":"Konformitätsprüfung!$H122","v":0}]
[{"$f":"Konformitätsprüfung!$G123","v":0},{"$f":"Konformitätsprüfung!$H123","v":0}]
[{"$f":"Konformitätsprüfung!$G124","v":0},{"$f":"Konformitätsprüfung!$H124","v":0}]
[{"$f":"Konformitätsprüfung!$G125","v":0},{"$f":"Konformitätsprüfung!$H125","v":0}]
[{"$f":"Konformitätsprüfung!$G126","v":0},{"$f":"Konformitätsprüfung!$H126","v":0}]
[{"$f":"Konformitätsprüfung!$G127","v":0},{"$f":"Konformitätsprüfung!$H127","v":0}]
[{"$f":"Konformitätsprüfung!$G128","v":0},{"$f":"SUM(B129:B132)","v":0}]
[{"$f":"Konformitätsprüfung!$G129","v":0},{"$f":"Konformitätsprüfung!$H129","v":0}]
[{"$f":"Konformitätsprüfung!$G130","v":0},{"$f":"Konformitätsprüfung!$H130","v":0}]
[{"$f":"Konformitätsprüfung!$G131","v":0},{"$f":"Konformitätsprüfung!$H131","v":0}]
[{"$f":"Konformitätsprüfung!$G132","v":0},{"$f":"Konformitätsprüfung!$H132","v":0}]
[]
[{"$f":"Konformitätsprüfung!$G134","v":0},{"$f":"B137*($E$137/100)+B142*($E$142/100)+B149*($E$149/100)+B159*($E$159/100)+B160*($E$160/100)+B161*($E$161/100)","v":0}]
[]
[]
[{"$f":"Konformitätsprüfung!$G137","v":0},{"$f":"SUM(B138:B141)","v":0}]
[{"$f":"Konformitätsprüfung!$G138","v":0},{"$f":"Konformitätsprüfung!$H138","v":0}]
[{"$f":"Konformitätsprüfung!$G139","v":0},{"$f":"Konformitätsprüfung!$H139","v":0}]
[{"$f":"Konformitätsprüfung!$G140","v":0},{"$f":"Konformitätsprüfung!$H140","v":0}]
[{"$f":"Konformitätsprüfung!$G141","v":0},{"$f":"Konformitätsprüfung!$H141","v":0}]
[{"$f":"Konformitätsprüfung!$G142","v":0},{"$f":"SUM(B143:B148)","v":0}]
[{"$f":"Konformitätsprüfung!$G143","v":0},{"$f":"Konformitätsprüfung!$H143","v":0}]
[{"$f":"Konformitätsprüfung!$G144","v":0},{"$f":"Konformitätsprüfung!$H144","v":0}]
[{"$f":"Konformitätsprüfung!$G145","v":0},{"$f":"Konformitätsprüfung!$H145","v":0}]
[{"$f":"Konformitätsprüfung!$G146","v":0},{"$f":"Konformitätsprüfung!$H146","v":0}]
[{"$f":"Konformitätsprüfung!$G147","v":0},{"$f":"Konformitätsprüfung!$H147","v":0}]
[{"$f":"Konformitätsprüfung!$G148","v":0},{"$f":"Konformitätsprüfung!$H148","v":0}]
[{"$f":"Konformitätsprüfung!$G149","v":0},{"$f":"SUM(B150:B158)","v":0}]
[{"$f":"Konformitätsprüfung!$G150","v":0},{"$f":"Konformitätsprüfung!$H150","v":0}]
[{"$f":"Konformitätsprüfung!$G151","v":0},{"$f":"Konformitätsprüfung!$H151","v":0}]
[{"$f":"Konformitätsprüfung!$G152","v":0},{"$f":"Konformitätsprüfung!$H152","v":0}]
[{"$f":"Konformitätsprüfung!$G153","v":0},{"$f":"Konformitätsprüfung!$H153","v":0}]
[{"$f":"Konformitätsprüfung!$G154","v":0},{"$f":"Konformitätsprüfung!$H154","v":0}]
[{"$f":"Konformitätsprüfung!$G155","v":0},{"$f":"Konformitätsprüfung!$H155","v":0}]
[{"$f":"Konformitätsprüfung!$G156","v":0},{"$f":"Konformitätsprüfung!$H156","v":0}]
[{"$f":"Konformitätsprüfung!$G157","v":0},{"$f":"Konformitätsprüfung!$H157","v":0}]
[{"$f":"Konformitätsprüfung!$G158","v":0},{"$f":"Konformitätsprüfung!$H158","v":0}]
[{"$f":"Konformitätsprüfung!$G159","v":0},{"$f":"Konformitätsprüfung!$H159","v":0}]
[{"$f":"Konformitätsprüfung!$G160","v":0},{"$f":"Konformitätsprüfung!$H160","v":0}]
[{"$f":"Konformitätsprüfung!$G161","v":0},{"$f":"Konformitätsprüfung!$H161","v":0}]
[]
[{"$f":"Konformitätsprüfung!$G163","v":0},{"$f":"B166*($E$166/100)+B170*($E$170/100)+B176*($E$176/100)+B192*($E$192/100)+B193*($E$193/100)+B198*($E$198/100)+B208*($E$208/100)+B213*($E$213/100)+B218*($E$218/100)+B221*($E$221/100)","v":0}]
[]
[]
[{"$f":"Konformitätsprüfung!$G166","v":0},{"$f":"SUM(B167:B169)","v":0}]
[{"$f":"Konformitätsprüfung!$G167","v":0},{"$f":"Konformitätsprüfung!$H167","v":0}]
[{"$f":"Konformitätsprüfung!$G168","v":0},{"$f":"Konformitätsprüfung!$H168","v":0}]
[{"$f":"Konformitätsprüfung!$G169","v":0},{"$f":"Konformitätsprüfung!$H169","v":0}]
[{"$f":"Konformitätsprüfung!$G170","v":0},{"$f":"SUM(B171:B175)","v":0}]
[{"$f":"Konformitätsprüfung!$G171","v":0},{"$f":"Konformitätsprüfung!$H171","v":0}]
[{"$f":"Konformitätsprüfung!$G172","v":0},{"$f":"Konformitätsprüfung!$H172","v":0}]
[{"$f":"Konformitätsprüfung!$G173","v":0},{"$f":"Konformitätsprüfung!$H173","v":0}]
[{"$f":"Konformitätsprüfung!$G174","v":0},{"$f":"Konformitätsprüfung!$H174","v":0}]
[{"$f":"Konformitätsprüfung!$G175","v":0},{"$f":"Konformitätsprüfung!$H175","v":0}]
[{"$f":"Konformitätsprüfung!$G176","v":0},{"$f":"SUM(B177:B191)","v":0}]
[{"$f":"Konformitätsprüfung!$G177","v":0},{"$f":"Konformitätsprüfung!$H177","v":0}]
[{"$f":"Konformitätsprüfung!$G178","v":0},{"$f":"Konformitätsprüfung!$H178","v":0}]
[{"$f":"Konformitätsprüfung!$G179","v":0},{"$f":"Konformitätsprüfung!$H179","v":0}]
[{"$f":"Konformitätsprüfung!$G180","v":0},{"$f":"Konformitätsprüfung!$H180","v":0}]
[{"$f":"Konformitätsprüfung!$G181","v":0},{"$f":"Konformitätsprüfung!$H181","v":0}]
[{"$f":"Konformitätsprüfung!$G182","v":0},{"$f":"Konformitätsprüfung!$H182","v":0}]
[{"$f":"Konformitätsprüfung!$G183","v":0},{"$f":"Konformitätsprüfung!$H183","v":0}]
[{"$f":"Konformitätsprüfung!$G184","v":0},{"$f":"Konformitätsprüfung!$H184","v":0}]
[{"$f":"Konformitätsprüfung!$G185","v":0},{"$f":"Konformitätsprüfung!$H185","v":0}]
[{"$f":"Konformitätsprüfung!$G186","v":0},{"$f":"Konformitätsprüfung!$H186","v":0}]
[{"$f":"Konformitätsprüfung!$G187","v":0},{"$f":"Konformitätsprüfung!$H187","v":0}]
[{"$f":"Konformitätsprüfung!$G188","v":0},{"$f":"Konformitätsprüfung!$H188","v":0}]
[{"$f":"Konformitätsprüfung!$G189","v":0},{"$f":"Konformitätsprüfung!$H189","v":0}]
[{"$f":"Konformitätsprüfung!$G190","v":0},{"$f":"Konformitätsprüfung!$H190","v":0}]
[{"$f":"Konformitätsprüfung!$G191","v":0},{"$f":"Konformitätsprüfung!$H191","v":0}]
[{"$f":"Konformitätsprüfung!$G192","v":0},{"$f":"Konformitätsprüfung!$H192","v":0}]
[{"$f":"Konformitätsprüfung!$G193","v":0},{"$f":"SUM(B194:B197)","v":0}]
[{"$f":"Konformitätsprüfung!$G194","v":0},{"$f":"Konformitätsprüfung!$H194","v":0}]
[{"$f":"Konformitätsprüfung!$G195","v":0},{"$f":"Konformitätsprüfung!$H195","v":0}]
[{"$f":"Konformitätsprüfung!$G196","v":0},{"$f":"Konformitätsprüfung!$H196","v":0}]
[{"$f":"Konformitätsprüfung!$G197","v":0},{"$f":"Konformitätsprüfung!$H197","v":0}]
[{"$f":"Konformitätsprüfung!$G198","v":0},{"$f":"SUM(B199:B207)","v":0}]
[{"$f":"Konformitätsprüfung!$G199","v":0},{"$f":"Konformitätsprüfung!$H199","v":0}]
[{"$f":"Konformitätsprüfung!$G200","v":0},{"$f":"Konformitätsprüfung!$H200","v":0}]
[{"$f":"Konformitätsprüfung!$G201","v":0},{"$f":"Konformitätsprüfung!$H201","v":0}]
[{"$f":"Konformitätsprüfung!$G202","v":0},{"$f":"Konformitätsprüfung!$H202","v":0}]
[{"$f":"Konformitätsprüfung!$G203","v":0},{"$f":"Konformitätsprüfung!$H203","v":0}]
[{"$f":"Konformitätsprüfung!$G204","v":0},{"$f":"Konformitätsprüfung!$H204","v":0}]
[{"$f":"Konformitätsprüfung!$G205","v":0},{"$f":"Konformitätsprüfung!$H205","v":0}]
[{"$f":"Konformitätsprüfung!$G206","v":0},{"$f":"Konformitätsprüfung!$H206","v":0}]
[{"$f":"Konformitätsprüfung!$G207","v":0},{"$f":"Konformitätsprüfung!$H207","v":0}]
[{"$f":"Konformitätsprüfung!$G208","v":0},{"$f":"SUM(B209:B211)","v":0}]
[{"$f":"Konformitätsprüfung!$G209","v":0},{"$f":"Konformitätsprüfung!$H209","v":0}]
[{"$f":"Konformitätsprüfung!$G210","v":0},{"$f":"Konformitätsprüfung!$H210","v":0}]
[{"$f":"Konformitätsprüfung!$G211","v":0},{"$f":"Konformitätsprüfung!$H211","v":0}]
[]
[{"$f":"Konformitätsprüfung!$G213","v":0},{"$f":"SUM(B214:B217)","v":0}]
[{"$f":"Konformitätsprüfung!$G214","v":0},{"$f":"Konformitätsprüfung!$H214","v":0}]
[{"$f":"Konformitätsprüfung!$G215","v":0},{"$f":"Konformitätsprüfung!$H215","v":0}]
[{"$f":"Konformitätsprüfung!$G216","v":0},{"$f":"Konformitätsprüfung!$H216","v":0}]
[{"$f":"Konformitätsprüfung!$G217","v":0},{"$f":"Konformitätsprüfung!$H217","v":0}]
[{"$f":"Konformitätsprüfung!$G218","v":0},{"$f":"SUM(B219:B220)","v":0}]
[{"$f":"Konformitätsprüfung!$G219","v":0},{"$f":"Konformitätsprüfung!$H219","v":0}]
[{"$f":"Konformitätsprüfung!$G220","v":0},{"$f":"Konformitätsprüfung!$H220","v":0}]
[{"$f":"Konformitätsprüfung!$G221","v":0},{"$f":"Konformitätsprüfung!$H221","v":0}]
[]
[]
[{"$f":"Konformitätsprüfung!$G224","v":0},{"$f":"B227*($E$227/100)+B233*($E$233/100)+B240*($E$240/100)+B245*($E$245/100)+B249*($E$249/100)+B259*($E$259/100)","v":0}]
[]
[]
[{"$f":"Konformitätsprüfung!$G227","v":0},{"$f":"SUM(B228:B232)","v":0}]
[{"$f":"Konformitätsprüfung!$G228","v":0},{"$f":"Konformitätsprüfung!$H228","v":0}]
[{"$f":"Konformitätsprüfung!$G229","v":0},{"$f":"Konformitätsprüfung!$H229","v":0}]
[{"$f":"Konformitätsprüfung!$G230","v":0},{"$f":"Konformitätsprüfung!$H230","v":0}]
[{"$f":"Konformitätsprüfung!$G231","v":0},{"$f":"Konformitätsprüfung!$H231","v":0}]
[{"$f":"Konformitätsprüfung!$G232","v":0},{"$f":"Konformitätsprüfung!$H232","v":0}]
[{"$f":"Konformitätsprüfung!$G233","v":0},{"$f":"SUM(B234:B239)","v":0}]
[{"$f":"Konformitätsprüfung!$G234","v":0},{"$f":"Konformitätsprüfung!$H234","v":0}]
[{"$f":"Konformitätsprüfung!$G235","v":0},{"$f":"Konformitätsprüfung!$H235","v":0}]
[{"$f":"Konformitätsprüfung!$G236","v":0},{"$f":"Konformitätsprüfung!$H236","v":0}]
[{"$f":"Konformitätsprüfung!$G237","v":0},{"$f":"Konformitätsprüfung!$H237","v":0}]
[{"$f":"Konformitätsprüfung!$G238","v":0},{"$f":"Konformitätsprüfung!$H238","v":0}]
[{"$f":"Konformitätsprüfung!$G239","v":0},{"$f":"Konformitätsprüfung!$H239","v":0}]
[{"$f":"Konformitätsprüfung!$G240","v":0},{"$f":"SUM(B241:B244)","v":0}]
[{"$f":"Konformitätsprüfung!$G241","v":0},{"$f":"Konformitätsprüfung!$H241","v":0}]
[{"$f":"Konformitätsprüfung!$G242","v":0},{"$f":"Konformitätsprüfung!$H242","v":0}]
[{"$f":"Konformitätsprüfung!$G243","v":0},{"$f":"Konformitätsprüfung!$H243","v":0}]
[{"$f":"Konformitätsprüfung!$G244","v":0},{"$f":"Konformitätsprüfung!$H244","v":0}]
[{"$f":"Konformitätsprüfung!$G245","v":0},{"$f":"SUM(B246:B248)","v":0}]
[{"$f":"Konformitätsprüfung!$G246","v":0},{"$f":"Konformitätsprüfung!$H246","v":0}]
[{"$f":"Konformitätsprüfung!$G247","v":0},{"$f":"Konformitätsprüfung!$H247","v":0}]
[{"$f":"Konformitätsprüfung!$G248","v":0},{"$f":"Konformitätsprüfung!$H248","v":0}]
[{"$f":"Konformitätsprüfung!$G249","v":0},{"$f":"SUM(B250:B258)","v":0}]
[{"$f":"Konformitätsprüfung!$G250","v":0},{"$f":"Konformitätsprüfung!$H250","v":0}]
[{"$f":"Konformitätsprüfung!$G251","v":0},{"$f":"Konformitätsprüfung!$H251","v":0}]
[{"$f":"Konformitätsprüfung!$G252","v":0},{"$f":"Konformitätsprüfung!$H252","v":0}]
[{"$f":"Konformitätsprüfung!$G253","v":0},{"$f":"Konformitätsprüfung!$H253","v":0}]
[{"$f":"Konformitätsprüfung!$G254","v":0},{"$f":"Konformitätsprüfung!$H254","v":0}]
[{"$f":"Konformitätsprüfung!$G255","v":0},{"$f":"Konformitätsprüfung!$H255","v":0}]
[{"$f":"Konformitätsprüfung!$G256","v":0},{"$f":"Konformitätsprüfung!$H256","v":0}]
[{"$f":"Konformitätsprüfung!$G257","v":0},{"$f":"Konformitätsprüfung!$H257","v":0}]
[{"$f":"Konformitätsprüfung!$G258","v":0},{"$f":"Konformitätsprüfung!$H258","v":0}]
[{"$f":"Konformitätsprüfung!$G259","v":0},{"$f":"SUM(B260:B263)","v":0}]
[{"$f":"Konformitätsprüfung!$G260","v":0},{"$f":"Konformitätsprüfung!$H260","v":0}]
[{"$f":"Konformitätsprüfung!$G261","v":0},{"$f":"Konformitätsprüfung!$H261","v":0}]
[{"$f":"Konformitätsprüfung!$G262","v":0},{"$f":"Konformitätsprüfung!$H262","v":0}]
[{"$f":"Konformitätsprüfung!$G263","v":0},{"$f":"Konformitätsprüfung!$H263","v":0}]